Workbook

Sheet Getting Started
A4: Version 3.2, June 22, 2020

Sheet Inputs
E1: 0 | F1: =SUM(G9:H207) -> 0 | G1: =allchecknew -> 0
A2: Energy Savings Inputs
A3: CHP System Characteristics
A4: 1. CHP: Type of System | B4: 0 | E4: =IF(allchecknew>0,"Errors found in some entries, check the input numbers listed in the box below","") -> 
B6: 1
A7: 2. CHP: Electricity Generating Capacity (per unit) | E7: =CONCATENATE(" ",allcheck1," ",allcheck2," ",allcheck4," ",allcheck5," ",allcheck6," ",allcheck8," ",allcheck9," ",allcheck10," ",allcheck11," ",allcheck12," ",allcheck13," ",allcheck14," ",allcheck15," ",allcheck16) -> 
B8: =IF(chptechinput>0,CONCATENATE("Normal size range for this technology is ",TEXT(caplow/chptechcaplow,"#,###")," to ",TEXT(caphigh/chptechcaphigh,"#,###")," kW")," ") -> 
B9: 0 | C9: kW | E9: =CONCATENATE(allcheck18," ",allcheck19," ",allcheck20," ",allcheck21," ",allcheck22," ",allcheck23," ",allcheck24," ",allcheck25," ",allcheck26," ",allcheck7," ") ->  | G9: =allcheck1 -> 0
G10: =F10 -> 0
G11: =allcheck2 -> 0
A12: 3. CHP: How Many Identical Units (i.e., engines) Does This System Have? | G12: =allcheck4 -> 0
B13: 1 | G13: =F13 -> 0
G14: =F14 -> 0
G15: =allcheck5 -> 0
A16: 4. CHP: Annual Utilization (Enter a value to answer only ONE of the options below) | G16: =allcheck7 -> 0
A17: Option 1: How many hours per year does the CHP system operate? | G17: =allcheck6 -> 0
B18: 0 | G18: =allcheck8 -> 0
G19: =allcheck9 -> 0
A20: As a number of hours per year | B20: 0 | G20: =allcheck10 -> 0
A21: OR As a percentage | B21: 0 | G21: =F21 -> 0
G22: =F22 -> 0
A23: Option 2: How much grid electricity is displaced by CHP operation each year? | G23: =allcheck11 -> 0
A24: Enter displaced grid electricity as MWh/year | B24: 0 | C24: MWh/yr | G24: =F24 -> 0
G25: =F25 -> 0
G26: =allcheck12 -> 0
A27: 5. CHP: Does the System Provide Heating or Cooling or Both? | G27: =allcheck13 -> 0
B28: 0 | G28: =F28 -> 0
G29: =allcheck14 -> 0
A30: =CONCATENATE(" If Heating and Cooling: How many of the ",TEXT(chours,"#,###")," hours are in cooling mode?") -> If Heating and Cooling: How many of the hours are in cooling mode? | G30: =allcheck15 -> 0
G31: =F31 -> 0
A32: As a number of hours per year | B32: 0 | G32: =F32 -> 0
A33: =CONCATENATE("as a percentage of the ",TEXT(chours,"#,###")," hours?") -> as a percentage of the hours? | B33: 0 | G33: =allcheck16 -> 0
G34: =allcheck18 -> 0
A35: =CONCATENATE(" If Heating and Cooling: Does the System Provide Simultaneous Heating and Cooling?") -> If Heating and Cooling: Does the System Provide Simultaneous Heating and Cooling? | G35: =allcheck19 -> 0
B36: 0 | G36: =F36 -> 0
G37: =F37 -> 0
G38: =allcheck20 -> 0
A39: 6. CHP: Fuel | G39: =allcheck21 -> 0
A40: Fuel Type | B40: 0 | G40: =allcheck22 -> 0
B41: =IF(chpfuelinput=7,"Click on 'View Biomass and Coal Fuel Characteristics' to select the appropriate CO2 emissions rate and heat content for your fuel. ","") ->  | G41: =allcheck23 -> 0
C42: =IF(chptechinput>8,IF(chpfuelinput=8,"","Please enter a fuel type compatible with the CHP technology"),IF(chptechinput<9,IF(chpfuelinput=8,"Please enter a fuel type compatible with the CHP technology",IF(chpfuelinput=0,"",IF(AND(chptechinput=3,chpfuelinput<>2),"Please enter a fuel type compatible with the CHP technology",IF(OR(chptechinput=6,chptechinput=8),"",IF(AND(OR(chptechinput<>6,chptechinput<>8),OR(chpfuelinput=4,chpfuelinput=6)),"Please enter a fuel compatible with the CHP technology",""))))))) ->  | G42: =F42 -> 0
G43: =allcheck24 -> 0
A44: 7. CHP: What is the Heat Content of this Fuel? (Enter a value in only ONE of the boxes) | G44: =F44 -> 0
B45: 0 | C45: Btu/cubic foot (HHV) | G45: 0
A46: OR | B46: 0 | C46: Btu/gallon (HHV) | G46: 0
A47: OR | B47: 0 | C47: Btu/lb (HHV) | G47: 0
G48: 0
G49: 0
A50: 8. CHP: Boiler Steam To Process (Steam Turbine CHP Only) | G50: 0
G51: 0
A52: Boiler Steam to Process as lb Steam/hr | B52: 0 | C52: =IF(AND(chptechinput<>6,OR(lbsteamperhr>0,mmbtusteamperhr>0)),"Enter boiler steam to process only if steam turbine"," ") ->  | G52: 0
A53: Boiler Steam to Process as MMBtu Steam/hr | B53: 0 | C53: =IF(AND(chptechinput=6,AND(lbsteamperhr>0,mmbtusteamperhr>0)),"Please enter only lb/hr or MMBtu/hr","") ->  | G53: 0
G54: 0
G55: 0
A56: 9. CHP: Steam Turbine System Boiler Efficiency (Steam Turbine CHP Only) | G56: 0
G57: 0
G58: 0
A59: Enter Boiler Efficiency as % | B59: 0 | C59: =IF(AND(chptechinput=6,boilereff=0),"Please enter an efficiency","") ->  | G59: 0
G60: 0
G61: 0
A62: 10. CHP: Electric Efficiency | G62: 0
G63: 0
A64: 0 | B64: =IF(AND(OR(chptechinput=6,chptechinput=9,chptechinput=10),chpeffinput1>0),"Electric efficiency is not used for this technology","") ->  | G64: 0
A65: Enter Generating Efficiency as % | B65: 0 | C65: (HHV) | G65: 0
A66: OR Enter Generating Efficiency as Btu/kWh HHV | B66: 0 | C66: Btu/kWh (HHV) | G66: 0
A67: OR Enter Generating Efficiency as Btu/kWh LHV | B67: 0 | C67: Btu/kWh (LHV) | G67: 0
G68: 0
G69: 0
A70: 11. CHP Equipment: Base Power to Heat Ratio | G70: 0
A71: The Power to Heat Ratio should reflect ONLY the thermal production of the generating unit (i.e., combustion turbine). | G71: 0
A72: Thermal Output of the duct burners (if equipped) should not be included. | G72: 0
G73: 0
B74: See the SubThermalCalculator for help on calculating a Power to Heat Ratio | G74: 0
A75: Power to Heat Ratio (Generating Unit Capacity) | B75: 0 | C75: =IF(chpphinput>0,IF(whptherminput>0,"Enter only one value.",""),"") ->  | G75: 0
A76: If WHP: Useful Thermal Output (MMBtu/hr) | B76: 0 | G76: =F76 -> 0
A77: =IF(AND(chptechinput=9,whptherminput>0),"Useful Thermal Output only applies to WHP with thermal output",IF(AND(OR(chptechinput=1,chptechinput=2,chptechinput=3,chptechinput=4,chptechinput=5,chptechinput=6,chptechinput=7,chptechinput=8),whptherminput>0),"Useful Thermal Output only applies to WHP - see the SubThermalCalculator tab for help calculating the Power to Heat Ratio","")) ->  | C77: =IF(AND(OR(chptechinput=6,chptechinput=9),chpphinput>0),"Power to Heat Ratio is not used for this technology","") ->  | G77: 0
G78: 0
A79: 12. Duct Burners: Does the System Incorporate Duct Burners? (Duct Burners only allowed on Combustion Turbines) | G79: 0
A80: 0 | B80: 0 | G80: 0
B81: =IF(AND(chptechinput<>5,chpduct1=1),"Duct burners only allowed on Combustion Turbines","") ->  | G81: 0
G82: 0
A83: 13. Duct Burners: What is the Total Fuel Input Capacity of the Burners for Each CHP Unit? | G83: 0
A84: =IF(chptechinput<>0,CONCATENATE(" For reference, the ",CHPname," has a heat input of ",TEXT(cbtuperhour,"#,###.#")," MMBtu/hr")," ") ->  | G84: 0
B85: 0 | C85: MMBtu/hr | G85: 0
G86: 0
G87: 0
A88: =CONCATENATE("14. Duct Burners: The CHP system operates ",TEXT(chours,"#,###")," hours per year. How much do the duct burners operate?") -> 14. Duct Burners: The CHP system operates hours per year. How much do the duct burners operate? | G88: 0
A89: As a number of hours per year | B89: 0 | G89: 0
A90: =CONCATENATE("As a percentage of the ",TEXT(chours,"#,###")," hours?") -> As a percentage of the hours? | B90: 0 | C90: 0 | G90: 0
G91: 0
A92: CHP Cooling Characteristics | G92: 0
G93: 0
A94: 15. Cooling: Does the CHP Provide Cooling? | B94: =IF(coolinput1=1,"Yes","No") -> No | G94: 0
A95: =IF(chpheatcoolboth=0,2,IF(chpheatcoolboth=1,2,1)) -> 2 | B95: =IF(coolinput1=1,"You indicated Cooling in Item 5","You indicated No Cooling in Item 5") -> You indicated No Cooling in Item 5 | G95: 0
G96: 0
A97: 16. Cooling: What is the Coefficient of Performance (COP) of the Absorption Chiller Used? | G97: 0
B98: 0 | C98: 0 | G98: 0
G99: 0
A100: Coefficient of Performance (COP) | B100: 0 | G100: 0
G101: 0
G102: 0
A103: 17. Cooling: What is the Cooling Capacity of the System? | C103: 0 | G103: 0
A104: =IF(chpheatcoolboth<>0,CONCATENATE(" Based on your other entries, the maximum cooling capacity is ",TEXT(coolavailabletons,"#,###.#")," tons or ",TEXT(coolavailableMMBtu,"#,###.#")," MMBtu/hr of cooling")," ") ->  | G104: 0
G105: 0
A106: (Enter a value in only ONE of the boxes) | B106: 0 | C106: Cooling Tons | G106: 0
B107: 0 | C107: OR MMBtu per Hour of Cooling | G107: 0
G108: =F108 -> 0
G109: 0
A110: 18. Displaced Cooling: What is the Efficiency of the Cooling System that is Being Displaced? | G110: 0
B111: 0 | G111: 0
C112: 0 | G112: 0
A113: (Enter a value in only ONE of the boxes) | G113: 0
A114: Electricity Demand (kW per ton) | B114: 0 | G114: 0
A115: OR Coefficient of Performance (COP) | B115: 0 | G115: 0
G116: 0
A117: Thermal Characteristics | G117: 0
G118: 0
A119: 19. Displaced Thermal: Type of System: | B119: 0 | G119: 0
G120: 0
G121: 0
A122: 20. Displaced Thermal: What is the Heat Content of the displaced Fuel? (Enter a value in only ONE of the boxes) | G122: 0
B123: 0 | C123: Btu/cubic foot (HHV) | G123: 0
A124: OR | B124: 0 | C124: Btu/gallon (HHV) | G124: 0
A125: OR | B125: 0 | C125: Btu/lb (HHV) | G125: 0
G126: 0
G127: 0
A128: 21. Displaced Thermal: Efficiency (usually a boiler) | G128: 0
G129: 0
A130: Enter Generating Efficiency as % | B130: 0 | G130: 0
G131: 0
G132: 0
A133: 22. Thermal Utilization (Enter a value to answer only ONE of the options below) | G133: 0
A134: Option 1: CHP Thermal Utilization - What is the percent of available CHP thermal output utilized throughout the year? | G134: 0
G135: 0
A136: Enter thermal utilization as a % | B136: 0 | G136: 0
A137: (also applies to cooling) | G137: 0
A138: Option 2: Displaced boiler fuel - What is the quantity of boiler fuel displaced throughout the year? | G138: 0
A139: Enter displaced boiler fuel as MMBtu/year | B139: 0 | C139: MMBtu/yr | G139: 0
G140: =F140 -> 0
A141: Electricity Profile | G141: 0
G142: 0
A143: 23. Displaced Electricity: Electricity Generation Profile | G143: 0
B144: 2 | G144: 0
A145: See the instructions for Input 23 in Section 2 of the User Manual | G145: 0
G146: 0
G147: 0
A148: 24. Displaced Electricity: Select U.S. Average, eGRID Subregion, or NERC region | G148: 0
B149: 1 | G149: 0
A150: Link to eGRID Subregion Map and NERC Interconnections Map | E150: *Stop entering inputs here to calculate ONLY energy savings - continue entering inputs to calculate energy AND emissions savings | G150: 0
G151: 0
G152: 0
A153: 25. Displaced Electricity: Select Electric Grid Region for Transmission and Distribution (T&D) Losses | G153: 0
B154: 1 | G154: 0
B155: 0.0487 | G155: 0
A156: Link to NERC Interconnections Map | G156: 0
G157: 0
A158: Emissions Savings Inputs | G158: 0
A159: CHP & Displaced Boiler Emissions Characteristics | G159: 0
G160: 0
A161: 26. CHP: If Biomass, Diesel, Distillate, Coal or Other: What is the Sulfur Content? | G161: =allcheck25 -> 0
A162: If WHP, what is the sulfur content of the stack? | G162: =F162 -> 0
B163: or | G163: =allcheck26 -> 0
A164: 0 | G164: =allcheck29 -> 0
G165: =allcheck27 -> 0
A166: Enter Sulfur Content of Fuel as a percent | B166: 0 | G166: =F166 -> 0
A167: OR ppm | B167: 0 | C167: ppm | G167: 0
G168: 0
G169: 0
A170: 27. CHP: What is the CO2 Emission Rate for this Fuel? (default completed for fuel in Item 6) | G170: 0
A171: Enter alternative value: | B171: 0 | C171: lb CO2/MMBtu | G171: 0
G172: 0
G173: 0
A174: 28. CHP: NOx Emission Rate | G174: 0
G175: 0
A176: 0 | B176: 2 | G176: 0
G177: 0
A178: Enter a NOx Rate as ppm (15% O2) | B178: 0 | C178: ppm | G178: 0
A179: OR Enter a NOx Rate as gm/hp-hr | B179: 0 | C179: gm/hp-hr | G179: 0
A180: OR Enter a NOx Rate as lb/MMBtu | B180: 0 | C180: lb NOx/MMBtu | G180: 0
A181: OR Enter a NOx Rate as lb/MWh | B181: 0 | C181: lb NOx/MWh | G181: 0
G182: 0
G183: 0
A184: 29. Duct Burners: NOx Emission Rate for the Duct Burners | G184: 0
B185: 2 | G185: 0
A186: 0 | B186: =IF(AND(chptechinput<>5,OR(chpduct3>0,chpduct4>0)),"Duct burners only allowed on Combustion Turbines","") ->  | G186: 0
A187: 0 | B187: 0 | C187: lb/MMBtu | G187: 0
A188: OR | B188: 0 | C188: ppm NOx at 15% O2 | G188: 0
G189: 0
G190: 0
A191: 30. Displaced Thermal: What is the CO2 Emission Rate for this Fuel? (default completed for fuel in Item 23) | G191: 0
A192: Enter alternative value: | B192: 0 | C192: lb CO2/MMBtu | G192: 0
G193: 0
G194: 0
A195: 31. Displaced Thermal: If Biomass, Diesel, Distillate, Coal or Other: What is the Sulfur Content? | G195: 0
B196: 1 | G196: 0
B197: or | G197: 0
G198: 0
A199: 0 | G199: 0
A200: Enter Sulfur Content as a percent | B200: 0 | G200: 0
A201: OR ppm | B201: 0 | C201: ppm | G201: 0
... 13 more rows

Sheet Results
A5: CHP Results
A6: The results generated by the CHP Energy and Emissions Savings Calculator are intended for educational and outreach purposes only;
A7: it is not designed for use in developing emission inventories or preparing air permit applications.
A8: The results of this analysis have not been reviewed or endorsed by the EPA CHP Partnership.
A10: Table 1: Annual Energy Savings
B11: CHP System | C11: Displaced Electricity Production | D11: Displaced Thermal Production | E11: Fuel Savings | F11: Percent Savings
A12: Fuel Consumption (MMBtu/year) | B12: =IFERROR(D99,"-") -> 0 | C12: =IFERROR(F121,"-") -> 0 | D12: =IFERROR(B110,"-") -> 0 | E12: =IFERROR(C12+D12-B12,"-") -> 0 | F12: =IF(OR(chptechinput=9,chptechinput=10),IFERROR(E12/(C12+D12),"-"),IF(B12<=0,"-",IFERROR(E12/(C12+D12),"-"))) -> -
A13: Equal to the annual energy consumption of this many passenger vehicles: | E13: =IF((E12/mmbtugalgas)/galvehicle=0,"-",IFERROR((E12/mmbtugalgas)/galvehicle,"-")) -> -
A14: Equal to the annual energy consumption from the generation of electricity for this many homes: | E14: =IFERROR(IF($E$12*(3412/VLOOKUP(deinput,SubGenSources!$B$6:$F$17,5,FALSE))/(homes2*kWhtoMMBtu)=0,"-",IFERROR($E$12*(3412/VLOOKUP(deinput,SubGenSources!$B$6:$F$17,5,FALSE))/(homes2*kWhtoMMBtu),"-")),"-") -> -
A21: Table 2: Annual Emissions Savings | B21: =IFERROR(IF(AND(SUM(B23:F29,E30:F31)=0,SUM(B12:F12,E13:F14)=0)," ",IF(SUM(B23:F29,E30:F31)=0,"To calculate emissions savings results, please complete inputs 26-32 on the Inputs page"," ")),"") -> 
B22: CHP System | C22: Displaced Electricity Production | D22: Displaced Thermal Production | E22: Emissions Savings | F22: Percent Savings
A23: NOx (tons/year) | B23: =IF(AND(OR(chpsulfurinput2="0",ISBLANK(chpsulfurinput2)),OR(chpnoxinput1="0",ISBLANK(chpnoxinput1)),OR(chpnoxinput2="0",ISBLANK(chpnoxinput2)),OR(chpnoxinput3="0",ISBLANK(chpnoxinput3)),OR(chpnoxinput4="0",ISBLANK(chpnoxinput4)),OR(stmsulfurinput2="0",ISBLANK(stmsulfurinput2)),OR(stmnoxinput="0",ISBLANK(stmnoxinput))),"-",D92) -> - | C23: =IF(chptechinput=9,F114,IF(AND(OR(chpsulfurinput2=0,ISBLANK(chpsulfurinput)),OR(chpnoxinput1=0,ISBLANK(chpnoxinput1)),OR(chpnoxinput2=0,ISBLANK(chpnoxinput2)),OR(chpnoxinput3=0,ISBLANK(chpnoxinput3)),OR(chpnoxinput4=0,ISBLANK(chpnoxinput4)),OR(stmsulfurinput2=0,ISBLANK(stmsulfurinput2)),OR(stmnoxinput=0,ISBLANK(stmnoxinput))),"-",F114)) -> - | D23: =IF(AND(OR(chpsulfurinput2=0,ISBLANK(chpsulfurinput)),OR(chpnoxinput1=0,ISBLANK(chpnoxinput1)),OR(chpnoxinput2=0,ISBLANK(chpnoxinput2)),OR(chpnoxinput3=0,ISBLANK(chpnoxinput3)),OR(chpnoxinput4=0,ISBLANK(chpnoxinput4)),OR(stmsulfurinput2=0,ISBLANK(stmsulfurinput2)),OR(stmnoxinput=0,ISBLANK(stmnoxinput))),"-",B103) -> - | E23: =IF(chptechinput=9,C23,IFERROR(IF(B23="-",C23+D23,IFERROR(C23+D23-B23,"-")),"-")) -> - | F23: =IF(chptechinput=9,E23/C23,IF(chptechinput=10,IFERROR(E23/(C23+D23),"-"),IF(B23<=0,"-",IFERROR(E23/(C23+D23),"-")))) -> -
A24: SO2 (tons/year) | B24: =IF(AND(OR(chpsulfurinput2=0,ISBLANK(chpsulfurinput)),OR(chpnoxinput1=0,ISBLANK(chpnoxinput1)),OR(chpnoxinput2=0,ISBLANK(chpnoxinput2)),OR(chpnoxinput3=0,ISBLANK(chpnoxinput3)),OR(chpnoxinput4=0,ISBLANK(chpnoxinput4)),OR(stmsulfurinput2=0,ISBLANK(stmsulfurinput2)),OR(stmnoxinput=0,ISBLANK(stmnoxinput))),"-",D93) -> - | C24: =IF(chptechinput=9,F115,IF(AND(OR(chpsulfurinput2=0,ISBLANK(chpsulfurinput)),OR(chpnoxinput1=0,ISBLANK(chpnoxinput1)),OR(chpnoxinput2=0,ISBLANK(chpnoxinput2)),OR(chpnoxinput3=0,ISBLANK(chpnoxinput3)),OR(chpnoxinput4=0,ISBLANK(chpnoxinput4)),OR(stmsulfurinput2=0,ISBLANK(stmsulfurinput2)),OR(stmnoxinput=0,ISBLANK(stmnoxinput))),"-",F115)) -> - | D24: =IF(AND(OR(chpsulfurinput2=0,ISBLANK(chpsulfurinput)),OR(chpnoxinput1=0,ISBLANK(chpnoxinput1)),OR(chpnoxinput2=0,ISBLANK(chpnoxinput2)),OR(chpnoxinput3=0,ISBLANK(chpnoxinput3)),OR(chpnoxinput4=0,ISBLANK(chpnoxinput4)),OR(stmsulfurinput2=0,ISBLANK(stmsulfurinput2)),OR(stmnoxinput=0,ISBLANK(stmnoxinput))),"-",B104) -> - | E24: - | F24: -
A25: CO2 (tons/year) | B25: =IF(AND(OR(chpsulfurinput2=0,ISBLANK(chpsulfurinput)),OR(chpnoxinput1=0,ISBLANK(chpnoxinput1)),OR(chpnoxinput2=0,ISBLANK(chpnoxinput2)),OR(chpnoxinput3=0,ISBLANK(chpnoxinput3)),OR(chpnoxinput4=0,ISBLANK(chpnoxinput4)),OR(stmsulfurinput2=0,ISBLANK(stmsulfurinput2)),OR(stmnoxinput=0,ISBLANK(stmnoxinput))),"-",D94) -> - | C25: =IF(chptechinput=9,F116,IF(AND(OR(chpsulfurinput2=0,ISBLANK(chpsulfurinput)),OR(chpnoxinput1=0,ISBLANK(chpnoxinput1)),OR(chpnoxinput2=0,ISBLANK(chpnoxinput2)),OR(chpnoxinput3=0,ISBLANK(chpnoxinput3)),OR(chpnoxinput4=0,ISBLANK(chpnoxinput4)),OR(stmsulfurinput2=0,ISBLANK(stmsulfurinput2)),OR(stmnoxinput=0,ISBLANK(stmnoxinput))),"-",F116)) -> - | D25: =IF(AND(OR(chpsulfurinput2=0,ISBLANK(chpsulfurinput)),OR(chpnoxinput1=0,ISBLANK(chpnoxinput1)),OR(chpnoxinput2=0,ISBLANK(chpnoxinput2)),OR(chpnoxinput3=0,ISBLANK(chpnoxinput3)),OR(chpnoxinput4=0,ISBLANK(chpnoxinput4)),OR(stmsulfurinput2=0,ISBLANK(stmsulfurinput2)),OR(stmnoxinput=0,ISBLANK(stmnoxinput))),"-",B105) -> - | E25: - | F25: -
A26: CH4 (tons/year) | B26: =IF(AND(OR(chpsulfurinput2=0,ISBLANK(chpsulfurinput)),OR(chpnoxinput1=0,ISBLANK(chpnoxinput1)),OR(chpnoxinput2=0,ISBLANK(chpnoxinput2)),OR(chpnoxinput3=0,ISBLANK(chpnoxinput3)),OR(chpnoxinput4=0,ISBLANK(chpnoxinput4)),OR(stmsulfurinput2=0,ISBLANK(stmsulfurinput2)),OR(stmnoxinput=0,ISBLANK(stmnoxinput))),"-",D95) -> - | C26: =IF(chptechinput=9,F117,IF(AND(OR(chpsulfurinput2=0,ISBLANK(chpsulfurinput)),OR(chpnoxinput1=0,ISBLANK(chpnoxinput1)),OR(chpnoxinput2=0,ISBLANK(chpnoxinput2)),OR(chpnoxinput3=0,ISBLANK(chpnoxinput3)),OR(chpnoxinput4=0,ISBLANK(chpnoxinput4)),OR(stmsulfurinput2=0,ISBLANK(stmsulfurinput2)),OR(stmnoxinput=0,ISBLANK(stmnoxinput))),"-",F117)) -> - | D26: =IF(AND(OR(chpsulfurinput2=0,ISBLANK(chpsulfurinput)),OR(chpnoxinput1=0,ISBLANK(chpnoxinput1)),OR(chpnoxinput2=0,ISBLANK(chpnoxinput2)),OR(chpnoxinput3=0,ISBLANK(chpnoxinput3)),OR(chpnoxinput4=0,ISBLANK(chpnoxinput4)),OR(stmsulfurinput2=0,ISBLANK(stmsulfurinput2)),OR(stmnoxinput=0,ISBLANK(stmnoxinput))),"-",B106) -> - | E26: - | F26: -
A27: N2O (tons/year) | B27: =IF(AND(OR(chpsulfurinput2=0,ISBLANK(chpsulfurinput)),OR(chpnoxinput1=0,ISBLANK(chpnoxinput1)),OR(chpnoxinput2=0,ISBLANK(chpnoxinput2)),OR(chpnoxinput3=0,ISBLANK(chpnoxinput3)),OR(chpnoxinput4=0,ISBLANK(chpnoxinput4)),OR(stmsulfurinput2=0,ISBLANK(stmsulfurinput2)),OR(stmnoxinput=0,ISBLANK(stmnoxinput))),"-",D96) -> - | C27: =IF(chptechinput=9,F118,IF(AND(OR(chpsulfurinput2=0,ISBLANK(chpsulfurinput)),OR(chpnoxinput1=0,ISBLANK(chpnoxinput1)),OR(chpnoxinput2=0,ISBLANK(chpnoxinput2)),OR(chpnoxinput3=0,ISBLANK(chpnoxinput3)),OR(chpnoxinput4=0,ISBLANK(chpnoxinput4)),OR(stmsulfurinput2=0,ISBLANK(stmsulfurinput2)),OR(stmnoxinput=0,ISBLANK(stmnoxinput))),"-",F118)) -> - | D27: =IF(AND(OR(chpsulfurinput2=0,ISBLANK(chpsulfurinput)),OR(chpnoxinput1=0,ISBLANK(chpnoxinput1)),OR(chpnoxinput2=0,ISBLANK(chpnoxinput2)),OR(chpnoxinput3=0,ISBLANK(chpnoxinput3)),OR(chpnoxinput4=0,ISBLANK(chpnoxinput4)),OR(stmsulfurinput2=0,ISBLANK(stmsulfurinput2)),OR(stmnoxinput=0,ISBLANK(stmnoxinput))),"-",B107) -> - | E27: - | F27: -
A28: Total GHGs (CO2e tons/year) | B28: =IF(AND(OR(chpsulfurinput2=0,ISBLANK(chpsulfurinput)),OR(chpnoxinput1=0,ISBLANK(chpnoxinput1)),OR(chpnoxinput2=0,ISBLANK(chpnoxinput2)),OR(chpnoxinput3=0,ISBLANK(chpnoxinput3)),OR(chpnoxinput4=0,ISBLANK(chpnoxinput4)),OR(stmsulfurinput2=0,ISBLANK(stmsulfurinput2)),OR(stmnoxinput=0,ISBLANK(stmnoxinput))),"-",D97) -> - | C28: =IF(chptechinput=9,F119,IF(AND(OR(chpsulfurinput2=0,ISBLANK(chpsulfurinput)),OR(chpnoxinput1=0,ISBLANK(chpnoxinput1)),OR(chpnoxinput2=0,ISBLANK(chpnoxinput2)),OR(chpnoxinput3=0,ISBLANK(chpnoxinput3)),OR(chpnoxinput4=0,ISBLANK(chpnoxinput4)),OR(stmsulfurinput2=0,ISBLANK(stmsulfurinput2)),OR(stmnoxinput=0,ISBLANK(stmnoxinput))),"-",F119)) -> - | D28: =IF(AND(OR(chpsulfurinput2=0,ISBLANK(chpsulfurinput)),OR(chpnoxinput1=0,ISBLANK(chpnoxinput1)),OR(chpnoxinput2=0,ISBLANK(chpnoxinput2)),OR(chpnoxinput3=0,ISBLANK(chpnoxinput3)),OR(chpnoxinput4=0,ISBLANK(chpnoxinput4)),OR(stmsulfurinput2=0,ISBLANK(stmsulfurinput2)),OR(stmnoxinput=0,ISBLANK(stmnoxinput))),"-",B108) -> - | E28: - | F28: -
A29: Carbon (metric tons/year) | B29: =IF(AND(OR(chpsulfurinput2=0,ISBLANK(chpsulfurinput)),OR(chpnoxinput1=0,ISBLANK(chpnoxinput1)),OR(chpnoxinput2=0,ISBLANK(chpnoxinput2)),OR(chpnoxinput3=0,ISBLANK(chpnoxinput3)),OR(chpnoxinput4=0,ISBLANK(chpnoxinput4)),OR(stmsulfurinput2=0,ISBLANK(stmsulfurinput2)),OR(stmnoxinput=0,ISBLANK(stmnoxinput))),"-",D98) -> - | C29: =IF(chptechinput=9,F120,IF(AND(OR(chpsulfurinput2=0,ISBLANK(chpsulfurinput)),OR(chpnoxinput1=0,ISBLANK(chpnoxinput1)),OR(chpnoxinput2=0,ISBLANK(chpnoxinput2)),OR(chpnoxinput3=0,ISBLANK(chpnoxinput3)),OR(chpnoxinput4=0,ISBLANK(chpnoxinput4)),OR(stmsulfurinput2=0,ISBLANK(stmsulfurinput2)),OR(stmnoxinput=0,ISBLANK(stmnoxinput))),"-",F120)) -> - | D29: =IF(AND(OR(chpsulfurinput2=0,ISBLANK(chpsulfurinput)),OR(chpnoxinput1=0,ISBLANK(chpnoxinput1)),OR(chpnoxinput2=0,ISBLANK(chpnoxinput2)),OR(chpnoxinput3=0,ISBLANK(chpnoxinput3)),OR(chpnoxinput4=0,ISBLANK(chpnoxinput4)),OR(stmsulfurinput2=0,ISBLANK(stmsulfurinput2)),OR(stmnoxinput=0,ISBLANK(stmnoxinput))),"-",B109) -> - | E29: - | F29: -
A30: Equal to the annual GHG emissions from this many passenger vehicles: | E30: =IFERROR($E$28*0.907185/cars,"-") -> -
A31: Equal to the annual GHG emissions from the generation of electricity for this many homes: | E31: =IFERROR($E$28*0.907185/homes,"-") -> -
C38: =IFERROR(CONCATENATE("This CHP project will avoid yearly emissions of greenhouse gases by ",TEXT(ROUND(E28,0),"#,###")," tons of carbon dioxide equivalent."),"") -> 
B40: =IF(B31>=0,"Equal to the annual greenhouse","Equal to the annual greenhouse") -> Equal to the annual greenhouse | E40: =IF(E31>=0,"Equal to the annual greenhouse","Equal to the annual greenhouse") -> Equal to the annual greenhouse
B41: =IF(B31>=0,"gas emissions from ","gas emissions from ") -> gas emissions from | C41: =IF(E31>=0,"gas emissions from the generation of "," gas emissions from the generation of ") -> gas emissions from the generation of
B42: =IFERROR(CONCATENATE(TEXT(ROUND(ABS(E30),0),"#,###")," passenger vehicles. "),"") ->  | E42: =IFERROR(CONCATENATE(" electricity used by ",TEXT(ROUND(ABS(E31),0),"#,###")," homes. "),"") -> 
A54: The results of this analysis have not been reviewed or endorsed by the EPA CHP Partnership.
A55: Table 3: CHP Technology and Generation Profile
A56: CHP Technology: | B56: =IFERROR(CHPname,"") -> 
A57: Fuel: | B57: =IFERROR(cfuel,"") -> 
A58: Unit Capacity: | B58: =IFERROR(Calc1!B28,"-") -> 0 | C58: kW
A59: Number of Units: | B59: =IFERROR(Calc1!B4,"-") -> 1
A60: Total CHP Capacity: | B60: =IFERROR(Calc1!B5,"-") -> 0 | C60: kW
A61: Operation: | B61: =IFERROR(chours,"-") -> 0 | C61: hours per year
A62: Heat Rate: | B62: =IFERROR(IF(chr=FALSE,0,chr),"-") -> 0 | C62: Btu/kWh HHV
A63: CHP Fuel Consumption: | B63: =IFERROR(Calc1!B7,"-") -> 0 | C63: MMBtu/year
A64: Duct Burner Fuel Consumption: | B64: =IFERROR(Calc1!B8,"-") -> 0 | C64: MMBtu/year
A65: Total Fuel Consumption: | B65: =IFERROR(B63+B64,"-") -> 0 | C65: MMBtu/year
A66: Total CHP Generation: | B66: =IFERROR(Calc1!B6,"-") -> 0 | C66: MWh/year
A67: Useful CHP Thermal Output: | B67: =IFERROR(Calc1!D170,"-") -> 0 | C67: MMBtu/year for thermal applications (non-cooling)
B68: =IFERROR(Calc1!B167,"-") -> 0 | C68: MMBtu/year for electric applications (cooling and electric heating)
B69: =IFERROR(B67+B68,"-") -> 0 | C69: MMBtu/year Total
A70: Table 4: Displaced Thermal Energy
A71: Displaced On-Site Production for | C71: =IF(stminput1<>0,LOOKUP(stminput1,listd2a,listd2)," ") -> 
A72: Thermal (non-cooling) Applications: | B72: =IFERROR(IF(stminput1<>0,Calc1!B182," "),"-") ->  | C72: =IF(stminput1<>0,"lb/MMBtu NOx","There is no displaced thermal production") -> There is no displaced thermal production
B73: =IFERROR(IF(stminput1<>0,Calc1!B174," "),"-") ->  | C73: =IF(stminput1<>0,"sulfur content"," ") -> 
A74: Displaced Electric Service (cooling and electric heating): | B74: =IF(coolinput1=1,Calc1!B127*1000000/12000," ") ->  | C74: =IF(coolinput1=1,"tons of cooling capacity from CHP system","") -> 
A75: =IF(coolinput1=1,"CHP:"," ") ->  | B75: =IF(coolinput1=1,Calc1!C118,"There is no displaced cooling service") -> There is no displaced cooling service
A76: =IF(coolinput1=1,"Replaces:"," ") ->  | B76: =IF(coolinput1=1,IF(cooldisp1<10,Calc1!C134,"User Defined ")," ") -> 
B77: =IF(coolinput1=1,Calc1!B135," ") ->  | C77: =IF(coolinput1=1,"COP"," ") -> 
A78: Table 5: Displaced Electricity
A79: Displaced Electricity Profile: | B79: =LOOKUP(deinput,listb5a,listb5) -> eGRID Fossil Fuel (2018 Data)
A81: eGRID State: | B81: =IFERROR(IF(deinput<6,LOOKUP(deinput2,listb6a,listb6),"N/A"),"-") -> US Average
A82: Distribution Losses: | B82: =IFERROR(lossinput,"-") -> 0.0487
A83: Displaced Electricity Production: | B83: =IFERROR(Calc1!B6,"-") -> 0 | C83: MWh/year CHP generation
B84: =IFERROR(Calc1!B150*chpnumunits,"-") -> 0 | C84: MWh/year Displaced Electric Demand (cooling)
B85: =IFERROR(IF(stminput1=9,Calc1!B151*chpnumunits,0),"-") -> 0 | C85: MWh/year Displaced Electric Demand (electric heating)
B86: =IFERROR((B83+B84+B85)/(1-lossinput)-(B83+B84+B85),"-") -> 0 | C86: MWh/year Transmission Losses
B87: =IFERROR(B83+B84+B85+B86,"-") -> 0 | C87: MWh/year Total
A89: The results of this analysis have not been reviewed or endorsed by the EPA CHP Partnership.
A90: Table 6: Annual Analysis for CHP
B91: =IFERROR(CONCATENATE("CHP System: ",CHPname),"") ->  | C91: ="Duct Burners (if applicable)" -> Duct Burners (if applicable) | D91: Total Emissions from CHP System
A92: NOx (tons/year) | B92: =IFERROR(Calc1!B17,"-") -> 0 | C92: =IF(Calc1!B22=0,"-",IFERROR(Calc1!B22,"-")) -> - | D92: =IF(SUM(B92,C92)=0,"-",IFERROR(SUM(B92,C92),"-")) -> -
A93: SO2 (tons/year) | B93: =IFERROR(Calc1!B18,"-") -> 0 | C93: =IFERROR(Calc1!B23,"-") -> - | D93: =IFERROR(B93+C93,"-") -> -
A94: CO2 (tons/year) | B94: =IFERROR(Calc1!B19,"-") -> 0 | C94: =IFERROR(Calc1!B24,"-") -> - | D94: -
A95: CH4 (tons/year) | B95: =IFERROR(Calc1!F17,"-") -> - | C95: =IFERROR(Calc1!F22,"-") -> 0 | D95: -
A96: N2O (tons/year) | B96: =IFERROR(Calc1!F18,"-") -> - | C96: =IFERROR(Calc1!F23,"-") -> 0 | D96: -
A97: Total GHGs (CO2e tons/year) | B97: =IFERROR(B94+(B95*ch4GWP)+(B96*n2oGWP),"-") -> - | C97: =IFERROR(C94+(C95*ch4GWP)+(C96*n2oGWP),"-") -> - | D97: -
A98: Carbon (metric tons/year) | B98: =B94*CO2tocarbon*tonnes -> 0 | C98: =IFERROR(C94*CO2tocarbon*tonnes,"-") -> - | D98: -
A99: Fuel Consumption (MMBtu/year) | B99: =IFERROR(B63,"-") -> 0 | C99: =IFERROR(B64,"-") -> 0 | D99: 0
A101: Table 7: Annual Analysis for Displaced Thermal Production (non-cooling)
B102: Total Displaced Emissions from Thermal Production
A103: NOx (tons/year) | B103: =IFERROR(Calc1!D12,"-") -> 0
A104: SO2 (tons/year) | B104: =IFERROR(Calc1!D13,"-") -> 0
A105: CO2 (tons/year) | B105: =IFERROR(Calc1!D14,"-") -> 0
A106: CH4 (tons/year) | B106: =IFERROR(Calc1!E183,"-") -> 0
A107: N2O (tons/year) | B107: =IFERROR(Calc1!E185,"-") -> 0
A108: Total GHGs (CO2e tons/year) | B108: =IFERROR(B105+(B106*ch4GWP)+(B107*n2oGWP),"-") -> 0
A109: Carbon (metric tons/year) | B109: =IFERROR(B105*CO2tocarbon*tonnes,"-") -> 0
A110: Fuel Consumption (MMBtu/year) | B110: =IFERROR(IF(stminput1=9,0,dsbtu),"-") -> 0
A112: Table 8: Annual Analysis for Displaced Electricity Production
B113: Displaced CHP Electricity Generation | C113: Displaced Electricity for Cooling | D113: Displaced Electricity for Heating | E113: Transmission Losses | F113: Total Displaced Emissions from Electricity Generation
A114: NOx (tons/year) | B114: =IFERROR((denoxrate/2000)*B83,"-") -> 0 | C114: =IFERROR((denoxrate/2000)*B84,"-") -> 0 | D114: =IFERROR((denoxrate/2000)*B85,"-") -> 0 | E114: =IFERROR((denoxrate/2000)*B86,"-") -> 0 | F114: =IFERROR(SUM(B114:E114),"-") -> 0
A115: SO2 (tons/year) | B115: =IFERROR((deso2rate/2000)*B83,"-") -> 0 | C115: =IFERROR((deso2rate/2000)*B84,"-") -> 0 | D115: =IFERROR((deso2rate/2000)*B85,"-") -> 0 | E115: =IFERROR((deso2rate/2000)*B86,"-") -> 0 | F115: 0
A116: CO2 (tons/year) | B116: =IFERROR((deco2rate/2000)*B83,"-") -> 0 | C116: =IFERROR((deco2rate/2000)*B84,"-") -> 0 | D116: =IFERROR((deco2rate/2000)*B85,"-") -> 0 | E116: =IFERROR((deco2rate/2000)*B86,"-") -> 0 | F116: 0
A117: CH4 (tons/year) | B117: =IFERROR((dech4rate/2000)*B83,"-") -> 0 | C117: =IFERROR((dech4rate/2000)*B84,"-") -> 0 | D117: =IFERROR((dech4rate/2000)*B85,"-") -> 0 | E117: =IFERROR((dech4rate/2000)*B86,"-") -> 0 | F117: 0
A118: N2O (tons/year) | B118: =IFERROR((den2orate/2000)*B83,"-") -> 0 | C118: =IFERROR((den2orate/2000)*B84,"-") -> 0 | D118: =IFERROR((den2orate/2000)*B85,"-") -> 0 | E118: =IFERROR((den2orate/2000)*B86,"-") -> 0 | F118: 0
A119: Total GHGs (CO2e tons/year) | B119: =IFERROR(B116+(B117*ch4GWP)+(B118*n2oGWP),"-") -> 0 | C119: =IFERROR(C116+(C117*ch4GWP)+(C118*n2oGWP),"-") -> 0 | D119: =IFERROR(D116+(D117*ch4GWP)+(D118*n2oGWP),"-") -> 0 | E119: =IFERROR(E116+(E117*ch4GWP)+(E118*n2oGWP),"-") -> 0 | F119: 0
A120: Carbon (metric tons/year) | B120: =IFERROR(B116*CO2tocarbon*tonnes,"-") -> 0 | C120: =IFERROR(C116*CO2tocarbon*tonnes,"-") -> 0 | D120: =IFERROR(D116*CO2tocarbon*tonnes,"-") -> 0 | E120: =IFERROR(E116*CO2tocarbon*tonnes,"-") -> 0 | F120: 0
A121: Fuel Consumption (MMBtu/year) | B121: =IFERROR((deheatrate/1000)*B83,"-") -> 0 | C121: =IFERROR((deheatrate/1000)*B84,"-") -> 0 | D121: =IFERROR((deheatrate/1000)*B85,"-") -> 0 | E121: =IFERROR((deheatrate/1000)*B86,"-") -> 0 | F121: 0
A123: Table 9: Emission Rates for Displaced Electricity
B124: CHP System including Duct Burners | C124: =IFERROR(CONCATENATE(CHPname," Alone"),"") ->  | D124: Displaced Electricity Production
A125: NOx (lb/MWh) | B125: =IFERROR(D92*2000/B$66,"-") -> - | C125: =IFERROR(B92*2000/B$66,"-") -> - | D125: =IFERROR(denoxrate,"-") -> 0.904
A126: SO2 (lb/MWh) | B126: =IFERROR(D93*2000/B$66,"-") -> - | C126: =IFERROR(B93*2000/B$66,"-") -> - | D126: =IFERROR(deso2rate,"-") -> 1.026
A127: CO2 (lb/MWh) | B127: =IFERROR(D94*2000/B$66,"-") -> - | C127: =IFERROR(B94*2000/B$66,"-") -> - | D127: =IFERROR(deco2rate,"-") -> 1480.518
A129: Table 10: Emission Rates for Displaced Thermal
B130: Displaced Thermal Production
A131: NOx (lb/MMBtu) | B131: =IFERROR(IF(dsbtu>0,dsnoxtons*2000/dsbtu,0),"-") -> 0
A132: SO2 (lb/MMBtu) | B132: =IFERROR(IF(dsbtu>0,dsso2tons*2000/dsbtu,0),"-") -> 0
A133: CO2 (lb/MMBtu) | B133: =IFERROR(IF(dsbtu>0,dsco2tons*2000/dsbtu,0),"-") -> 0
A135: The results of this analysis have not been reviewed or endorsed by the EPA CHP Partnership.
A136: Figure 1. Conventional Production Energy Flow Schematic | D136: Figure 2. CHP System Energy Flow Schematic
A137: Total Emissions for Conventional Production | E137: Total Emissions for CHP System
A138: =CONCATENATE(" ",TEXT(ROUND(B103+F114,2),"#,###.##")," tons of NOx") -> . tons of NOx | E138: =CONCATENATE(" ",TEXT(ROUND(D92,2),"#,###.##")," tons of NOx") -> 
A139: =CONCATENATE(" ",TEXT(ROUND(B104+F115,2),"#,###.##")," tons of SO2") -> . tons of SO2 | E139: =IFERROR(CONCATENATE(" ",TEXT(ROUND(D93,2),"#,###.##")," tons of SO2"),"") -> 
A140: =CONCATENATE(" ",TEXT(ROUND(B108+F119,0),"#,###")," tons of CO2e") -> tons of CO2e | E140: =IFERROR(CONCATENATE(TEXT(ROUND(D97,0)," #,###")," tons of CO2e"),"") -> 
B143: =IFERROR(CONCATENATE(TEXT(ROUND(B83,0)," #,###")," MWh"),"") -> MWh
A144: =CONCATENATE(TEXT(ROUND(F121,0)," #,###")," MMBtu") -> MMBtu | B144: Electricity to Facility | D144: =IFERROR(CONCATENATE(TEXT(ROUND(D99,0),"#,###")," MMBtu"),"") -> MMBtu
A145: Fuel consumption | D145: =CONCATENATE("Fuel Consumption") -> Fuel Consumption | G145: =IFERROR(CONCATENATE(TEXT(ROUND(B66,0),"#,###")," MWh"),"") -> MWh
A146: Central Station | B146: =IF(B84>0,CONCATENATE(TEXT(ROUND(B84,0)," #,###")," MWh")," No Cooling") -> No Cooling | E146: CHP | G146: Electricity
A147: Power Plant | B147: =IF(B84>0," Electricity to Chiller"," ") ->  | E147: System | G147: to Facility
B149: =IFERROR(CONCATENATE(TEXT(ROUND(B86,0)," #,###")," MWh"),"") -> MWh
B150: Transmission Losses
A151: =IF(AND(OR(chpsulfurinput2=0,ISBLANK(chpsulfurinput)),OR(chpnoxinput1=0,ISBLANK(chpnoxinput1)),OR(chpnoxinput2=0,ISBLANK(chpnoxinput2)),OR(chpnoxinput3=0,ISBLANK(chpnoxinput3)),OR(chpnoxinput4=0,ISBLANK(chpnoxinput4)),OR(stmsulfurinput2=0,ISBLANK(stmsulfurinput2)),OR(stmnoxinput=0,ISBLANK(stmnoxinput)))," Power Plant Emissions",CONCATENATE(" ",TEXT(ROUND(F114,2)," #,###.##")," tons of NOx")) -> Power Plant Emissions | D151: =IF(AND(OR(chpsulfurinput2=0,ISBLANK(chpsulfurinput)),OR(chpnoxinput1=0,ISBLANK(chpnoxinput1)),OR(chpnoxinput2=0,ISBLANK(chpnoxinput2)),OR(chpnoxinput3=0,ISBLANK(chpnoxinput3)),OR(chpnoxinput4=0,ISBLANK(chpnoxinput4)),OR(stmsulfurinput2=0,ISBLANK(stmsulfurinput2)),OR(stmnoxinput=0,ISBLANK(stmnoxinput)))," CHP Emissions",CONCATENATE(" ",TEXT(ROUND(D92,2)," #,###.##")," tons of NOx")) -> CHP Emissions | F151: Thermal Energy from CHP
A152: =IF(AND(OR(chpsulfurinput2=0,ISBLANK(chpsulfurinput)),OR(chpnoxinput1=0,ISBLANK(chpnoxinput1)),OR(chpnoxinput2=0,ISBLANK(chpnoxinput2)),OR(chpnoxinput3=0,ISBLANK(chpnoxinput3)),OR(chpnoxinput4=0,ISBLANK(chpnoxinput4)),OR(stmsulfurinput2=0,ISBLANK(stmsulfurinput2)),OR(stmnoxinput=0,ISBLANK(stmnoxinput)))," ",CONCATENATE(" ",TEXT(ROUND(F115,2)," #,###.##")," tons of SO2")) ->  | E152: =IF(AND(OR(chpsulfurinput2=0,ISBLANK(chpsulfurinput)),OR(chpnoxinput1=0,ISBLANK(chpnoxinput1)),OR(chpnoxinput2=0,ISBLANK(chpnoxinput2)),OR(chpnoxinput3=0,ISBLANK(chpnoxinput3)),OR(chpnoxinput4=0,ISBLANK(chpnoxinput4)),OR(stmsulfurinput2=0,ISBLANK(stmsulfurinput2)),OR(stmnoxinput=0,ISBLANK(stmnoxinput)))," ",IFERROR(CONCATENATE(" ",TEXT(ROUND(D93,2),"#,###.##")," tons of SO2"),"")) -> 
A153: =IF(AND(OR(chpsulfurinput2=0,ISBLANK(chpsulfurinput)),OR(chpnoxinput1=0,ISBLANK(chpnoxinput1)),OR(chpnoxinput2=0,ISBLANK(chpnoxinput2)),OR(chpnoxinput3=0,ISBLANK(chpnoxinput3)),OR(chpnoxinput4=0,ISBLANK(chpnoxinput4)),OR(stmsulfurinput2=0,ISBLANK(stmsulfurinput2)),OR(stmnoxinput=0,ISBLANK(stmnoxinput)))," ",CONCATENATE(" ",TEXT(ROUND(F119,0)," #,###")," tons of CO2e")) ->  | E153: =IF(AND(OR(chpsulfurinput2=0,ISBLANK(chpsulfurinput)),OR(chpnoxinput1=0,ISBLANK(chpnoxinput1)),OR(chpnoxinput2=0,ISBLANK(chpnoxinput2)),OR(chpnoxinput3=0,ISBLANK(chpnoxinput3)),OR(chpnoxinput4=0,ISBLANK(chpnoxinput4)),OR(stmsulfurinput2=0,ISBLANK(stmsulfurinput2)),OR(stmnoxinput=0,ISBLANK(stmnoxinput)))," ",IFERROR(CONCATENATE(" ",TEXT(ROUND(D97,0),"#,###")," tons of CO2e"),"")) -> 
G155: =IFERROR(IF(B67>0,CONCATENATE(TEXT(ROUND(B67,0),"#,###")," MMBtu "),"No "),"") -> No
A156: =IFERROR(IF(B110>0,CONCATENATE(TEXT(ROUND(B110,0)," #,###")," MMBtu")," "),"") ->  | G156: =IF(B67>0,"Thermal to","Thermal") -> Thermal
A157: =IF(B110>0," Fuel consumption"," ") ->  | G157: =IF(B67>0,"Facility","Applications") -> Applications
A158: On-Site Thermal | B158: =IFERROR(IF(B67>0,CONCATENATE(TEXT(ROUND(B67,0)," #,###")," MMBtu")," No"),"") -> No
A159: Production | B159: =IF(B67>0," Thermal to Facility"," Thermal Applications") -> Thermal Applications | E159: Absorption
E160: Chiller | G160: =IF(B74<>" ",CONCATENATE(TEXT(ROUND(B74,0),"#,###")," tons "),"No Cooling") -> No Cooling
G161: =IF(B74<>" ","of Cooling"," ") -> 
D162: =IF(AND(SUM(B23:F29,E30:F31)=0,SUM(B12:F12,E13:F14)=0)," ",IF(AND(SUM(B23:F29,E30:F31)=0,SUM(B12:F12,E13:F14)>0),"Annual Energy Savings from CHP",IF(AND(SUM(B23:F29,E30:F31)>0,SUM(B12:F12,E13:F14)>0),"Annual Energy and Emissions Savings from CHP"," "))) -> 
A163: =IF(AND(OR(chpsulfurinput2=0,ISBLANK(chpsulfurinput)),OR(chpnoxinput1=0,ISBLANK(chpnoxinput1)),OR(chpnoxinput2=0,ISBLANK(chpnoxinput2)),OR(chpnoxinput3=0,ISBLANK(chpnoxinput3)),OR(chpnoxinput4=0,ISBLANK(chpnoxinput4)),OR(stmsulfurinput2=0,ISBLANK(stmsulfurinput2)),OR(stmnoxinput=0,ISBLANK(stmnoxinput)))," On-Site Thermal Emissions",CONCATENATE(" ",TEXT(ROUND(B103,2)," #,###.##")," tons of NOx")) -> On-Site Thermal Emissions | E163: =IF(AND(SUM(B12:F12,E13:F14)=0,SUM(B23:F29,E30:F31)=0)," ",CONCATENATE(" ",TEXT(ROUND(E12,2)," #,###")," MMBtu of fuel")) -> 
A164: =IF(AND(OR(chpsulfurinput2=0,ISBLANK(chpsulfurinput)),OR(chpnoxinput1=0,ISBLANK(chpnoxinput1)),OR(chpnoxinput2=0,ISBLANK(chpnoxinput2)),OR(chpnoxinput3=0,ISBLANK(chpnoxinput3)),OR(chpnoxinput4=0,ISBLANK(chpnoxinput4)),OR(stmsulfurinput2=0,ISBLANK(stmsulfurinput2)),OR(stmnoxinput=0,ISBLANK(stmnoxinput)))," ",CONCATENATE(" ",TEXT(ROUND(B104,2)," #,###.##")," tons of SO2")) ->  | E164: =IF(AND(SUM(B12:F12,E13:F14)=0,SUM(B23:F29,E30:F31)=0)," ",IF(AND(SUM(B12:F12,E13:F14)>0,SUM(B23:F29,E30:F31)=0)," ",CONCATENATE(" ",TEXT(ROUND(E23,2),"#,###.##")," tons of NOx"))) -> 
A165: =IF(AND(OR(chpsulfurinput2=0,ISBLANK(chpsulfurinput)),OR(chpnoxinput1=0,ISBLANK(chpnoxinput1)),OR(chpnoxinput2=0,ISBLANK(chpnoxinput2)),OR(chpnoxinput3=0,ISBLANK(chpnoxinput3)),OR(chpnoxinput4=0,ISBLANK(chpnoxinput4)),OR(stmsulfurinput2=0,ISBLANK(stmsulfurinput2)),OR(stmnoxinput=0,ISBLANK(stmnoxinput)))," ",CONCATENATE(" ",TEXT(ROUND(B108,0)," #,###")," tons of CO2e")) ->  | E165: =IF(AND(SUM(B12:F12,E13:F14)=0,SUM(B23:F29,E30:F31)=0)," ",IF(AND(SUM(B12:F12,E13:F14)>0,SUM(B23:F29,E30:F31)=0)," ",CONCATENATE(" ",TEXT(ROUND(E24,2)," #,###.##")," tons of SO2"))) -> 
E166: =IF(AND(SUM(B12:F12,E13:F14)=0,SUM(B23:F29,E30:F31)=0)," ",IF(AND(SUM(B12:F12,E13:F14)>0,SUM(B23:F29,E30:F31)=0)," ",CONCATENATE(" ",TEXT(ROUND(E25,2)," #,###")," tons of CO2e"))) -> 
A169: =IF(AND(SUM(B23:F29,E30:F31)=0,SUM(B12:F12,E13:F14)=0)," ",IF(SUM(B23:F29,E30:F31)=0,"To calculate emissions savings results, please complete inputs 26-32 on the Inputs page"," ")) -> 

Sheet SubThermalCalculator
B1: Thermal Calculator
B3: Value | C3: Units | D3: Description
B6: Calculate the Power to Heat Ratio by completing the
B7: entries in one of the following boxes:
B8: 0 | C8: MMBtu/hr | D8: Thermal output from a single unit
B9: OR
B11: 0 | C11: lb/hr | D11: Steam consumed in process
B12: 1000 | C12: Btu/lb | D12: Enthalpy (a common value is 1,000 Btu/lb)
B13: =B11*B12/1000000 -> 0 | C13: MMBtu/hr | D13: calculated
B14: OR
B16: 0 | C16: MMBtu/hr | D16: Fuel consumed in thermal process (often a boiler)
B17: 0 | D17: Efficiency of thermal converter
B18: =B16*B17 -> 0 | C18: MMBtu/hr | D18: calculated
B22: Results
B23: =IF(B8>0,B8,IF(B13>0,B13,IF(B18>0,B18,0))) -> 0 | C23: MMBtu/hr | D23: thermal output
B24: =calcbtu*293 -> 0 | C24: kW | D24: thermal output
B25: =IF(chpcapinput>0,chpcapinput," ") ->  | C25: =IF(chpcapinput>0,"kW"," ") ->  | D25: =IF(chpcapinput>0,"kW capacity of CHP system"," ") -> 
B26: =IF(calckw>0,B25/calckw," ") ->  | C26: =IF(chpcapinput>0," "," ") ->  | D26: =IF(chpcapinput>0,"Power to Heat ratio of CHP system"," ") -> 

Sheet SubGenSources
A1: Generation Sources
A4: Existing Generation Sources | F4: Heat Rate
A5: Name | B5: Code | C5: NOx lb/MWh | D5: SO2 lb/MWh | E5: CO2 lb/MWh | F5: Btu/kWh
A6: =LOOKUP(B6,Profiles!$B$11:$B$26,Profiles!$A$11:$A$26) -> EGrid Annual Average | B6: 1 | C6: =LOOKUP(B6,Profiles!B$11:B$26,Profiles!H$11:H$26) -> 0.619 | D6: =LOOKUP(B6,Profiles!B$11:B$26,Profiles!I$11:I$26) -> 0.675 | E6: =LOOKUP(B6,Profiles!B$11:B$26,Profiles!J$11:J$26) -> 947.182 | F6: =LOOKUP(B6,Profiles!B$11:B$26,Profiles!C$11:C$26) -> 5862.040216 | G6: EPA eGRID2018 (released March 202020), http://www.epa.gov/energy/egrid
A7: =LOOKUP(B7,Profiles!$B$11:$B$26,Profiles!$A$11:$A$26) -> EGrid Annual Fossil | B7: 2 | C7: =LOOKUP(B7,Profiles!B$11:B$26,Profiles!H$11:H$26) -> 0.904 | D7: =LOOKUP(B7,Profiles!B$11:B$26,Profiles!I$11:I$26) -> 1.026 | E7: =LOOKUP(B7,Profiles!B$11:B$26,Profiles!J$11:J$26) -> 1480.518 | F7: =LOOKUP(B7,Profiles!B$11:B$26,Profiles!C$11:C$26) -> 8933.960101 | G7: EPA eGRID2018 (released March 202020), http://www.epa.gov/energy/egrid
A8: =LOOKUP(B8,Profiles!$B$11:$B$26,Profiles!$A$11:$A$26) -> EGrid Annual Coal | B8: 4 | C8: =LOOKUP(B8,Profiles!B$11:B$26,Profiles!H$11:H$26) -> 1.45 | D8: =LOOKUP(B8,Profiles!B$11:B$26,Profiles!I$11:I$26) -> 2.128 | E8: =LOOKUP(B8,Profiles!B$11:B$26,Profiles!J$11:J$26) -> 2170.929 | F8: =LOOKUP(B8,Profiles!B$11:B$26,Profiles!C$11:C$26) -> 10584.32143 | G8: EPA eGRID2018 (released March 202020), http://www.epa.gov/energy/egrid
A9: =LOOKUP(B9,Profiles!$B$11:$B$26,Profiles!$A$11:$A$26) -> EGrid Annual Oil | B9: 5 | C9: =LOOKUP(B9,Profiles!B$11:B$26,Profiles!H$11:H$26) -> 3.388 | D9: =LOOKUP(B9,Profiles!B$11:B$26,Profiles!I$11:I$26) -> 4.826 | E9: =LOOKUP(B9,Profiles!B$11:B$26,Profiles!J$11:J$26) -> 1456.668 | F9: =LOOKUP(B9,Profiles!B$11:B$26,Profiles!C$11:C$26) -> 9188.073597 | G9: EPA eGRID2018 (released March 202020), http://www.epa.gov/energy/egrid
A10: =LOOKUP(B10,Profiles!$B$11:$B$26,Profiles!$A$11:$A$26) -> EGrid Annual Natural Gas | B10: 6 | C10: =LOOKUP(B10,Profiles!B$11:B$26,Profiles!H$11:H$26) -> 0.394 | D10: =LOOKUP(B10,Profiles!B$11:B$26,Profiles!I$11:I$26) -> 0.022 | E10: =LOOKUP(B10,Profiles!B$11:B$26,Profiles!J$11:J$26) -> 895.452 | F10: =LOOKUP(B10,Profiles!B$11:B$26,Profiles!C$11:C$26) -> 7538.616962 | G10: EPA eGRID2018 (released March 202020), http://www.epa.gov/energy/egrid
A11: =LOOKUP(B11,Profiles!$B$11:$B$26,Profiles!$A$11:$A$26) -> Coal Boiler 3.8 lb/MWh NOx | B11: 7 | C11: =LOOKUP(B11,Profiles!B$11:B$26,Profiles!H$11:H$26) -> 3.8 | D11: =LOOKUP(B11,Profiles!B$11:B$26,Profiles!I$11:I$26) -> 5 | E11: =LOOKUP(B11,Profiles!B$11:B$26,Profiles!J$11:J$26) -> 1967.45 | F11: =LOOKUP(B11,Profiles!B$11:B$26,Profiles!C$11:C$26) -> 9500 | G11: AP 42, Fifth Edition, Compilation of Air Pollutant Emission Factors, Volume 1: Stationary Point and Area Sources. https://www.epa.gov/air-emissions-factors-and-quantification/ap-42-compilation-air-emission-factors
A12: =LOOKUP(B12,Profiles!$B$11:$B$26,Profiles!$A$11:$A$26) -> Coal Boiler 1.5 lb/MWh NOx | B12: 8 | C12: =LOOKUP(B12,Profiles!B$11:B$26,Profiles!H$11:H$26) -> 1.5 | D12: =LOOKUP(B12,Profiles!B$11:B$26,Profiles!I$11:I$26) -> 2.5 | E12: =LOOKUP(B12,Profiles!B$11:B$26,Profiles!J$11:J$26) -> 1967.45 | F12: =LOOKUP(B12,Profiles!B$11:B$26,Profiles!C$11:C$26) -> 9500 | G12: AP 42, Fifth Edition, Compilation of Air Pollutant Emission Factors, Volume 1: Stationary Point and Area Sources. https://www.epa.gov/air-emissions-factors-and-quantification/ap-42-compilation-air-emission-factors
A13: =LOOKUP(B13,Profiles!$B$11:$B$26,Profiles!$A$11:$A$26) -> Coal Boiler with SCR 0.8 lb/MWh NOx | B13: 9 | C13: =LOOKUP(B13,Profiles!B$11:B$26,Profiles!H$11:H$26) -> 0.8 | D13: =LOOKUP(B13,Profiles!B$11:B$26,Profiles!I$11:I$26) -> 1 | E13: =LOOKUP(B13,Profiles!B$11:B$26,Profiles!J$11:J$26) -> 1967.45 | F13: =LOOKUP(B13,Profiles!B$11:B$26,Profiles!C$11:C$26) -> 9500 | G13: AP 42, Fifth Edition, Compilation of Air Pollutant Emission Factors, Volume 1: Stationary Point and Area Sources. https://www.epa.gov/air-emissions-factors-and-quantification/ap-42-compilation-air-emission-factors
A14: =LOOKUP(B14,Profiles!$B$11:$B$26,Profiles!$A$11:$A$26) -> Gas Boiler 0.77 lb/MWh NOx | B14: 10 | C14: =LOOKUP(B14,Profiles!B$11:B$26,Profiles!H$11:H$26) -> 0.77 | D14: =LOOKUP(B14,Profiles!B$11:B$26,Profiles!I$11:I$26) -> 0.006236893204 | E14: =LOOKUP(B14,Profiles!B$11:B$26,Profiles!J$11:J$26) -> 1285.9 | F14: =LOOKUP(B14,Profiles!B$11:B$26,Profiles!C$11:C$26) -> 11000 | G14: AP 42, Fifth Edition, Compilation of Air Pollutant Emission Factors, Volume 1: Stationary Point and Area Sources. https://www.epa.gov/air-emissions-factors-and-quantification/ap-42-compilation-air-emission-factors
A15: =LOOKUP(B15,Profiles!$B$11:$B$26,Profiles!$A$11:$A$26) -> Gas Turbine Peaker 25 ppm | B15: 11 | C15: =LOOKUP(B15,Profiles!B$11:B$26,Profiles!H$11:H$26) -> 1.102941176 | D15: =LOOKUP(B15,Profiles!B$11:B$26,Profiles!I$11:I$26) -> 0.006803883495 | E15: =LOOKUP(B15,Profiles!B$11:B$26,Profiles!J$11:J$26) -> 1402.8 | F15: =LOOKUP(B15,Profiles!B$11:B$26,Profiles!C$11:C$26) -> 12000 | G15: AP 42, Fifth Edition, Compilation of Air Pollutant Emission Factors, Volume 1: Stationary Point and Area Sources. https://www.epa.gov/air-emissions-factors-and-quantification/ap-42-compilation-air-emission-factors
A16: =LOOKUP(B16,Profiles!$B$11:$B$26,Profiles!$A$11:$A$26) -> Gas combined-cycle 9 ppm | B16: 12 | C16: =LOOKUP(B16,Profiles!B$11:B$26,Profiles!H$11:H$26) -> 0.2647058824 | D16: =LOOKUP(B16,Profiles!B$11:B$26,Profiles!I$11:I$26) -> 0.00453592233 | E16: =LOOKUP(B16,Profiles!B$11:B$26,Profiles!J$11:J$26) -> 935.2 | F16: =LOOKUP(B16,Profiles!B$11:B$26,Profiles!C$11:C$26) -> 8000 | G16: AP 42, Fifth Edition, Compilation of Air Pollutant Emission Factors, Volume 1: Stationary Point and Area Sources. https://www.epa.gov/air-emissions-factors-and-quantification/ap-42-compilation-air-emission-factors
A17: =LOOKUP(B17,Profiles!$B$11:$B$26,Profiles!$A$11:$A$26) -> Gas combined-cycle 3 ppm | B17: 13 | C17: =LOOKUP(B17,Profiles!B$11:B$26,Profiles!H$11:H$26) -> 0.07720588235 | D17: =LOOKUP(B17,Profiles!B$11:B$26,Profiles!I$11:I$26) -> 0.003968932039 | E17: =LOOKUP(B17,Profiles!B$11:B$26,Profiles!J$11:J$26) -> 818.3 | F17: =LOOKUP(B17,Profiles!B$11:B$26,Profiles!C$11:C$26) -> 7000 | G17: AP 42, Fifth Edition, Compilation of Air Pollutant Emission Factors, Volume 1: Stationary Point and Area Sources. https://www.epa.gov/air-emissions-factors-and-quantification/ap-42-compilation-air-emission-factors
A20: Please enter emission rates for the new generation sources:
A21: User Defined Generation Sources | F21: Heat Rate
A22: Name | B22: Code | C22: NOx lb/MWh | D22: SO2 lb/MWh | E22: CO2 lb/MWh | F22: Btu/kWh
A23: User Source 1 | B23: 14 | C23: 0 | D23: 0 | E23: 0 | F23: 0
A24: User Source 2 | B24: 15 | C24: 0 | D24: 0 | E24: 0 | F24: 0
A25: User Source 3 | B25: 16 | C25: 0 | D25: 0 | E25: 0 | F25: 0

Sheet Biomass and Coal Data
A1: Biomass and Coal Data
A2: Note: The data in these tables are not used in any calculations within the tool, but are only provided as a reference for users entering biomass or coal data.
A5: Biomass
A6: Heat Content & Emission Rates for Biomass Fuels
B7: Heat Content (HHV) | D7: CO2 Emission Rate* | F7: NOx Emission Rate** | H7: Sulfur Content**
A8: Biomass Fuel Source
A9: Wood and Wood Residuals | B9: 8740 | C9: Btu/lb | D9: 206.7 | E9: lb/MMBtu | F9: 0.49 | G9: lb/MMBtu | H9: 0.025 | I9: lb/MMBtu
A10: Agricultural Byproducts | B10: 4125 | C10: Btu/lb | D10: 260.4 | E10: lb/MMBtu
A11: Solid Byproducts | B11: 5195 | C11: Btu/lb | D11: 232.5 | E11: lb/MMBtu
A12: Biogas | B12: 655 | C12: Btu/scf | D12: 114.7 | E12: lb/MMBtu
A13: Landfill Gas | B13: 485 | C13: Btu/scf | D13: 114.7 | E13: lb/MMBtu
A14: Biodiesel | B14: 128000 | C14: Btu/gal | D14: 162.7 | E14: lb/MMBtu
A15: Ethanol | B15: 84000 | C15: Btu/gal | D15: 150.8 | E15: lb/MMBtu
A16: *CO2 Emissions data from EPA Mandatory GHG Reporting Rule, 40 CFR 98, Subpart C, Table C-1
A17: **NOX and Sulfur emissions data for dry wood fuels from AP-42. Rates for Agricultural Byproducts and Solid Byproducts depend on the composition of the fuels, and for NOx, the combustion temperature. Gaseous and liquid biomass fuels contain trace amounts of Sulfur, and their NOx content is variable, depending on prime mover, combustion temperature, and post-combustion emission controls.
A19: Coal
B20: Heat Content (HHV) | D20: CO2 Emission Rate
A21: Coal Type
A22: Anthracite | B22: 12545 | C22: Btu/lb | D22: 228.3 | E22: lb/MMBtu
A23: Bituminous | B23: 12465 | C23: Btu/lb | D23: 205.9 | E23: lb/MMBtu
A24: Sub-bituminous | B24: 8625 | C24: Btu/lb | D24: 213.9 | E24: lb/MMBtu
A25: Lignite | B25: 7105 | C25: Btu/lb | D25: 212.5 | E25: lb/MMBtu
A26: Industrial Mixed Use | B26: 11175 | C26: Btu/lb | D26: 207.1 | E26: lb/MMBtu
A27: Commercial Mixed Use | B27: 10695 | C27: Btu/lb | D27: 210 | E27: lb/MMBtu
A28: *Emissions Data from EPA Mandatory GHG Reporting Rule, Part 98, Subpart C, Table C-1
A30: For an expanded list of emissions factors and heat content values, please see Table C-1 in 40 CFR 98:
A31: http://www.ecfr.gov/cgi-bin/text-idx?tpl=/ecfrbrowse/Title40/40cfr98_main_02.tpl

Sheet Displaced Generation Profiles
A2: Selecting an Appropriate Displaced Electricity Generation Profile
A127: More details on eGRID generation sources and displaced grid electricity can be found in Appendix B of EPA's Fuel and CO2 Emissions Savings Calculation Methodology for CHP

Sheet Maps
A2: eGRID2018 Subregions Map
A33: NERC Interconnections Map

Sheet Lists (hidden)
A1: CHP Pick list lookups
A3: A1 | B3: CHP technology
A4: 1 | B4: Recip Engine - Rich Burn | C4: Recip Engine - Rich Burn
A5: 2 | B5: Recip Engine - Lean Burn | C5: Recip Engine - Lean Burn
A6: 3 | B6: Recip Engine - Diesel | C6: Recip Engine - Diesel
A7: 4 | B7: Microturbine | C7: Microturbine
A8: 5 | B8: Combustion Turbine | C8: Combustion Turbine
A9: 6 | B9: Boiler / Steam Turbine | C9: Boiler / Steam Turbine
A10: 7 | B10: Fuel Cell | C10: Fuel Cell
A11: 8 | B11: Other Prime Mover | C11: Other
A12: 9 | B12: Waste Heat to Power (Power Only) | C12: Waste Heat to Power
A13: 10 | B13: Waste Heat to Power (Power and Thermal) | C13: Waste Heat to Power
A17: B3 | B17: Operating profile of CHP | C17: Hours
A18: 1 | B18: 5 days per week, 8 hours per day - 2,080 hours | C18: =52*5*8 -> 2080
A19: 2 | B19: 5 days per week, 16 hours per day - 4,160 hours | C19: =52*5*16 -> 4160
A20: 3 | B20: 7 days per week - 16 hours per day - 5,840 hours | C20: 5840
A21: 4 | B21: 7 days per week, 24 hours per day, 8,760 hours | C21: 8760
A22: 5 | B22: I will enter a value
A24: B5 | B24: Profile of Displaced Electricity
A25: 1 | B25: eGRID All Sources (2018 Data) | C25: E | D25: 1 | E25: Egrid State Average
A26: 2 | B26: eGRID Fossil Fuel (2018 Data) | C26: E | D26: 2 | E26: Egrid State Average
A27: 3 | B27: eGRID Non-Baseload (2018 Data) | C27: E | D27: 3 | E27: Egrid State Average
A28: 4 | B28: eGRID Coal (2018 Data) | C28: E | D28: 4 | E28: Egrid State Average
A29: 5 | B29: eGRID Oil (2018 Data) | C29: E | D29: 5 | E29: Egrid State Average
A30: 6 | B30: eGRID Gas (2018 Data) | C30: E | D30: 6 | E30: Egrid State Average
A31: 7 | B31: Coal Boiler 3.8 lb/MWh NOx | C31: D | D31: 1 | E31: Defined
A32: 8 | B32: Coal Boiler 1.5 lb/MWh NOx | C32: D | D32: 2 | E32: Defined
A33: 9 | B33: Coal Boiler with SCR 0.8 lb/MWh NOx | C33: D | D33: 3 | E33: Defined
A34: 10 | B34: Gas Boiler 0.77 lb/MWh NOx | C34: D | D34: 4 | E34: Defined
A35: 11 | B35: Gas Turbine Peaker 25 ppm | C35: D | D35: 5 | E35: Defined
A36: 12 | B36: Gas combined-cycle 9 ppm | C36: D | D36: 6 | E36: Defined
A37: 13 | B37: Gas combined-cycle 3 ppm | C37: D | D37: 7 | E37: Defined
A38: 14 | B38: User Source 1 | C38: U | D38: 1 | E38: User Profile
A39: 15 | B39: User Source 2 | C39: U | D39: 2 | E39: User Profile
A40: 16 | B40: User Source 3 | C40: U | D40: 3 | E40: User Profile
A42: B8 | B42: Egrid profile
A43: 1 | B43: eGRID State Averages All Sources (2018 Data)
A44: 2 | B44: eGRID State Average Fossil (2018 Data)
A45: 3 | B45: eGRID State Averages Coal (2018 Data)
A46: 4 | B46: eGRID State Averages Oil (2018 Data)
A47: 5 | B47: eGRID State Averages Gas (2018 Data)
A49: D2 | B49: Displaced Thermal Source | C49: CO2 rate | F49: Heat Content
A50: 1 | B50: Existing Gas Boiler | C50: =co2gas -> 116.9 | F50: 1028 | G50: Btu/cf
A51: 2 | B51: Existing Distillate Oil Boiler | C51: =co2oil -> 163.1 | F51: 138000 | G51: Btu/gal
A52: 3 | B52: Existing Residual Oil Boiler | C52: =co2oil -> 163.1 | F52: 150000 | G52: Btu/gal
A53: 4 | B53: Existing Coal Boiler | C53: =co2coal -> 207.1 | F53: =heatcontentcoal -> 11175 | G53: Btu/lb
A54: 5 | B54: New Gas Boiler | C54: =co2gas -> 116.9 | F54: 1028 | G54: Btu/cf
A55: 6 | B55: New Distillate Oil Boiler | C55: =co2oil -> 163.1 | F55: 138000 | G55: Btu/gal
A56: 7 | B56: New Residual Oil Boiler | C56: =co2oil -> 163.1 | F56: 150000 | G56: Btu/gal
A57: 8 | B57: New Coal Boiler | C57: =co2coal -> 207.1 | F57: =heatcontentcoal -> 11175 | G57: Btu/lb
A58: 9 | B58: Electric Resistence or Heat Pump | C58: 0 | F58: 0
A59: 10 | B59: Existing Propane Boiler | C59: 139 | F59: 91600 | G59: Btu/gal
A60: 11 | B60: New Propane Boiler | C60: 139 | F60: 91600 | G60: Btu/gal
A61: 12 | B61: Other | C61: 0 | F61: 138000 | G61: Btu/gal
A64: B6 | B64: State | C64: Region | D64: Grid Loss %
A65: 1 | B65: US Average | C65: 1 | D65: =VLOOKUP(C65,$A$166:$C$172,3) -> 0.0487 | F65: =VLOOKUP(deinput2,A65:D100,3) -> 1 | G65: =VLOOKUP(deinput2,A65:D100,4) -> 0.0487
A66: =A65+1 -> 2 | B66: AKGD - ASCC Alaska Grid | C66: 5 | D66: 0.0512
A67: 3 | B67: AKMS - ASCC Miscellaneous | C67: 5 | D67: 0.0512
A68: 4 | B68: AZNM - WECC Southwest | C68: 3 | D68: 0.048
A69: 5 | B69: CAMX - WECC California | C69: 3 | D69: 0.048
A70: 6 | B70: ERCT - ERCOT All | C70: 4 | D70: 0.0487
A71: 7 | B71: FRCC - FRCC All | C71: 2 | D71: 0.0488
A72: 8 | B72: HIMS - HICC Miscellaneous | C72: 6 | D72: 0.0514
A73: 9 | B73: HIOA - HICC Oahu | C73: 6 | D73: 0.0514
A74: =A73+1 -> 10 | B74: MROE - MRO East | C74: 2 | D74: 0.0488
A75: 11 | B75: MROW - MRO West | C75: 2 | D75: 0.0488
A76: 12 | B76: NEWE - NPCC New England | C76: 2 | D76: 0.0488
A77: 13 | B77: NWPP - WECC Northwest | C77: 2 | D77: 0.0488
A78: 14 | B78: NYCW - NPCC NYC/Westchester | C78: 2 | D78: 0.0488
A79: 15 | B79: NYLI - NPCC Long Island | C79: 2 | D79: 0.0488
A80: 16 | B80: NYUP - NPCC Upstate NY | C80: 2 | D80: 0.0488
A81: =A80+1 -> 17 | B81: RFCE - RFC East | C81: 2 | D81: 0.0488
A82: 18 | B82: RFCM - RFC Michigan | C82: 2 | D82: 0.0488
A83: 19 | B83: RFCW - RFC West | C83: 3 | D83: 0.048
A84: 20 | B84: RMPA - WECC Rockies | C84: 3 | D84: 0.048
A85: 21 | B85: SPNO - SPP North | C85: 2 | D85: 0.0488
A86: 22 | B86: SPSO - SPP South | C86: 2 | D86: 0.0488
A87: 23 | B87: SRMV - SERC Mississippi Valley | C87: 2 | D87: 0.0488
A88: 24 | B88: SRMW - SERC Midwest | C88: 2 | D88: 0.0488
A89: 25 | B89: SRSO - SERC South | C89: 2 | D89: 0.0488
A90: 26 | B90: SRTV - SERC Tennessee Valley | C90: 2 | D90: 0.0488
A91: 27 | B91: SRVC - SERC Virginia/Carolina | C91: 2 | D91: 0.0488
A92: 28 | B92: ASCC | C92: 5 | D92: 0.0512
A93: 29 | B93: FRCC | C93: 2 | D93: 0.0488
A94: 30 | B94: HICC | C94: 6 | D94: 0.0514
A95: 31 | B95: MRO | C95: 2 | D95: 0.0488
A96: 32 | B96: NPCC | C96: 2 | D96: 0.0488
A97: 33 | B97: RFC | C97: 2 | D97: 0.0488
A98: 34 | B98: SERC | C98: 2 | D98: 0.0488
A99: 35 | B99: TRE | C99: 4 | D99: 0.0487
A100: 36 | B100: WECC | C100: 3 | D100: 0.048
A102: A6 | B102: Fuel used in CHP system | C102: CO2 rate | F102: Heat Content
A103: 1 | B103: Natural Gas | C103: =co2gas -> 116.9 | F103: 1028 | G103: Btu/cf
A104: 2 | B104: Diesel Fuel | C104: =co2oil -> 163.1 | F104: 138000 | G104: Btu/gal
A105: 3 | B105: Distillate Oil | C105: =co2oil -> 163.1 | F105: 138000 | G105: Btu/gal
A106: 4 | B106: Coal | C106: =co2coal -> 207.1 | F106: =heatcontentcoal -> 11175 | G106: Btu/lb
A107: 5 | B107: Propane | C107: =co2propane -> 139 | F107: 91600 | G107: Btu/gal
A108: 6 | B108: Woody Biomass | C108: =co2wood -> 206.7 | F108: =heatcontentwood -> 7500 | G108: Btu/lb
A109: 7 | B109: Other Fuel (including renewables) | C109: 0 | F109: 138000 | G109: Btu/gal
A110: 8 | B110: Waste Heat | C110: 0
A113: A7 | B113: Fuel used in STM system | C113: CO2 rate | F113: Heat Content
A114: 1 | B114: Natural Gas | C114: =co2gas -> 116.9 | F114: 1028 | G114: Btu/cf
A115: 2 | B115: Diesel Fuel | C115: =co2oil -> 163.1 | F115: 138000 | G115: Btu/gal
A116: 3 | B116: Distillate Oil | C116: =co2oil -> 163.1 | F116: 138000 | G116: Btu/gal
A117: 4 | B117: Coal | C117: =co2coal -> 207.1 | F117: =heatcontentcoal -> 11175 | G117: Btu/lb
A118: 5 | B118: Propane | C118: =co2propane -> 139 | F118: 91600 | G118: Btu/gal
A119: 6 | B119: Woody Biomass | C119: =co2wood -> 206.7 | F119: =heatcontentwood -> 7500 | G119: Btu/lb
A120: 7 | B120: Other Fuel | C120: 0 | F120: 138000 | G120: Btu/gal
A122: A8 | B122: Does the System provide cooling
A123: 1 | B123: Yes
A124: 2 | B124: No
A126: A9 | B126: CHP: What Cooling Technology Does this System Use?
A127: 1 | B127: =CONCATENATE("Typical ",E127,", COP=",D127) ->  | D127: =CHPTech!B230 ->  | E127: Single-Effect Absorption Chiller
A128: 2 | B128: =CONCATENATE("Typical ",E128,", COP=",D128) ->  | D128: =CHPTech!B231 ->  | E128: Double-Effect Absorption Chiller
A129: 3 | B129: I Will Enter a Value | E129: I Will Enter a Value
A131: C4 | B131: Does the System have duct burners
A132: 1 | B132: Yes
A133: 2 | B133: No
A135: H1 | B135: Does the System Provide Heating Cooling or Both?
A136: 1 | B136: Heating Only
A137: 2 | B137: Cooling Only
A138: 3 | B138: Heating and Cooling
A140: H2 | B140: If Heating and Cooling: Does the System Provide Simultaneous Heating and Cooling?
A141: 1 | B141: Yes
A142: 2 | B142: No
A144: H3 | B144: What is the Efficiency of the Cooling System that is Being Displaced?
A145: 1 | B145: 1.30 kW/ton (COP=2.7) 1990 Vintage, Air-cooled with condenser, <150 tons
A146: 2 | B146: 1.41 kW/ton (COP=2.5) 1990 Vintage, Air-cooled with condenser, >150 tons
A147: 3 | B147: 0.93 kW/ton (COP=3.8) 1990 Vintage, Water-cooled, <150 tons
A148: 4 | B148: 0.84 kW/ton (COP=4.2) 1990 Vintage, Water-cooled, 150-300 tons
A149: 5 | B149: 0.75 kW/ton (COP=4.7) 1990 Vintage, Water-cooled, >300 tons
A150: 6 | B150: 1.25 kW/ton (COP=2.8) 2010 ASHRAE Standard, Air-cooled with condenser
A151: 7 | B151: 0.78 kW/ton (COP=4.54) 2010 ASHRAE Standard, Water-cooled, positive displacement <150 tons
A152: 8 | B152: 0.68 kW/ton (COP=5.17) 2010 ASHRAE Standard, Water-cooled, positive displacement 150-300 tons
A153: 9 | B153: 0.62 kW/ton (COP=5.67) 2010 ASHRAE Standard, Water-cooled, positive displacement >300 tons
A154: 10 | B154: 0.63 kW/ton (COP=5.55) 2010 ASHRAE Standard, Water-cooled, centrifugal <300 tons
A155: 11 | B155: 0.58 kW/ton (COP=6.11) 2010 ASHRAE Standard, Water-cooled, centrifugral >300 tons
A156: 12 | B156: 1.19 kW/ton (COP=2.96) 2015 ASHRAE Standard, Air-cooled with condenser
A157: 13 | B157: 1.72 kW/ton (COP=4.88) 2015 ASHRAE Standard, Water-cooled, positive displacement <150 tons
A158: 14 | B158: 0.66 kW/ton (COP=5.33) 2015 ASHRAE Standard, Water-cooled, positive displacement 150-300 tons
A159: 15 | B159: 0.61 kW/ton (COP=5.77) 2015 ASHRAE Standard, Water-cooled, positive displacement >300 tons
A160: 16 | B160: 0.70 kW/ton (COP=5.06) 2015 ASHRAE Standard, Water-cooled, centrifugal <150 tons
A161: 17 | B161: 0.64 kW/ton (COP=5.54) 2015 ASHRAE Standard, Water-cooled, centrifugal 150-300 tons
A162: 18 | B162: 0.60 kW/ton (COP=5.91) 2015 ASHRAE Standard, Water-cooled, centrifugral >300 tons
A163: 19 | B163: I will enter a value
A165: B7 | B165: US Interconnect Power Grid Region | C165: T&D Loss %
A166: 1 | B166: US Average | C166: 0.0487 | E166: https://www.epa.gov/sites/production/files/2020-01/documents/egrid2018_technical_support_document.pdf
A167: 2 | B167: Eastern Interconnect | C167: 0.0488
A168: 3 | B168: Western Interconnect | C168: 0.048
A169: 4 | B169: ERCOT | C169: 0.0487
A170: 5 | B170: Alaska | C170: 0.0512
A171: 6 | B171: Hawaii | C171: 0.0514
A172: 7 | B172: I will enter a value

Sheet STMTech (hidden)
A1: Displaced Thermal Calculation
A3: Selected Thermal Source
A4: =stminput1 -> 0 | B4: =LOOKUP($A4,$A7:$A23,B7:B23) ->  | C4: =LOOKUP($A4,$A7:$A23,C7:C23) ->  | D4: =LOOKUP($A4,$A7:$A23,D7:D23) -> 
B6: Fuel used in displaced boiler | C6: Boiler Eff | D6: NOx lb/MMBtu | E6: Sulfur content | F6: SO2 lb/MMBtu | G6: CO2 lb/MMBtu | I6: Fuel MMBtu/ton | J6: CH4 lb/MMBtu | K6: N2O lb/MMBtu
A7: 1 | B7: Existing - Natural Gas | C7: 0.8 | D7: 0.1 | E7: =ngsulfur -> 7.096743747e-07 | F7: =E7*2*2000/I7 -> 0.0005851361868 | G7: =co2gas -> 116.9 | I7: =2000*ngbtu/(ngdensity*1000000) -> 4.851344974 | J7: 0.002204 | K7: 0.0002204
A8: 2 | B8: Existing - Distillate Oil | C8: 0.8 | D8: 0.15 | E8: 0.000487 | F8: 0.05108626639 | G8: =co2oil -> 163.1 | I8: =Factors!$A$16*42*2000/(Factors!$A$17*1000000) -> 38.13157895 | J8: 0.006612 | K8: 0.0013224
A9: 3 | B9: Existing - Residual Oil | C9: 0.83 | D9: 0.2 | E9: 0.001461 | F9: 0.1535209524 | G9: =co2oil -> 163.1 | I9: =Factors!$A$19*42*2000/(Factors!$A$20*1000000) -> 38.06646526 | J9: 0.006612 | K9: 0.0013224
A10: 4 | B10: Existing - Coal | C10: 0.85 | D10: 0.4 | E10: 0.01 | F10: 1.903402332 | G10: =co2coal -> 207.1 | I10: =Factors!$A$55 -> 21.015 | J10: 0.024244 | K10: 0.0035264
A11: 5 | B11: New - Natural Gas | C11: 0.8 | D11: 0.05 | E11: =ngsulfur -> 7.096743747e-07 | F11: 0.0005851361868 | G11: =co2gas -> 116.9 | I11: =2000*ngbtu/(ngdensity*1000000) -> 4.851344974 | J11: 0.002204 | K11: 0.0002204
A12: 6 | B12: New - Distillate Oil | C12: 0.8 | D12: 0.05 | E12: 0.000487 | F12: 0.05108626639 | G12: =co2oil -> 163.1 | I12: =Factors!$A$16*42*2000/(Factors!$A$17*1000000) -> 38.13157895 | J12: 0.006612 | K12: 0.0013224
A13: 7 | B13: New - Residual Oil | C13: 0.83 | D13: 0.1 | E13: 0.000974 | F13: 0.1023473016 | G13: =co2oil -> 163.1 | I13: =Factors!$A$19*42*2000/(Factors!$A$20*1000000) -> 38.06646526 | J13: 0.006612 | K13: 0.0013224
A14: 8 | B14: New - Coal | C14: 0.85 | D14: 0.1 | E14: 0.01 | F14: 1.903402332 | G14: =co2coal -> 207.1 | I14: =Factors!$A$55 -> 21.015 | J14: 0.024244 | K14: 0.0035264
A15: 9 | B15: Electric Resistence or Heat Pump | C15: 1.2 | D15: 0 | E15: 0 | F15: 0 | G15: 0 | I15: 0 | J15: 0 | K15: 0
A16: 10 | B16: Existing - Propane | C16: 0.8 | D16: 0.1 | E16: =ngsulfur -> 7.096743747e-07 | F16: 0.000584 | G16: =co2propane -> 139 | I16: =(Factors!A45/propDensity*2000)/1000000 -> 43.61904762 | J16: 0.002204 | K16: 0.0002204
A17: 11 | B17: New - Propane | C17: 0.8 | D17: 0.1 | E17: =ngsulfur -> 7.096743747e-07 | F17: 0.000584 | G17: =co2propane -> 139 | I17: =(Factors!A45/propDensity*2000)/1000000 -> 43.61904762 | J17: 0.002204 | K17: 0.0002204
A18: 12 | B18: Other | C18: 0.8 | D18: =stmnoxinput -> 0 | E18: =stmsulfurinput1 -> 0 | F18: 0 | G18: 160 | I18: =Factors!$A$19*42*2000/(Factors!$A$20*1000000) -> 38.06646526 | J18: 0.006612 | K18: 0.0013224
A22: Boiler Efficiency
A23: =chpfuelinput -> 0 | B23: =LOOKUP($A23,$A26:$A32,B26:B32) -> 
C25: Boiler Eff | D25: NOx lb/MMBtu | E25: Sulfur Content | F25: SO2 lb/MMBtu | G25: CO2 lb/MMBtu | H25: CH4 lb/MMBtu | I25: N2O lb/MMBtu
A26: 1 | B26: Natural Gas | C26: 0.8 | D26: 0.1 | E26: 1e-06 | F26: 0.000584 | G26: =co2gas -> 116.9 | H26: =ch4gas -> 0.002204 | I26: =n2ogas -> 0.0002204
A27: 2 | B27: Diesel Fuel | C27: 0.8 | D27: 0.15 | E27: 0.000487 | F27: 0.05 | G27: =co2oil -> 163.1 | H27: =ch4oil -> 0.006612 | I27: =n2ooil -> 0.0013224
A28: 3 | B28: Distillate Oil | C28: 0.8 | D28: 0.15 | E28: 0.000487 | F28: 0.05 | G28: =co2oil -> 163.1 | H28: =ch4oil -> 0.006612 | I28: =n2ooil -> 0.0013224
A29: 4 | B29: Coal | C29: 0.85 | D29: 0.1 | E29: 0.01 | F29: 1.9 | G29: =co2coal -> 207.1 | H29: =ch4coal -> 0.024244 | I29: =n2ocoal -> 0.0035264
A30: 5 | B30: Propane | C30: 0.8 | D30: 0.1 | E30: 1e-06 | F30: 0.000584 | G30: =co2gas -> 116.9 | H30: =ch4gas -> 0.002204 | I30: =n2ogas -> 0.0002204
A31: 6 | B31: Woody Biomass | C31: 0.83 | D31: 0.165 | E31: 1e-05 | F31: 0.00825 | G31: =co2wood -> 206.7 | H31: =CH4wood -> 0.07 | I31: =N2Owood -> 0.009
A32: 7 | B32: Other | C32: 0.8 | D32: 0.1 | E32: 1e-06 | F32: 0 | G32: =co2input -> 0 | H32: 0 | I32: 0

Sheet CHPTech (hidden)
A1: CHP Technologies
B3: Selected
B4: Technology
B5: =chptechinput -> 0 | C5: 1 | D5: 2 | E5: 3 | F5: 4 | G5: 5 | H5: 6 | I5: 7 | J5: 8 | K5: 9
B6: =LOOKUP(B$5,C$5:W$5,C6:W6) ->  | C6: =B30 -> Recip Rich Burn | D6: =B54 -> Recip Lean Burn | E6: =B78 -> Recip Diesel | F6: =B102 -> Microturbine | G6: =B126 -> Combustion Turbine | H6: =B150 -> Boiler / Steam Turbine | I6: =B174 -> Fuel Cell | J6: =B198 -> Other | K6: Waste Heat to Power
A7: Capacity (kW) | C7: =B31 -> 0 | D7: =B55 -> 0 | E7: =B79 -> 0 | F7: =B103 -> 0 | G7: =B127 -> 0 | H7: 0 | I7: 0 | J7: 0 | K7: =chpcapinput -> 0
A8: CapLow (kW) | C8: =B32 -> 5 | D8: =B56 -> 500 | E8: =B80 -> 90 | F8: =B104 -> 30 | G8: =B128 -> 1000 | H8: 100 | I8: 5 | J8: 0 | K8: 50
A9: CapHigh (kW) | C9: =B33 -> 1200 | D9: =B57 -> 5000 | E9: =B81 -> 1600 | F9: =B105 -> 1000 | G9: =B129 -> 40000 | H9: 15000 | I9: 3000 | J9: 0 | K9: 10000
A10: Misc | C10: =B34 -> Catalyst | D10: =B58 -> 0 | E10: =B82 -> 0 | F10: =B106 ->  | G10: =B130 -> 0 | H10: 0 | I10: ClearEdge SOFC | J10: 0
A11: Fuel | C11: Natural Gas | D11: Natural Gas | E11: Diesel | F11: Natural gas | G11: Natural gas | H11: Natural Gas | I11: Natural Gas | K11: Waste Heat
A13: % | B13: =LOOKUP(B$5,C$5:W$5,C13:W13) ->  | C13: 0.2299966296 | D13: 0.3495901639 | E13: 0.292791762 | F13: 0.2253632761 | G13: 0.2139855754 | H13: =B157 -> 0 | I13: =B181 -> 0.3000879507 | J13: =B205 -> 0 | K13: 0
A14: Btu/kWh HHV | C14: 14835 | D14: 9760 | E14: 11653.33333 | F14: 15140 | G14: 15945 | H14: =B158 -> 0 | I14: 11370 | J14: 0
A15: Btu/kWh LHV | C15: 13425.33937 | D15: 8832.579186 | E15: 10614.47028 | F15: 13701.35747 | G15: 14429.86425 | H15: =B159 -> 0 | I15: 10289.59276 | J15: 0
A16: P/H ratio | C16: 0.4 | D16: 0.79 | E16: 0.66 | F16: 0.51 | G16: 0.44 | H16: =B160 -> 0 | I16: 0.85 | J16: 0
A17: NOx ppm | C17: 0 | D17: 0 | E17: 0 | F17: 12 | G17: 42 | H17: =B161 -> 0 | I17: 3 | J17: 0 | K17: 0
A18: NOx gm/hp-hr | C18: 0.15 | D18: 0.7 | E18: 3 | F18: 0 | G18: 0 | H18: 0 | I18: 0 | J18: 0 | K18: 0
A19: NOx lb/MMBtu | C19: 0.03144590495 | D19: 0.2230532787 | E19: 0.8006292906 | F19: 0.04227212682 | G19: 0.1544117647 | I19: 0.002638522427 | J19: 0 | K19: 0
A20: NOx lb/MWh | C20: 0.4665 | D20: 2.177 | E20: 9.33 | F20: 0.64 | G20: 2.462095588 | H20: 0 | I20: 0.03 | J20: 0 | K20: 0
A21: SO2 lb/MMBtu | C21: 0.0006 | D21: 0.0006 | E21: 0 | F21: 0 | G21: 0.0006 | I21: 0.0001 | J21: 0 | K21: 0
A22: SO2 lb/MWh | C22: 0.008901 | D22: 0.005856 | E22: 0 | F22: 0 | G22: 0.009567 | H22: 0 | I22: 0.001137 | J22: 0 | K22: 0
A23: CO2 lb/MWh | C23: 1734.2115 | D23: 1140.944 | E23: 0 | F23: 0 | G23: 0 | H23: 0 | I23: 1360 | J23: 0 | K23: 0
B27: Detailed
B28: Recip Rich Burn
B29: =IF(chptechinput=1,1,0) -> 0 | C29: 1 | D29: 1 | E29: 1 | F29: 1 | G29: 1 | H29: 1 | I29: 1
B30: =IF(B$31*chptechcaplow<B$32,C30,IF(B$31*chptechcaphigh>B$33,I30,LOOKUP(B$31,C$31:T$31,C30:T30))) -> Recip Rich Burn | C30: Recip Rich Burn | D30: Recip Rich Burn | E30: Recip Rich Burn | F30: Recip Rich Burn | G30: Recip Rich Burn | H30: Recip Rich Burn | I30: Recip Rich Burn
A31: Capacity (kW) | B31: =chpcapinput -> 0 | C31: 5 | D31: 50 | E31: 100 | F31: 150 | G31: 300 | H31: 800 | I31: 1200
A32: CapLow (kW) | B32: =chptechcaplow*MIN(C31:AW31) -> 5
A33: CapHigh (kW) | B33: =chptechcaphigh*MAX(C31:AW31) -> 1200
A34: Misc | B34: Catalyst | C34: Catalyst | D34: Catalyst | E34: Catalyst | F34: Catalyst | G34: Catalyst | H34: Catalyst | I34: Catalyst
A35: Fuel | B35: Natural Gas | C35: Natural Gas | D35: Natural Gas | E35: Natural Gas | F35: Natural Gas | G35: Natural Gas | H35: Natural Gas | I35: Natural Gas
A37: % | B37: =IF(B$31*chptechcaplow<B$32,C37,IF(B$31*chptechcaphigh>B$33,I37,LOOKUP(B$31,C$31:T$31,C37:T37))) -> 0.2299966296 | C37: =3412/C38 -> 0.2299966296 | D37: 0.2787581699 | E37: 0.2843333333 | F37: 0.3040998217 | G37: 0.3176612978 | H37: 0.324952381 | I37: 0.3356946084
A38: Btu/kWh HHV | B38: 14835 | C38: 14835 | D38: 12240 | E38: 12000 | F38: 11220 | G38: 10741 | H38: 10500 | I38: 10164
A39: Btu/kWh LHV | B39: 13425.33937 | C39: =C38/1.105 -> 13425.33937 | D39: =D38/1.105 -> 11076.92308 | E39: =E38/1.105 -> 10859.72851 | F39: =F38/1.105 -> 10153.84615 | G39: =G38*0.91 -> 9774.31 | H39: =H38*0.91 -> 9555 | I39: =I38*0.91 -> 9249.24
A40: P/H ratio | B40: 0.4 | C40: 0.4 | D40: 0.63 | E40: 0.52 | F40: 0.69 | G40: 0.71 | H40: 0.72 | I40: 0.75
A41: NOx ppm | B41: 0
A42: NOx gm/hp-hr | B42: 0.15 | C42: 0.15 | D42: 0.15 | E42: 0.15 | F42: 0.15 | G42: 0.15 | H42: 0.15 | I42: 0.15
A43: NOx lb/MMBtu | B43: 0.03144590495 | C43: =C44*1000/C38 -> 0.03144590495 | D43: 0.0381127451 | E43: 0.038875 | F43: 0.04157754011 | G43: 0.04343171027 | H43: 0.04442857143 | I43: 0.04589728453
A44: NOx lb/MWh | B44: 0.4665 | C44: =C42*gmhphrlbMWh -> 0.4665 | D44: 0.4665 | E44: 0.4665 | F44: 0.4665 | G44: 0.4665 | H44: 0.4665 | I44: 0.4665
A45: SO2 lb/MMBtu | B45: 0.0006 | C45: 0.0006 | D45: 0.0006 | E45: 0.0006 | F45: 0.0006 | G45: 0.0006 | H45: 0.0006 | I45: =0.000584/1.03 -> 0.0005669902913
A46: SO2 lb/MWh | B46: 0.008901 | C46: =C45*C38/1000 -> 0.008901 | D46: 0.007344 | E46: 0.0072 | F46: 0.006732 | G46: 0.0064446 | H46: 0.0063 | I46: 0.00576288932
A47: CO2 lb/MWh | B47: 1734.2115 | C47: =co2gas*C38/1000 -> 1734.2115 | D47: 1430.856 | E47: 1402.8 | F47: 1311.618 | G47: 1255.6229 | H47: 1227.45 | I47: 1188.1716
B51: Detailed
B52: Recip Lean Burn
B53: =IF(chptechinput=2,2,0) -> 0 | C53: 2 | D53: 2 | E53: 2
B54: =IF(B$55*chptechcaplow<B$56,C54,IF(B$55*chptechcaphigh>B$57,E54,LOOKUP(B$55,C$55:S$55,C54:S54))) -> Recip Lean Burn | C54: Recip Lean Burn | D54: Recip Lean Burn | E54: Recip Lean Burn
A55: Capacity (kW) | B55: =chpcapinput -> 0 | C55: 500 | D55: 3000 | E55: 5000
A56: CapLow (kW) | B56: =chptechcaplow*MIN(C55:AV55) -> 500
A57: CapHigh (kW) | B57: =chptechcaphigh*MAX(C55:AV55) -> 5000
A58: Misc | B58: =IF(B$55*chptechcaplow<B$56,C58,IF(B$55*chptechcaphigh>B$57,E58,LOOKUP(B$55,C$55:S$55,C58:S58))) -> 0
A59: Fuel | B59: =IF(B$55*chptechcaplow<B$56,C59,IF(B$55*chptechcaphigh>B$57,E59,LOOKUP(B$55,C$55:S$55,C59:S59))) -> Natural Gas | C59: Natural Gas | D59: Natural Gas | E59: Natural Gas
A61: % | B61: =IF(B$55*chptechcaplow<B$56,C61,IF(B$55*chptechcaphigh>B$57,E61,LOOKUP(B$55,C$55:S$55,C61:S61))) -> 0.3495901639 | C61: =3412/C62 -> 0.3495901639 | D61: =3412/D62 -> 0.3594605984 | E61: =3412/E62 -> 0.3895866636
A62: Btu/kWh HHV | B62: 9760 | C62: 9760 | D62: 9492 | E62: 8758
A63: Btu/kWh LHV | B63: 8832.579186 | C63: =C62/1.105 -> 8832.579186 | D63: =D62/1.105 -> 8590.045249 | E63: =E62/1.105 -> 7925.791855
A64: P/H ratio | B64: 0.79 | C64: 0.79 | D64: 0.97 | E64: 1.12
A65: NOx ppm | B65: 0
A66: NOx gm/hp-hr | B66: 0.7 | C66: 0.7 | D66: 0.7 | E66: 0.5
A67: NOx lb/MMBtu | B67: 0.2230532787 | C67: =C68*1000/C62 -> 0.2230532787 | D67: =D68*1000/D62 -> 0.2293510324 | E67: =E68*1000/E62 -> 0.1775519525
A68: NOx lb/MWh | B68: 2.177 | C68: =C66*gmhphrlbMWh -> 2.177 | D68: =D66*gmhphrlbMWh -> 2.177 | E68: =E66*gmhphrlbMWh -> 1.555
A69: SO2 lb/MMBtu | B69: 0.0006 | C69: 0.0006 | D69: 0.0006 | E69: 0.0006
A70: SO2 lb/MWh | B70: 0.005856 | C70: =C69*C62/1000 -> 0.005856 | D70: =D69*D62/1000 -> 0.0056952 | E70: =E69*E62/1000 -> 0.0052548
A71: CO2 lb/MWh | B71: 1140.944 | C71: =co2gas*C62/1000 -> 1140.944 | D71: =co2gas*D62/1000 -> 1109.6148 | E71: =co2gas*E62/1000 -> 1023.8102
B75: Detailed
B76: Recip Diesel
B77: =IF(chptechinput=3,3,0) -> 0 | C77: 3 | D77: 3 | E77: 3 | F77: 3 | G77: 3 | H77: 3 | I77: 3
B78: =IF(B$79*chptechcaplow<B$80,C78,IF(B$79*chptechcaphigh>B$81,I78,LOOKUP(B$79,C$79:C$79,C78:C78))) -> Recip Diesel | C78: Recip Diesel | D78: Recip Diesel | E78: Recip Diesel | F78: Recip Diesel | G78: Recip Diesel | H78: Recip Diesel | I78: Recip Diesel
A79: Capacity (kW) | B79: =chpcapinput -> 0 | C79: 90 | D79: 160 | E79: 320 | F79: 545 | G79: 680 | H79: 1100 | I79: 1600
A80: CapLow (kW) | B80: =chptechcaplow*MIN(C79:AC79) -> 90
A81: CapHigh (kW) | B81: =chptechcaphigh*MAX(C79:AC79) -> 1600
A82: Misc | B82: =IF(B$79*chptechcaplow<B$80,C82,IF(B$79*chptechcaphigh>B$81,I82,LOOKUP(B$79,C$79:C$79,C82:C82))) -> 0
A83: Fuel | B83: =IF(B$79*chptechcaplow<B$80,C83,IF(B$79*chptechcaphigh>B$81,I83,LOOKUP(B$79,C$79:C$79,C83:C83))) -> Diesel | C83: Diesel | D83: Diesel | E83: Diesel | F83: Diesel | G83: Diesel | H83: Diesel | I83: Diesel
A85: % | B85: =IF(B$79*chptechcaplow<B$80,C85,IF(B$79*chptechcaphigh>B$81,I85,LOOKUP(B$79,C$79:C$79,C85:C85))) -> 0.292791762 | C85: =3412/C86 -> 0.292791762 | D85: =3412/D86 -> 0.3139636531 | E85: 0.3470124587 | F85: 0.3310793006 | G85: 0.3431174209 | H85: 0.3536684194 | I85: 0.3541577466
A86: Btu/kWh HHV | B86: 11653.33333 | C86: 11653.33333 | D86: 10867.5 | E86: 9832.5 | F86: 10305.68807 | G86: 9944.117647 | H86: 9647.454545 | I86: 9634.125
A87: Btu/kWh LHV | B87: 10614.47028 | C87: =C86*ppmbtudlhv/ppmbtud -> 10614.47028 | D87: 9898.69186 | E87: 8955.959302 | F87: 9386.963943 | G87: 9057.626539 | H87: 8787.410148 | I87: 8775.268895
A88: P/H ratio | B88: 0.66 | C88: 0.66 | D88: 0.7 | E88: 0.7 | F88: 0.72 | G88: 0.72 | H88: 0.84 | I88: 0.84
A89: NOx ppm | B89: 0
A90: NOx gm/hp-hr | B90: 3 | C90: 3 | D90: 3 | E90: 3 | F90: 3 | G90: 3 | H90: 3 | I90: 3
A91: NOx lb/MMBtu | B91: 0.8006292906 | C91: =C92*1000/C86 -> 0.8006292906 | D91: =D92*1000/D86 -> 0.8585231194 | E91: 0.9488939741 | F91: 0.9053252858 | G91: 0.9382431233 | H91: 0.9670944762 | I91: 0.968432525
A92: NOx lb/MWh | B92: 9.33 | C92: =C90*gmhphrlbMWh -> 9.33 | D92: =D90*gmhphrlbMWh -> 9.33 | E92: 9.33 | F92: 9.33 | G92: 9.33 | H92: 9.33 | I92: 9.33
A93: SO2 lb/MMBtu | B93: 0
A94: SO2 lb/MWh | B94: 0 | C94: =C93*C86/1000 -> 0 | D94: =D93*D86/1000 -> 0 | E94: 0 | F94: 0 | G94: 0 | H94: 0 | I94: 0
A95: CO2 lb/MWh | B95: 0
B99: Detailed
B100: Microturbine
B101: =IF(chptechinput=4,4,0) -> 0 | C101: 4 | D101: 4 | E101: 4 | F101: 4
B102: =IF(B$103*chptechcaplow<B$104,C102,IF(B$103*chptechcaphigh>B$105,F102,LOOKUP(B$103,C$103:X$103,C102:X102))) -> Microturbine | C102: Microturbine | D102: Microturbine | E102: Microturbine | F102: Microturbine
A103: Capacity (kW) | B103: =chpcapinput -> 0 | C103: 30 | D103: 65 | E103: 200 | F103: 1000
A104: CapLow (kW) | B104: =chptechcaplow*MIN(C103:BA103) -> 30
A105: CapHigh (kW) | B105: =chptechcaphigh*MAX(C103:BA103) -> 1000
A106: Misc | B106: =LOOKUP(B$103,C$103:X$103,C106:X106) -> 
A107: Fuel | B107: =IF(B$103*chptechcaplow<B$104,C107,IF(B$103*chptechcaphigh>B$105,F107,LOOKUP(B$103,C$103:X$103,C107:X107))) -> Natural gas | C107: Natural gas | D107: Natural gas | E107: Natural gas | F107: Natural gas
A109: % | B109: =IF(B$103*chptechcaplow<B$104,C109,IF(B$103*chptechcaphigh>B$105,F109,LOOKUP(B$103,C$103:X$103,C109:X109))) -> 0.2253632761 | C109: =3412/C110 -> 0.2253632761 | D109: =3412/D110 -> 0.2616765089 | E109: =3412/E110 -> 0.2998242531 | F109: =3412/F110 -> 0.2998242531
A110: Btu/kWh HHV | B110: 15140 | C110: 15140 | D110: 13039 | E110: 11380 | F110: 11380
A111: Btu/kWh LHV | B111: 13701.35747 | C111: =C110/1.105 -> 13701.35747 | D111: =D110/1.105 -> 11800 | E111: =E110/1.105 -> 10298.64253 | F111: =F110/1.105 -> 10298.64253
A112: P/H ratio | B112: 0.51 | C112: 0.51 | D112: 0.54 | E112: 0.71 | F112: 0.71
A113: NOx ppm | B113: 12 | C113: 12 | D113: 9 | E113: 9 | F113: 9
A114: NOx gm/hp-hr | B114: 0
A115: NOx lb/MMBtu | B115: 0.04227212682 | C115: =C116*1000/C110 -> 0.04227212682 | D115: =D116*1000/D110 -> 0.03527877905 | E115: =E116*1000/E110 -> 0.03514938489 | F115: =F116*1000/F110 -> 0.03514938489
A116: NOx lb/MWh | B116: 0.64 | C116: 0.64 | D116: 0.46 | E116: 0.4 | F116: 0.4
A117: SO2 lb/MMBtu | B117: 0
A118: SO2 lb/MWh | B118: 0 | C118: =C117*C110/1000 -> 0 | D118: =D117*D110/1000 -> 0 | E118: =E117*E110/1000 -> 0 | F118: =F117*F110/1000 -> 0
A119: CO2 lb/MWh | B119: 0
B123: Detailed
B124: Combustion Turbine
B125: =IF(chptechinput=5,5,0) -> 0 | C125: 5 | D125: 5 | E125: 5 | F125: 5 | G125: 5
B126: =IF(B$127*chptechcaplow<B$128,C126,IF(B$127*chptechcaphigh>B$129,F126,LOOKUP(B$127,C$127:X$127,C126:X126))) -> Combustion Turbine | C126: Combustion Turbine | D126: Combustion Turbine | E126: Combustion Turbine | F126: Combustion Turbine | G126: Combustion Turbine
A127: Capacity (kW) | B127: =chpcapinput -> 0 | C127: 1000 | D127: 5000 | E127: 10000 | F127: 25000 | G127: 40000
A128: CapLow (kW) | B128: =chptechcaplow*MIN(C127:BA127) -> 1000
A129: CapHigh (kW) | B129: =chptechcaphigh*MAX(C127:BA127) -> 40000
A130: Misc | B130: =IF(B$127*chptechcaplow<B$128,C130,IF(B$127*chptechcaphigh>B$129,F130,LOOKUP(B$127,C$127:X$127,C130:X130))) -> 0
A131: Fuel | B131: =IF(B$127*chptechcaplow<B$128,C131,IF(B$127*chptechcaphigh>B$129,F131,LOOKUP(B$127,C$127:X$127,C131:X131))) -> Natural gas | C131: Natural gas | D131: Natural gas | E131: Natural gas | F131: Natural gas | G131: Natural gas
A133: % | B133: =IF(B$127*chptechcaplow<B$128,C133,IF(B$127*chptechcaphigh>B$129,F133,LOOKUP(B$127,C$127:X$127,C133:X133))) -> 0.2139855754 | C133: =3412/C134 -> 0.2139855754 | D133: =3412/D134 -> 0.2890055904 | E133: =3412/E134 -> 0.2910021322 | F133: =3412/F134 -> 0.3430869784 | G133: =3412/G134 -> 0.3700650759
A134: Btu/kWh HHV | B134: 15945 | C134: 15945 | D134: 11806 | E134: 11725 | F134: 9945 | G134: 9220
A135: Btu/kWh LHV | B135: 14429.86425 | C135: =C134/1.105 -> 14429.86425 | D135: =D134/1.105 -> 10684.1629 | E135: =E134/1.105 -> 10610.85973 | F135: =F134/1.105 -> 9000 | G135: =G134/1.105 -> 8343.891403
A136: P/H ratio | B136: 0.44 | C136: 0.44 | D136: 0.62 | E136: 0.69 | F136: 0.94 | G136: 1.07
A137: NOx ppm | B137: 42 | C137: 42 | D137: 25 | E137: 25 | F137: 15 | G137: 15
A138: NOx gm/hp-hr | B138: 0
A139: NOx lb/MMBtu | B139: 0.1544117647 | C139: =C140*1000/C134 -> 0.1544117647 | D139: =D140*1000/D134 -> 0.09191176471 | E139: =E140*1000/E134 -> 0.09191176471 | F139: =F140*1000/F134 -> 0.05514705882 | G139: =G140*1000/G134 -> 0.05514705882
A140: NOx lb/MWh | B140: 2.462095588 | C140: =(C137/272)*C134/1000 -> 2.462095588 | D140: =(D137/272)*D134/1000 -> 1.085110294 | E140: =(E137/272)*E134/1000 -> 1.077665441 | F140: =(F137/272)*F134/1000 -> 0.5484375 | G140: =(G137/272)*G134/1000 -> 0.5084558824
A141: SO2 lb/MMBtu | B141: 0.0006 | C141: 0.0006 | D141: 0.0006 | E141: 0.0006 | F141: 0.0006 | G141: 0.0006
A142: SO2 lb/MWh | B142: 0.009567 | C142: =C141*C134/1000 -> 0.009567 | D142: =D141*D134/1000 -> 0.0070836 | E142: =E141*E134/1000 -> 0.007035 | F142: =F141*F134/1000 -> 0.005967 | G142: =G141*G134/1000 -> 0.005532
A143: CO2 lb/MWh | B143: 0
B147: Detailed
B148: Boiler / Steam Turbine
B149: =IF(chptechinput=6,6,0) -> 0 | C149: 6 | D149: 6 | E149: 6 | F149: 6
B150: =IF(B$151*chptechcaplow<B$152,C150,IF(B$151*chptechcaphigh>B$153,D150,LOOKUP(B$151,C$151:X$151,C150:X150))) -> Boiler / Steam Turbine | C150: Boiler / Steam Turbine | D150: Boiler / Steam Turbine | E150: Boiler / Steam Turbine | F150: Boiler / Steam Turbine
A151: Capacity (kW) | B151: =chpcapinput -> 0 | C151: 100 | D151: 500 | E151: 3000 | F151: 15000
A152: CapLow (kW) | B152: =chptechcaplow*MIN(C151:BA151) -> 100
A153: CapHigh (kW) | B153: =chptechcaphigh*MAX(C151:BA151) -> 15000
A154: Misc | B154: =IF(B$151*chptechcaplow<B$152,C154,IF(B$151*chptechcaphigh>B$153,D154,LOOKUP(B$151,C$151:X$151,C154:X154))) -> 0
A155: Fuel | B155: =IF(B$151*chptechcaplow<B$152,C155,IF(B$151*chptechcaphigh>B$153,D155,LOOKUP(B$151,C$151:X$151,C155:X155))) -> Natural Gas | C155: Natural Gas | D155: Natural Gas | E155: Natural Gas | F155: Natural Gas
A157: % | B157: =IF(B$151*chptechcaplow<B$152,C157,IF(B$151*chptechcaphigh>B$153,D157,LOOKUP(B$151,C$151:X$151,C157:X157))) -> 0
A158: Btu/kWh HHV | B158: 0
A159: Btu/kWh LHV | B159: 0
A160: P/H ratio | B160: 0
A161: NOx ppm | B161: 0
A162: NOx gm/hp-hr | B162: 0
A163: NOx lb/MMBtu | B163: =STMTech!D23 -> 
A164: NOx lb/MWh | B164: 0
A165: SO2 lb/MMBtu | B165: =STMTech!F23 ->  | C165: 0.0006 | D165: 0.0006 | E165: 0.0006 | F165: 0.0006
A166: SO2 lb/MWh | B166: 0 | C166: =C165*C158/1000 -> 0 | D166: =D165*D158/1000 -> 0 | E166: =E165*E158/1000 -> 0 | F166: =F165*F158/1000 -> 0
A167: CO2 lb/MWh | B167: 0 | C167: =co2gas*CHPTech!C158/1000 -> 0 | D167: =co2gas*CHPTech!D158/1000 -> 0 | E167: =co2gas*CHPTech!E158/1000 -> 0 | F167: =co2gas*CHPTech!F158/1000 -> 0
B171: Detailed
B172: Fuel Cell
B173: =IF(chptechinput=7,7,0) -> 0 | C173: 7 | D173: 7 | E173: 7 | F173: 7 | G173: 7
B174: =IF(B$175*chptechcaplow<B$176,C174,IF(B$175*chptechcaphigh>B$177,D174,LOOKUP(B$175,C$175:X$175,C174:X174))) -> Fuel Cell | C174: Fuel Cell | D174: Fuel Cell | E174: Fuel Cell | F174: Fuel Cell | G174: Fuel Cell
A175: Capacity (kW) | B175: =chpcapinput -> 0 | C175: 5 | D175: 300 | E175: 400 | F175: 1500 | G175: 3000
A176: CapLow (kW) | B176: =chptechcaplow*MIN(C175:BA175) -> 5
A177: CapHigh (kW) | B177: =chptechcaphigh*MAX(C175:BA175) -> 3000
A178: Misc | B178: =IF(B$175*chptechcaplow<B$176,C178,IF(B$175*chptechcaphigh>B$177,D178,LOOKUP(B$175,C$175:X$175,C178:X178))) -> ClearEdge SOFC | C178: ClearEdge SOFC | D178: FuelCell MCFC | E178: UTC PAFC | F178: FuelCell MCFC | G178: FuelCell MCFC
A179: Fuel | B179: =IF(B$175*chptechcaplow<B$176,C179,IF(B$175*chptechcaphigh>B$177,D179,LOOKUP(B$175,C$175:X$175,C179:X179))) -> Natural Gas | C179: Natural Gas | D179: Natural Gas | E179: Natural Gas | F179: Natural Gas | G179: Natural Gas
A181: % | B181: =IF(B$175*chptechcaplow<B$176,C181,IF(B$175*chptechcaphigh>B$177,D181,LOOKUP(B$175,C$175:X$175,C181:X181))) -> 0.3000879507 | C181: =3412/C182 -> 0.3000879507 | D181: =3412/D182 -> 0.4253303416 | E181: =3412/E182 -> 0.3799554566 | F181: =3412/F182 -> 0.4253303416 | G181: =3412/G182 -> 0.4253303416
A182: Btu/kWh HHV | B182: 11370 | C182: 11370 | D182: 8022 | E182: 8980 | F182: 8022 | G182: 8022
A183: Btu/kWh LHV | B183: 10289.59276 | C183: =C182/1.105 -> 10289.59276 | D183: =D182/1.105 -> 7259.728507 | E183: =E182/1.105 -> 8126.696833 | F183: =F182/1.105 -> 7259.728507 | G183: =G182/1.105 -> 7259.728507
A184: P/H ratio | B184: 0.85 | C184: 0.85 | D184: 1.27 | E184: 1.42 | F184: 1.27 | G184: 1.27
A185: NOx ppm | B185: 3 | C185: 3
A186: NOx gm/hp-hr | B186: 0
A187: NOx lb/MMBtu | B187: 0.002638522427 | C187: =C188*1000/C182 -> 0.002638522427 | D187: =D188*1000/D182 -> 0.001246571927 | E187: =E188*1000/E182 -> 0.002227171492 | F187: =F188*1000/F182 -> 0.001246571927 | G187: =G188*1000/G182 -> 0.001246571927
A188: NOx lb/MWh | B188: 0.03 | C188: 0.03 | D188: 0.01 | E188: 0.02 | F188: 0.01 | G188: 0.01
A189: SO2 lb/MMBtu | B189: 0.0001 | C189: 0.0001 | D189: 0.0001 | E189: 0.0001 | F189: 0.0001 | G189: 0.0001
A190: SO2 lb/MWh | B190: 0.001137 | C190: =C189*C182/1000 -> 0.001137 | D190: =D189*D182/1000 -> 0.0008022 | E190: =E189*E182/1000 -> 0.000898 | F190: =F189*F182/1000 -> 0.0008022 | G190: =G189*G182/1000 -> 0.0008022
A191: CO2 lb/MWh | B191: 1360 | C191: 1360 | D191: 1170 | E191: 1135 | F191: 950 | G191: 890
B195: User Defined
B196: CHP
B197: =IF(chptechinput=8,8,0) -> 0 | C197: 8
B198: =IF(B$199*chptechcaplow<B$200,C198,IF(B$199*chptechcaphigh>B$201,C198,LOOKUP(B$199,C$199:X$199,C198:X198))) -> Other | C198: Other
A199: Capacity (kW) | B199: =chpcapinput -> 0 | C199: =chpcapinput -> 0
A200: CapLow (kW) | B200: =chptechcaplow*MIN(C199:BA199) -> 0
A201: CapHigh (kW) | B201: =chptechcaphigh*MAX(C199:BA199) -> 0
A202: Misc | B202: =IF(B$199*chptechcaplow<B$200,C202,IF(B$199*chptechcaphigh>B$201,C202,LOOKUP(B$199,C$199:X$199,C202:X202))) -> 0
A203: Fuel | B203: =IF(B$199*chptechcaplow<B$200,C203,IF(B$199*chptechcaphigh>B$201,C203,LOOKUP(B$199,C$199:X$199,C203:X203))) ->  | C203: =LOOKUP(chpfuelinput,lista6a,lista6) -> 
A205: % | B205: =IF(B$199*chptechcaplow<B$200,C205,IF(B$199*chptechcaphigh>B$201,C205,LOOKUP(B$199,C$199:X$199,C205:X205))) -> 0 | C205: =chpeffinput1 -> 0
A206: Btu/kWh HHV | B206: 0 | C206: =chpeffinput2 -> 0
A207: Btu/kWh LHV | B207: 0 | C207: =chpeffinput3 -> 0
A208: P/H ratio | B208: 0 | C208: =chpphinput -> 0
A209: NOx ppm | B209: 0 | C209: =chpnoxinput1 -> 0
A210: NOx gm/hp-hr | B210: 0 | C210: =chpnoxinput2 -> 0
A211: NOx lb/MMBtu | B211: 0 | C211: =chpnoxinput3 -> 0
A212: NOx lb/MWh | B212: 0 | C212: =C211*C206/1000 -> 0
A213: SO2 lb/MMBtu | B213: 0
A214: SO2 lb/MWh | B214: 0 | C214: =C213*C206/1000 -> 0
A215: CO2 lb/MWh | B215: 0
B220: Duct Burner
B221: =chpfuelinput -> 0 | C221: 1 | D221: 2 | E221: 3 | F221: 4 | G221: 5 | H221: 6 | J221: Duct Burner emissions data from:
A222: NOx lb/MMBtu | B222: =LOOKUP(chpfuelinput,C221:I221,C222:H222) ->  | C222: 0.08 | D222: 0.08 | E222: 0.08 | F222: 0.08 | J222: Solar Turbines Inc
A223: NOx ppm | B223: =LOOKUP(chpfuelinput,C221:I221,C223:H223) ->  | C223: =C222*ppmbtu -> 21.76 | D223: =D222*ppmbtud -> 20.64 | E223: =E222*ppmbtud -> 20.64 | F223: =F222*ppmbtu -> 21.76
B228: Absorbtion Cooler | C228: Recip Engine - Rich Burn, natural gas | D228: Recip Engine - Lean Burn, natural gas | E228: Recip Engine - Diesel | F228: Microturbine | G228: Combustion Turbine | H228: Boiler / Steam Turbine | I228: Fuel Cell | J228: Other | L228: Absorption Chiller Data from:
B229: =chptechinput -> 0 | C229: 1 | D229: 2 | E229: 3 | F229: 4 | G229: 5 | H229: 6 | I229: 7 | J229: 8 | L229: Application Engineering Manual for Integrated Systems Design
A230: Single Effect | B230: =LOOKUP(chptechinput,C229:M229,C230:M230) ->  | C230: 0.7 | D230: 0.7 | E230: 0.7 | F230: 0.7 | G230: 0.7 | H230: 0.7 | I230: 0.7 | J230: 0.7 | L230: American Gas Cooling Center
A231: Double Effect | B231: =LOOKUP(chptechinput,C230:M230,C231:M231) ->  | C231: 1.4 | D231: 1.4 | E231: 1.4 | F231: 1.4 | G231: 1.4 | H231: 1.4 | I231: 1.4 | J231: 1.4 | L231: March 1999

Sheet EGRID (hidden)
A1: eGRID2018 Version 1.0 NERC Region File (Year 2020 Data)
BZ2: Calc | CA2: Calc
E3: NAMEPCAP | F3: STHTIAN | G3: STHTIOZ | H3: STNGENAN | I3: STNGENOZ | J3: STNOXAN | K3: STNOXOZ | L3: STSO2AN | M3: STCO2AN | N3: STCH4AN | O3: STN2OAN | P3: STCO2EQA | Q3: STHGAN | R3: STNOXRTA | S3: STNOXRTO | T3: STSO2RTA | U3: STCO2RTA | V3: STCH4RTA | W3: STN2ORTA | X3: STC2ERTA | Y3: STHGRTA | Z3: STNOXRA | AA3: STNOXRO | AB3: STSO2RA | AC3: STCO2RA | AD3: STHGRA | AE3: STNOXCRT | AF3: STNOXCRO | AG3: STSO2CRT | AH3: STCO2CRT | AI3: STCH4CRT | AJ3: STN2OCRT | AK3: STHGCRT | AL3: STCNOXRT | AM3: STONOXRT | AN3: STGNOXRT | AO3: STFSNXRT | AP3: STCNXORT | AQ3: STONXORT | AR3: STGNXORT | AS3: STFSNORT | AT3: STCSO2RT | AU3: STOSO2RT | AV3: STGSO2RT | AW3: STFSS2RT | AX3: STCCO2RT | AY3: STOCO2RT | AZ3: STGCO2RT | BA3: STFSC2RT | BB3: STCHGRT | BC3: STFSHGRT | BD3: STCNOXR | BE3: STONOXR | BF3: STGNOXR | BG3: STFSNXR | BH3: STCNXOR | BI3: STONXOR | BJ3: STGNXOR | BK3: STFSNOR | BL3: STCSO2R | BM3: STOSO2R | BN3: STGSO2R | BO3: STFSS2R | BP3: STCCO2R | BQ3: STOCO2R | BR3: STGCO2R | BS3: STFSC2R | BT3: STCHGR | BU3: STFSHGR | BV3: STNBNOX | BW3: STNBNXO | BX3: STNBSO2 | BY3: STNBCO2 | BZ3: STNBCH4 | CA3: STNBN2O | CB3: SRNBC2ER | CC3: STNBHG | CD3: STGENACL | CE3: STGENAOL | CF3: STGENAGS | CG3: STGENANC | CH3: STGENAHY | CI3: STGENABM | CJ3: STGENAWI | CK3: STGENASO | CL3: STGENAGT | CM3: STGENAOF | CN3: STGENAOP | CO3: STGENATN | CP3: STGENATR | CQ3: STGENATH | CR3: STGENACY | CS3: STGENACN | CT3: STCLPR | CU3: STOLPR | CV3: STGSPR | CW3: STNCPR | CX3: STHYPR | CY3: STBMPR | CZ3: STWIPR | DA3: STSOPR | DB3: STGTPR | DC3: STOFPR | DD3: STOPPR | DE3: STTNPR | DF3: STTRPR | DG3: STTHPR | DH3: STCYPR | DI3: STCNPR | DK3: STAHR
A4: SEQST00 tate sequence number | B4: SEQST99 State sequence number | C4: PSTATABB State abbreviation | D4: FIPST FIPS State code | E4: State nameplate capacity (MW) | F4: State annual heat input (MMBtu) | G4: State ozone season heat input (MMBtu) | H4: State annual net generation (MWh) | I4: State ozone season net generation (MWh) | J4: State annual NOx emissions (tons) | K4: State ozone season NOx emissions (tons) | L4: State annual SO2 emissions (tons) | M4: State annual CO2 emissions (tons) | N4: State annual CH4 emissions (lbs) | O4: State annual N2O emissions (lbs) | P4: State annual CO2 equivalent emissions (tons) | Q4: State annual Hg emissions (lbs) | R4: State annual NOx total output emission rate (lb/MWh) | S4: State ozone season NOx total output emission rate (lb/MWh) | T4: State annual SO2 total output emission rate (lb/MWh) | U4: State annual CO2 total output emission rate (lb/MWh) | V4: State annual CH4 total output emission rate (lb/MWh) | W4: State annual N2O total output emission rate (lb/MWh) | X4: State annual CO2 equivalent total output emission rate (lb/MWh) | Y4: State annual Hg total output emission rate (lb/GWh) | Z4: State annual NOx input emission rate (lb/MMBtu) | AA4: State ozone season NOx input emission rate (lb/MMBtu) | AB4: State annual SO2 input emission rate (lb/MMBtu) | AC4: State annual CO2 input emission rate (lb/MMBtu) | AD4: State annual Hg input emission rate (lb/BBtu) | AE4: State annual NOx combustion output emission rate (lb/MWh) | AF4: State ozone season NOx combustion output emission rate (lb/MWh) | AG4: State annual SO2 combustion output emission rate (lb/MWh) | AH4: State annual CO2 combustion output emission rate (lb/MWh) | AI4: State annual CH4 combustion output emission rate (lb/MWh) | AJ4: State annual N2O combustion output emission rate (lb/MWh) | AK4: State annual Hg combustion output emission rate (lb/GWh) | AL4: State annual NOx coal output emission rate (lb/MWh) | AM4: State annual NOx oil output emission rate (lb/MWh) | AN4: State annual NOx gas output emission rate (lb/MWh) | AO4: State annual NOx fossil fuel output emission rate (lb/MWh) | AP4: State ozone season NOx coal output emission rate (lb/MWh) | AQ4: State ozone season NOx oil output emission rate (lb/MWh) | AR4: State ozone season NOx gas output emission rate (lb/MWh) | AS4: State ozone season NOx fossil fuel output emission rate (lb/MWh) | AT4: State annual SO2 coal output emission rate (lb/MWh) | AU4: State annual SO2 oil output emission rate (lb/MWh) | AV4: State annual SO2 gas output emission rate (lb/MWh) | AW4: State annual SO2 fossil fuel output emission rate (lb/MWh) | AX4: State annual CO2 coal output emission rate (lb/MWh) | AY4: State annual CO2 oil output emission rate (lb/MWh) | AZ4: State annual CO2 gas output emission rate (lb/MWh) | BA4: State annual CO2 fossil fuel output emission rate (lb/MWh) | BB4: State annual Hg coal output emission rate (lb/GWh) | BC4: State annual Hg fossil fuel output emission rate (lb/GWh) | BD4: State annual NOx coal input emission rate (lb/MMBtu) | BE4: State annual NOx oil input emission rate (lb/MMBtu) | BF4: State annual NOx gas input emission rate (lb/MMBtu) | BG4: State annual NOx fossil fuel input emission rate (lb/MMBtu) | BH4: State ozone season NOx coal input emission rate (lb/MMBtu) | BI4: State ozone season NOx oil input emission rate (lb/MMBtu) | BJ4: State ozone season NOx gas input emission rate (lb/MMBtu) | BK4: State ozone season NOx fossil fuel input emission rate (lb/MMBtu) | BL4: State annual SO2 coal input emission rate (lb/MMBtu) | BM4: State annual SO2 oil input emission rate (lb/MMBtu) | BN4: State annual SO2 gas input emission rate (lb/MMBtu) | BO4: State annual SO2 fossil fuel input emission rate (lb/MMBtu) | BP4: State annual CO2 coal input emission rate (lb/MMBtu) | BQ4: State annual CO2 oil input emission rate (lb/MMBtu) | BR4: State annual CO2 gas input emission rate (lb/MMBtu) | BS4: State annual CO2 fossil fuel input emission rate (lb/MMBtu) | BT4: State annual Hg coal input emission rate (lb/BBtu) | BU4: State annual Hg fossil fuel input emission rate (lb/BBtu) | BV4: State annual NOx non-baseload output emission rate (lb/MWh) | BW4: State ozone season NOx non-baseload output emission rate (lb/MWh) | BX4: State annual SO2 non-baseload output emission rate (lb/MWh) | BY4: State annual CO2 non-baseload output emission rate (lb/MWh) | BZ4: State annual CH4 non-baseload output emission rate (lb/MWh) | CA4: State annual N2O non-baseload output emission rate (lb/MWh) | CB4: eGRID subregion annual CO2 equivalent non-baseload output emission rate (lb/MWh) | CC4: State annual Hg non-baseload output emission rate (lb/GWh) | CD4: State annual coal net generation (MWh) | CE4: State annual oil net generation (MWh) | CF4: State annual gas net generation (MWh) | CG4: State annual nuclear net generation (MWh) | CH4: State annual hydro net generation (MWh) | CI4: State annual biomass net generation (MWh) | CJ4: State annual wind net generation (MWh) | CK4: State annual solar net generation (MWh) | CL4: State annual geothermal net generation (MWh) | CM4: State annual other fossil net generation (MWh) | CN4: State annual other unknown/ purchased fuel net generation (MWh) | CO4: State annual total nonrenewables net generation (MWh) | CP4: State annual total renewables net generation (MWh) | CQ4: State annual total nonhydro renewables net generation (MWh) | CR4: State annual total combustion net generation (MWh) | CS4: State annual total noncombustion net generation (MWh) | CT4: State coal generation percent (resource mix) | CU4: State oil generation percent (resource mix) | CV4: State gas generation percent (resource mix) | CW4: State nuclear generation percent (resource mix) | CX4: State hydro generation percent (resource mix) | CY4: State biomass generation percent (resource mix) | CZ4: State wind generation percent (resource mix) | DA4: State solar generation percent (resource mix) | DB4: State geothermal generation percent (resource mix) | DC4: State other fossil generation percent (resource mix) | DD4: State other unknown/ purchased fuel generation percent (resource mix) | DE4: State total nonrenewables generation percent (resource mix) | DF4: State total renewables generation percent (resource mix) | DG4: State total nonhydro renewables generation percent (resource mix) | DH4: State total combustion generation percent (resource mix) | DI4: State total noncombustion generation percent (resource mix) | DK4: Total Annual Heat Rate (Btu/kWh) | DL4: Fossil Annual Heat Rate (Btu/kWh) | DM4: Non-Baseload Annual Heat Rate (Btu/kWh) | DN4: Coal Annual Heat Rate (Btu/kWh) | DO4: Oil Annual Heat Rate (Btu/kWh) | DP4: Natural Gas Annual Heat Rate (Btu/kWh) | DR4: Calculated Fossil CO2 - lb/MWh
A7: 1 | B7: 1 | C7: US Average | E7: 1561642.9 | F7: 2.443515326e+10 | G7: 1.150099826e+10 | H7: 4168370118 | I7: 1884155929 | J7: 1289517.488 | K7: 546133.456 | L7: 1406173.606 | M7: 1974101894 | N7: 354310824.9 | O7: 50426815.6 | P7: 1985972374 | Q7: -- | R7: 0.619 | S7: 0.58 | T7: 0.675 | U7: 947.182 | V7: 0.085 | W7: 0.012 | X7: 952.877 | Y7: -- | Z7: 0.106 | AA7: 0.095 | AB7: 0.115 | AC7: 161.579 | AD7: -- | AE7: 0.947 | AF7: 0.888 | AG7: 1.033 | AH7: 1450.186 | AI7: 0.13 | AJ7: 0.019 | AK7: -- | AL7: 1.45 | AM7: 3.388 | AN7: 0.394 | AO7: 0.904 | AP7: 1.324 | AQ7: 2.956 | AR7: 0.405 | AS7: 0.831 | AT7: 2.128 | AU7: 4.826 | AV7: 0.022 | AW7: 1.026 | AX7: 2170.929 | AY7: 1456.668 | AZ7: 895.452 | BA7: 1480.518 | BB7: -- | BC7: -- | BD7: 0.137 | BE7: 0.369 | BF7: 0.052 | BG7: 0.101 | BH7: 0.124 | BI7: 0.329 | BJ7: 0.052 | BK7: 0.092 | BL7: 0.201 | BM7: 0.525 | BN7: 0.003 | BO7: 0.115 | BP7: 205.108 | BQ7: 158.539 | BR7: 118.782 | BS7: 165.718 | BT7: -- | BU7: -- | BV7: 0.968 | BW7: 0.887 | BX7: 0.955 | BY7: 1432.254 | BZ7: 0.117 | CA7: 0.017 | CB7: 1440.055 | CC7: -- | CD7: 1144532889 | CE7: 25190418.49 | CF7: 1464553205 | CG7: 807084477 | CH7: 286608705.5 | CI7: 68703320.06 | CJ7: 272583027.6 | CK7: 63571369.19 | CL7: 15967134 | CM7: 14407668.12 | CN7: 5163028.772 | CO7: 3460931687 | CP7: 707433556.4 | CQ7: 420824850.8 | CR7: 2722550530 | CS7: 1445814713 | CT7: 0.2745759602 | CU7: 0.006043236861 | CV7: 0.3513495387 | CW7: 0.1936213431 | CX7: 0.06875805953 | CY7: 0.01648207776 | CZ7: 0.06539326851 | DA7: 0.01525091144 | DB7: 0.003830550604 | DC7: 0.003456431306 | DD7: 0.001238621971 | DE7: 0.8302851322 | DF7: 0.1697148678 | DG7: 0.1009568083 | DH7: 0.6531458668 | DI7: 0.3468541332 | DK7: =(F7/H7)*1000 -> 5862.040216 | DL7: =(BA7/BS7)*1000 -> 8933.960101 | DM7: =(BY7/BS7)*1000 -> 8642.718353 | DN7: =IFERROR((AX7/BP7)*1000,"-") -> 10584.32143 | DO7: =IFERROR((AY7/BQ7)*1000,"-") -> 9188.073597 | DP7: =IFERROR((AZ7/BR7)*1000,"-") -> 7538.616962 | DR7: 1527.940461
A8: 2 | B8: 63 | C8: AKGD - ASCC Alaska Grid | E8: 2416.8 | F8: 34759387.57 | G8: 13902016.36 | H8: 4641059.582 | I8: 1882505.501 | J8: 12692.779 | K8: 5100.916 | L8: 2551.521 | M8: 2412504.715 | N8: 380248.677 | O8: 51484.524 | P8: 2424929.017 | Q8: -- | R8: 5.47 | S8: 5.419 | T8: 1.1 | U8: 1039.635 | V8: 0.082 | W8: 0.011 | X8: 1044.989 | Y8: -- | Z8: 0.73 | AA8: 0.734 | AB8: 0.147 | AC8: 138.812 | AD8: -- | AE8: 6.531 | AF8: 6.471 | AG8: 1.313 | AH8: 1241.386 | AI8: 0.098 | AJ8: 0.013 | AK8: -- | AL8: 2.484 | AM8: 8.13 | AN8: 7.328 | AO8: 6.6 | AP8: 2.538 | AQ8: 8.46 | AR8: 7.268 | AS8: 6.576 | AT8: 5.954 | AU8: 3.22 | AV8: 0.027 | AW8: 1.323 | AX8: 2179.98 | AY8: 1647.554 | AZ8: 993.528 | BA8: 1254.378 | BB8: -- | BC8: -- | BD8: 0.241 | BE8: 0.828 | BF8: 0.862 | BG8: 0.739 | BH8: 0.247 | BI8: 0.805 | BJ8: 0.87 | BK8: 0.743 | BL8: 0.579 | BM8: 0.328 | BN8: 0.003 | BO8: 0.148 | BP8: 211.84 | BQ8: 167.825 | BR8: 116.89 | BS8: 140.539 | BT8: -- | BU8: -- | BV8: 6.454 | BW8: 6.4 | BX8: 1.128 | BY8: 1262.461 | BZ8: 0.11 | CA8: 0.015 | CB8: 1269.632 | CC8: -- | CD8: 628564.073 | CE8: 384703.661 | CF8: 2833268.704 | CG8: 0 | CH8: 632426 | CI8: 42684.134 | CJ8: 121841 | CK8: 0 | CL8: 0 | CM8: 0 | CN8: -2428 | CO8: 3844108.438 | CP8: 796951.134 | CQ8: 164525.134 | CR8: 3886792.572 | CS8: 754267 | CT8: 0.1354354675 | CU8: 0.08289134303 | CV8: 0.6104788486 | CW8: 0 | CX8: 0.1362675894 | CY8: 0.009197066605 | CZ8: 0.02625284121 | DA8: 0 | DB8: 0 | DC8: 0 | DD8: 0 | DE8: 0.8282825028 | DF8: 0.1717174972 | DG8: 0.03544990782 | DH8: 0.8374795694 | DI8: 0.1625204306 | DK8: =(F8/H8)*1000 -> 7489.537023 | DL8: =(BA8/BS8)*1000 -> 8925.47976 | DM8: =(BY8/BS8)*1000 -> 8982.994044 | DN8: =IFERROR((AX8/BP8)*1000,"-") -> 10290.69109 | DO8: =IFERROR((AY8/BQ8)*1000,"-") -> 9817.095188 | DP8: =IFERROR((AZ8/BR8)*1000,"-") -> 8499.683463 | DR8: 1282.689738
A9: 3 | B9: 64 | C9: AKMS - ASCC Miscellaneous | E9: 1054.4 | F9: 5627318.886 | G9: 2400295.385 | H9: 1603240.567 | I9: 681597.649 | J9: 6181.986 | K9: 2673.197 | L9: 542.85 | M9: 420916.912 | N9: 39230.179 | O9: 6823.814 | P9: 422424.041 | Q9: -- | R9: 7.712 | S9: 7.844 | T9: 0.677 | U9: 525.083 | V9: 0.024 | W9: 0.004 | X9: 526.963 | Y9: -- | Z9: 2.197 | AA9: 2.227 | AB9: 0.193 | AC9: 149.598 | AD9: -- | AE9: 22.97 | AF9: 23.363 | AG9: 2.017 | AH9: 1563.969 | AI9: 0.073 | AJ9: 0.013 | AK9: -- | AL9: 0 | AM9: 27.11 | AN9: 4.622 | AO9: 22.616 | AP9: 0 | AQ9: 27.19 | AR9: 4.622 | AS9: 22.86 | AT9: 0 | AU9: 2.47 | AV9: 0.045 | AW9: 1.986 | AX9: 0 | AY9: 1516.587 | AZ9: 1641.512 | BA9: 1541.548 | BB9: -- | BC9: -- | BD9: 0 | BE9: 2.892 | BF9: 0.329 | BG9: 2.194 | BH9: 0 | BI9: 2.898 | BJ9: 0.329 | BK9: 2.225 | BL9: 0 | BM9: 0.264 | BN9: 0.003 | BO9: 0.193 | BP9: 0 | BQ9: 161.78 | BR9: 116.889 | BS9: 149.559 | BT9: -- | BU9: -- | BV9: 22.781 | BW9: 23.018 | BX9: 1.991 | BY9: 1528.313 | BZ9: 0.068 | CA9: 0.012 | CB9: 1533.597 | CC9: -- | CD9: 0 | CE9: 421516.458 | CF9: 114633.351 | CG9: 0 | CH9: 1031799 | CI9: 2789.771 | CJ9: 33174 | CK9: 0 | CL9: 0 | CM9: 0 | CN9: -672 | CO9: 535477.809 | CP9: 1067762.771 | CQ9: 35963.771 | CR9: 538267.58 | CS9: 1064973 | CT9: 0 | CU9: 0.2629152875 | CV9: 0.07150102887 | CW9: 0 | CX9: 0.6435709106 | CY9: 0.001740082577 | CZ9: 0.02069184152 | DA9: 0 | DB9: 0 | DC9: 0 | DD9: 0 | DE9: 0.3339971653 | DF9: 0.6660028347 | DG9: 0.0224319241 | DH9: 0.3357372479 | DI9: 0.6642627521 | DK9: 3509.96538 | DL9: 10307.2901 | DM9: 10218.7966 | DN9: - | DO9: 9374.378786 | DP9: 14043.34026 | DR9: 1547.361319
A10: 4 | B10: 88 | C10: AZNM - WECC Southwest | E10: 64434.5 | F10: 1057438497 | G10: 528004505.2 | H10: 165353382.8 | I10: 80475865.05 | J10: 60358.628 | K10: 28914.845 | L10: 21783.132 | M10: 84524899.53 | N10: 12811500.21 | O10: 1806927.805 | P10: 84954275.53 | Q10: -- | R10: 0.73 | S10: 0.719 | T10: 0.263 | U10: 1022.355 | V10: 0.077 | W10: 0.011 | X10: 1027.548 | Y10: -- | Z10: 0.114 | AA10: 0.11 | AB10: 0.041 | AC10: 159.867 | AD10: -- | AE10: 1.07 | AF10: 1.053 | AG10: 0.386 | AH10: 1498.345 | AI10: 0.114 | AJ10: 0.016 | AK10: -- | AL10: 1.903 | AM10: 24.496 | AN10: 0.533 | AO10: 1.066 | AP10: 1.922 | AQ10: 24.566 | AR10: 0.54 | AS10: 1.017 | AT10: 0.91 | AU10: 14.057 | AV10: 0.011 | AW10: 0.36 | AX10: 2333.004 | AY10: 4544.156 | AZ10: 971.227 | BA10: 1500.588 | BB10: -- | BC10: -- | BD10: 0.169 | BE10: 0.88 | BF10: 0.066 | BG10: 0.114 | BH10: 0.168 | BI10: 0.881 | BJ10: 0.066 | BK10: 0.11 | BL10: 0.081 | BM10: 0.505 | BN10: 0.001 | BO10: 0.039 | BP10: 207.199 | BQ10: 163.326 | BR10: 119.916 | BS10: 160.872 | BT10: -- | BU10: -- | BV10: 0.996 | BW10: 0.944 | BX10: 0.286 | BY10: 1435.307 | BZ10: 0.097 | CA10: 0.014 | CB10: 1441.78 | CC10: -- | CD10: 44146154.49 | CE10: 70820.771 | CF10: 67964666.24 | CG10: 31097259 | CH10: 5568462 | CI10: 620358.335 | CJ10: 2929036 | CK10: 7239754.69 | CL10: 5694516 | CM10: 0 | CN10: 22356 | CO10: 143301256.5 | CP10: 22052127.02 | CQ10: 16483665.03 | CR10: 112824355.8 | CS10: 52529027.69 | CT10: 0.2669806541 | CU10: 0.000428299497 | CV10: 0.4110267645 | CW10: 0.1880654531 | CX10: 0.03367612976 | CY10: 0.003751712374 | CZ10: 0.01771379537 | DA10: 0.04378352916 | DB10: 0.0344384607 | DC10: 0 | DD10: 0.0001352013459 | DE10: 0.8666363726 | DF10: 0.1333636274 | DG10: 0.09968749761 | DH10: 0.6823226319 | DI10: 0.3176773681 | DK10: =(F10/H10)*1000 -> 6395.021861 | DL10: =(BA10/BS10)*1000 -> 9327.838281 | DM10: =(BY10/BS10)*1000 -> 8922.043612 | DN10: =IFERROR((AX10/BP10)*1000,"-") -> 11259.72616 | DO10: 27822.61244 | DP10: 8099.227793 | DR10: 1457.114043
A11: 5 | B11: 85 | C11: CAMX - WECC California | E11: 111737.7 | F11: 832463622.5 | G11: 373684298.8 | H11: 200103501.5 | I11: 95731402.73 | J11: 46341.874 | K11: 19828.177 | L11: 4716.275 | M11: 49679323.58 | N11: 6796556.203 | O11: 874327.939 | P11: 49894407.82 | Q11: -- | R11: 0.463 | S11: 0.414 | T11: 0.047 | U11: 496.536 | V11: 0.034 | W11: 0.004 | X11: 498.686 | Y11: -- | Z11: 0.111 | AA11: 0.106 | AB11: 0.011 | AC11: 119.355 | AD11: -- | AE11: 0.866 | AF11: 0.774 | AG11: 0.088 | AH11: 928.353 | AI11: 0.064 | AJ11: 0.008 | AK11: -- | AL11: 2.282 | AM11: 8.403 | AN11: 0.618 | AO11: 0.758 | AP11: 2.226 | AQ11: 8.682 | AR11: 0.599 | AS11: 0.733 | AT11: 0.565 | AU11: 0.585 | AV11: 0.008 | AW11: 0.057 | AX11: 1973.587 | AY11: 1934.695 | AZ11: 857.336 | BA11: 954.093 | BB11: -- | BC11: -- | BD11: 0.237 | BE11: 0.854 | BF11: 0.085 | BG11: 0.101 | BH11: 0.234 | BI11: 0.865 | BJ11: 0.081 | BK11: 0.097 | BL11: 0.059 | BM11: 0.059 | BN11: 0.001 | BO11: 0.008 | BP11: 205.216 | BQ11: 196.675 | BR11: 117.593 | BS11: 127.572 | BT11: -- | BU11: -- | BV11: 0.759 | BW11: 0.708 | BX11: 0.049 | BY11: 929.525 | BZ11: 0.047 | CA11: 0.006 | CB11: 932.45 | CC11: -- | CD11: 8763279.09 | CE11: 84863.137 | CF11: 90399561.43 | CG11: 18213519 | CH11: 21995545.56 | CI11: 5658482.077 | CJ11: 14615416.8 | CK11: 29861014 | CL11: 8391185 | CM11: 1453960.386 | CN11: 666675.11 | CO11: 119581858.1 | CP11: 80521643.44 | CQ11: 58526097.88 | CR11: 107026821.2 | CS11: 93076680.36 | CT11: 0.04379373185 | CU11: 0.0004240962118 | CV11: 0.4517640157 | CW11: 0.09102049117 | CX11: 0.1099208429 | CY11: 0.02827777641 | CZ11: 0.07303928559 | DA11: 0.1492278434 | DB11: 0.04193422371 | DC11: 0.007266041696 | DD11: 0.003331651394 | DE11: 0.597600028 | DF11: 0.402399972 | DG11: 0.2924791291 | DH11: 0.5348573132 | DI11: 0.4651426868 | DK11: =(F11/H11)*1000 -> 4160.165196 | DL11: =(BA11/BS11)*1000 -> 7478.858997 | DM11: =(BY11/BS11)*1000 -> 7286.277553 | DN11: 9617.120497 | DO11: 9837.015381 | DP11: 7290.706079 | DR11: 2016.010147
A12: 6 | B12: 65 | C12: ERCT - ERCOT All | E12: 168673.1 | F12: 2476415349 | G12: 1258501083 | H12: 411784692.4 | I12: 197318460 | J12: 112196.542 | K12: 54624.4 | L12: 170752.345 | M12: 191824106 | N12: 27186085.34 | O12: 3812852.039 | P12: 192732047 | Q12: -- | R12: 0.545 | S12: 0.554 | T12: 0.829 | U12: 931.672 | V12: 0.066 | W12: 0.009 | X12: 936.082 | Y12: -- | Z12: 0.091 | AA12: 0.087 | AB12: 0.138 | AC12: 154.921 | AD12: -- | AE12: 0.757 | AF12: 0.769 | AG12: 1.152 | AH12: 1294.287 | AI12: 0.092 | AJ12: 0.013 | AK12: -- | AL12: 1.254 | AM12: 3.648 | AN12: 0.527 | AO12: 0.755 | AP12: 1.222 | AQ12: 3.906 | AR12: 0.525 | AS12: 0.731 | AT12: 3.576 | AU12: 10.213 | AV12: 0.007 | AW12: 1.159 | AX12: 2242.21 | AY12: 2274.302 | AZ12: 860.976 | BA12: 1301.2 | BB12: -- | BC12: -- | BD12: 0.117 | BE12: 0.261 | BF12: 0.073 | BG12: 0.09 | BH12: 0.113 | BI12: 0.269 | BJ12: 0.07 | BK12: 0.087 | BL12: 0.333 | BM12: 0.73 | BN12: 0.001 | BO12: 0.139 | BP12: 208.65 | BQ12: 162.483 | BR12: 118.593 | BS12: 155.85 | BT12: -- | BU12: -- | BV12: 0.797 | BW12: 0.761 | BX12: 1.091 | BY12: 1260.972 | BZ12: 0.083 | CA12: 0.012 | CB12: 1266.475 | CC12: -- | CD12: 93161470.51 | CE12: 114455.008 | CF12: 199909497.2 | CG12: 41185739 | CH12: 922405 | CI12: 984441.299 | CJ12: 70088919.19 | CK12: 3170904 | CL12: 0 | CM12: 1796091.837 | CN12: 450770.5 | CO12: 336618024.1 | CP12: 75166669.49 | CQ12: 74244264.49 | CR12: 296416726.4 | CS12: 115367967.2 | CT12: 0.2262383036 | CU12: 0.0002779486702 | CV12: 0.4854709278 | CW12: 0.100017654 | CX12: 0.002240017695 | CY12: 0.002390669965 | CZ12: 0.1702076845 | DA12: 0.007700393068 | DB12: 0 | DC12: 0.004361725594 | DD12: 0.00109467522 | DE12: 0.8174612348 | DF12: 0.1825387652 | DG12: 0.1802987475 | DH12: 0.7198342508 | DI12: 0.2801657492 | DK12: 6013.859658 | DL12: 8349.053577 | DM12: 8090.93359 | DN12: 10746.27366 | DO12: 13997.16893 | DP12: 7259.922592 | DR12: 1505.147391
A13: 7 | B13: 66 | C13: FRCC - FRCC All | E13: 102499 | F13: 1633195751 | G13: 782317094.4 | H13: 233469406.3 | I13: 108758687.5 | J13: 41583.876 | K13: 19845.812 | L13: 32447.658 | M13: 108778338.5 | N13: 15492099.59 | O13: 2071562.457 | P13: 109280652.5 | Q13: -- | R13: 0.356 | S13: 0.365 | T13: 0.278 | U13: 931.842 | V13: 0.066 | W13: 0.009 | X13: 936.145 | Y13: -- | Z13: 0.051 | AA13: 0.051 | AB13: 0.04 | AC13: 133.209 | AD13: -- | AE13: 0.412 | AF13: 0.422 | AG13: 0.322 | AH13: 1078.311 | AI13: 0.077 | AJ13: 0.01 | AK13: -- | AL13: 0.807 | AM13: 2.337 | AN13: 0.207 | AO13: 0.327 | AP13: 0.852 | AQ13: 2.835 | AR13: 0.218 | AS13: 0.337 | AT13: 1.425 | AU13: 0.996 | AV13: 0.032 | AW13: 0.309 | AX13: 1993.017 | AY13: 1154.467 | AZ13: 870.979 | BA13: 1093.476 | BB13: -- | BC13: -- | BD13: 0.076 | BE13: 0.269 | BF13: 0.028 | BG13: 0.041 | BH13: 0.077 | BI13: 0.194 | BJ13: 0.029 | BK13: 0.042 | BL13: 0.135 | BM13: 0.115 | BN13: 0.004 | BO13: 0.039 | BP13: 188.688 | BQ13: 132.758 | BR13: 119.396 | BS13: 137.666 | BT13: -- | BU13: -- | BV13: 0.415 | BW13: 0.425 | BX13: 0.37 | BY13: 1123.915 | BZ13: 0.068 | CA13: 0.009 | CB13: 1128.326 | CC13: -- | CD13: 27123675.8 | CE13: 2067367.701 | CF13: 164932332.3 | CG13: 29312349 | CH13: 232574 | CI13: 6147734.047 | CJ13: 0 | CK13: 2167578.98 | CL13: 0 | CM13: 28548.926 | CN13: 1457245.097 | CO13: 224921518.8 | CP13: 8547887.027 | CQ13: 8315313.027 | CR13: 201756903.9 | CS13: 31712501.98 | CT13: 0.1161765744 | CU13: 0.008854983347 | CV13: 0.7064408791 | CW13: 0.1255511355 | CX13: 0.0009961647829 | CY13: 0.02633207561 | CZ13: 0 | DA13: 0.009284209946 | DB13: 0 | DC13: 0.0001222812295 | DD13: 0.006241696173 | DE13: 0.9633875497 | DF13: 0.03661245034 | DG13: 0.03561628555 | DH13: 0.8641684898 | DI13: 0.1358315102 | DK13: 6995.330895 | DL13: 7942.963404 | DM13: 8164.071012 | DN13: 10562.5 | DO13: 8696.025852 | DP13: 7294.875875 | DR13: 987.3440278
A14: 8 | B14: 67 | C14: HIMS - HICC Miscellaneous | E14: 1264.6 | F14: 21094369.65 | G14: 8810966.304 | H14: 2743590.994 | I14: 1179549.062 | J14: 10478.382 | K14: 4471.447 | L14: 5444.055 | M14: 1523638.463 | N14: 323076.982 | O14: 50150.954 | P14: 1535144.767 | Q14: -- | R14: 7.638 | S14: 7.582 | T14: 3.969 | U14: 1110.689 | V14: 0.118 | W14: 0.018 | X14: 1119.077 | Y14: -- | Z14: 0.993 | AA14: 1.015 | AB14: 0.516 | AC14: 144.459 | AD14: -- | AE14: 10.191 | AF14: 10.115 | AG14: 5.295 | AH14: 1481.832 | AI14: 0.157 | AJ14: 0.024 | AK14: -- | AL14: 0 | AM14: 11.373 | AN14: 0 | AO14: 11.373 | AP14: 0 | AQ14: 11.054 | AR14: 0 | AS14: 11.054 | AT14: 0 | AU14: 5.472 | AV14: 0 | AW14: 5.472 | AX14: 0 | AY14: 1679.396 | AZ14: 0 | BA14: 1679.396 | BB14: -- | BC14: -- | BD14: 0 | BE14: 1.112 | BF14: 0 | BG14: 1.112 | BH14: 0 | BI14: 1.094 | BJ14: 0 | BK14: 1.094 | BL14: 0 | BM14: 0.535 | BN14: 0 | BO14: 0.535 | BP14: 0 | BQ14: 164.164 | BR14: 0 | BS14: 164.164 | BT14: -- | BU14: -- | BV14: 11.84 | BW14: 11.499 | BX14: 5.036 | BY14: 1535.745 | BZ14: 0.139 | CA14: 0.022 | CB14: 1545.834 | CC14: -- | CD14: 0 | CE14: 1816343.965 | CF14: 0 | CG14: 0 | CH14: 96520 | CI14: 50976 | CJ14: 401290 | CK14: 79266 | CL14: 110089 | CM14: 0 | CN14: 189106.03 | CO14: 2005449.995 | CP14: 738141 | CQ14: 641621 | CR14: 2056425.995 | CS14: 687165 | CT14: 0 | CU14: 0.6620316105 | CV14: 0 | CW14: 0 | CX14: 0.03518017087 | CY14: 0.01858002891 | CZ14: 0.1462645127 | DA14: 0.02889133262 | DB14: 0.04012587889 | DC14: 0 | DD14: 0.06892646548 | DE14: 0.730958076 | DF14: 0.269041924 | DG14: 0.2338617531 | DH14: 0.7495381049 | DI14: 0.2504618951 | DK14: 7688.598519 | DL14: 10229.98952 | DM14: 9354.943837 | DN14: - | DO14: 10229.98952 | DP14: - | DR14: 1351.010063
A15: 9 | B15: 68 | C15: HIOA - HICC Oahu | E15: 2354.1 | F15: 71331045.43 | G15: 30581066.3 | H15: 7053182.004 | I15: 3047404.004 | J15: 12396.721 | K15: 5749.332 | L15: 28201.915 | M15: 5889206.11 | N15: 1266551.327 | O15: 193230.873 | P15: 5933829.399 | Q15: -- | R15: 3.515 | S15: 3.773 | T15: 7.997 | U15: 1669.943 | V15: 0.18 | W15: 0.027 | X15: 1682.596 | Y15: -- | Z15: 0.348 | AA15: 0.376 | AB15: 0.791 | AC15: 165.123 | AD15: -- | AE15: 3.675 | AF15: 3.944 | AG15: 8.36 | AH15: 1745.667 | AI15: 0.188 | AJ15: 0.029 | AK15: -- | AL15: 0.986 | AM15: 4.121 | AN15: 0 | AO15: 3.459 | AP15: 2.361 | AQ15: 4.127 | AR15: 0 | AS15: 3.768 | AT15: 10.58 | AU15: 8.371 | AV15: 0 | AW15: 8.837 | AX15: 2338.064 | AY15: 1593.114 | AZ15: 0 | BA15: 1750.39 | BB15: -- | BC15: -- | BD15: 0.09 | BE15: 0.422 | BF15: 0 | BG15: 0.345 | BH15: 0.217 | BI15: 0.424 | BJ15: 0 | BK15: 0.378 | BL15: 0.966 | BM15: 0.857 | BN15: 0 | BO15: 0.882 | BP15: 213.378 | BQ15: 163.1 | BR15: 0 | BS15: 174.709 | BT15: -- | BU15: -- | BV15: 4.185 | BW15: 4.24 | BX15: 8.373 | BY15: 1682.054 | BZ15: 0.159 | CA15: 0.025 | CB15: 1693.555 | CC15: -- | CD15: 1311203 | CE15: 4932603.216 | CF15: 0 | CG15: 0 | CH15: 0 | CI15: 447891.981 | CJ15: 200644 | CK15: 105310.12 | CL15: 0 | CM15: 55721.626 | CN15: -192 | CO15: 6299335.842 | CP15: 753846.101 | CQ15: 753846.101 | CR15: 6747227.823 | CS15: 305954.12 | CT15: 0.1859023361 | CU15: 0.6993443889 | CV15: 0 | CW15: 0 | CX15: 0 | CY15: 0.06350211644 | CZ15: 0.02844730245 | DA15: 0.01493086678 | DB15: 0 | DC15: 0.007900211061 | DD15: 0 | DE15: 0.8931197143 | DF15: 0.1068802857 | DG15: 0.1068802857 | DH15: 0.9566218308 | DI15: 0.04337816924 | DK15: 10113.31416 | DL15: 10018.88855 | DM15: 9627.74671 | DN15: 10957.3808 | DO15: 9767.713059 | DP15: - | DR15: 1198.785084
A16: 10 | B16: 69 | C16: MROE - MRO East | E16: 11488.6 | F16: 220508199 | G16: 105433441.4 | H16: 24091645.63 | I16: 10661310.29 | J16: 10597.475 | K16: 4729.708 | L16: 10734.46 | M16: 20213077.5 | N16: 4076849.105 | O16: 598607.321 | P16: 20353230.61 | Q16: -- | R16: 0.88 | S16: 0.887 | T16: 0.891 | U16: 1678.016 | V16: 0.169 | W16: 0.025 | X16: 1689.651 | Y16: -- | Z16: 0.096 | AA16: 0.09 | AB16: 0.097 | AC16: 183.332 | AD16: -- | AE16: 0.96 | AF16: 0.969 | AG16: 0.973 | AH16: 1831.9 | AI16: 0.185 | AJ16: 0.027 | AK16: -- | AL16: 0.888 | AM16: 0.899 | AN16: 0.766 | AO16: 0.859 | AP16: 0.865 | AQ16: 0.751 | AR16: 0.864 | AS16: 0.864 | AT16: 1.04 | AU16: 2.583 | AV16: 0.325 | AW16: 0.88 | AX16: 2218.238 | AY16: 1786.522 | AZ16: 1050.506 | BA16: 1935.896 | BB16: -- | BC16: -- | BD16: 0.083 | BE16: 0.087 | BF16: 0.087 | BG16: 0.084 | BH16: 0.08 | BI16: 0.074 | BJ16: 0.08 | BK16: 0.08 | BL16: 0.097 | BM16: 0.251 | BN16: 0.037 | BO16: 0.086 | BP16: 207.687 | BQ16: 173.647 | BR16: 118.729 | BS16: 189.06 | BT16: -- | BU16: -- | BV16: 0.937 | BW16: 0.972 | BX16: 0.961 | BY16: 1634.315 | BZ16: 0.149 | CA16: 0.022 | CB16: 1644.495 | CC16: -- | CD16: 15443667.62 | CE16: 119385.402 | CF16: 5440443.918 | CG16: 0 | CH16: 1276036.55 | CI16: 1024258.778 | CJ16: 739690 | CK16: 8034.91 | CL16: 0 | CM16: 16906.972 | CN16: 23220.83 | CO16: 21043624.74 | CP16: 3048020.238 | CQ16: 1771983.688 | CR16: 22067883.52 | CS16: 2023761.46 | CT16: 0.6410383198 | CU16: 0.00495546909 | CV16: 0.2258228495 | CW16: 0 | CX16: 0.052965937 | CY16: 0.04251510343 | CZ16: 0.03070317534 | DA16: 0.0003335143785 | DB16: 0 | DC16: 0.0007017774012 | DD16: 0.0009638540674 | DE16: 0.8734822698 | DF16: 0.1265177302 | DG16: 0.07355179316 | DH16: 0.9159973733 | DI16: 0.08400262672 | DK16: 9152.890692 | DL16: 10239.58532 | DM16: 8644.42505 | DN16: 10680.67814 | DO16: 10288.23994 | DP16: 8847.931003 | DR16: 1715.972169
A17: 11 | B17: 70 | C17: MROW - MRO West | E17: 81925.3 | F17: 1480023485 | G17: 656634723 | H17: 236704124.2 | I17: 99191790.83 | J17: 115575.642 | K17: 50030.243 | L17: 159939.064 | M17: 146738517.7 | N17: 32693599.04 | O17: 4728626.932 | P17: 147845555.3 | Q17: -- | R17: 0.977 | S17: 1.009 | T17: 1.351 | U17: 1239.848 | V17: 0.138 | W17: 0.02 | X17: 1249.201 | Y17: -- | Z17: 0.156 | AA17: 0.152 | AB17: 0.216 | AC17: 198.292 | AD17: -- | AE17: 1.595 | AF17: 1.647 | AG17: 2.207 | AH17: 2024.841 | AI17: 0.226 | AJ17: 0.033 | AK17: -- | AL17: 1.717 | AM17: 3.857 | AN17: 0.507 | AO17: 1.565 | AP17: 1.697 | AQ17: 3.276 | AR17: 0.542 | AS17: 1.513 | AT17: 2.563 | AU17: 0.824 | AV17: 0.011 | AW17: 2.234 | AX17: 2218.292 | AY17: 1084.452 | AZ17: 978.243 | BA17: 2057.771 | BB17: -- | BC17: -- | BD17: 0.163 | BE17: 0.535 | BF17: 0.061 | BG17: 0.153 | BH17: 0.162 | BI17: 0.607 | BJ17: 0.065 | BK17: 0.149 | BL17: 0.244 | BM17: 0.114 | BN17: 0.001 | BO17: 0.219 | BP17: 211.238 | BQ17: 150.433 | BR17: 118.137 | BS17: 201.507 | BT17: -- | BU17: -- | BV17: 1.499 | BW17: 1.4 | BX17: 1.759 | BY17: 1764.291 | BZ17: 0.192 | CA17: 0.027 | CB17: 1777.037 | CC17: -- | CD17: 122647114.3 | CE17: 237245.713 | CF17: 19018032.01 | CG17: 25128868 | CH17: 14211593.37 | CI17: 2516887.96 | CJ17: 51315894 | CK17: 1109404.84 | CL17: 0 | CM17: 63906.217 | CN17: 455138.837 | CO17: 167550305.1 | CP17: 69153780.17 | CQ17: 54942186.8 | CR17: 144938325.1 | CS17: 91765760.21 | CT17: 0.5181453213 | CU17: 0.001002288206 | CV17: 0.08034517863 | CW17: 0.1061615306 | CX17: 0.06003949342 | CY17: 0.0106330567 | CZ17: 0.2167934446 | DA17: 0.004686885056 | DB17: 0 | DC17: 0.0002699835828 | DD17: 0.001922817836 | DE17: 0.7078471202 | DF17: 0.2921528798 | DG17: 0.2321133864 | DH17: 0.6123186463 | DI17: 0.3876813537 | DK17: 6252.630749 | DL17: 10211.90827 | DM17: 8755.48244 | DN17: 10501.38706 | DO17: 7208.870394 | DP17: 8280.58102 | DR17: 1822.736324
A18: 12 | B18: 72 | C18: NEWE - NPCC New England | E18: 45439.9 | F18: 519453891.4 | G18: 239450214.5 | H18: 105482005.6 | I18: 47130649.49 | J18: 20390.308 | K18: 8252.448 | L18: 7179.76 | M18: 27547279.64 | N18: 8618105.022 | O18: 1136959.179 | P18: 27824278.65 | Q18: -- | R18: 0.387 | S18: 0.35 | T18: 0.136 | U18: 522.312 | V18: 0.082 | W18: 0.011 | X18: 527.564 | Y18: -- | Z18: 0.079 | AA18: 0.069 | AB18: 0.028 | AC18: 106.062 | AD18: -- | AE18: 0.655 | AF18: 0.594 | AG18: 0.231 | AH18: 885.3 | AI18: 0.138 | AJ18: 0.018 | AK18: -- | AL18: 2.587 | AM18: 3.795 | AN18: 0.234 | AO18: 0.318 | AP18: 3.008 | AQ18: 4.688 | AR18: 0.224 | AS18: 0.264 | AT18: 1.769 | AU18: 4.628 | AV18: 0.028 | AW18: 0.116 | AX18: 2531.361 | AY18: 1942.449 | AZ18: 863.699 | BA18: 905.028 | BB18: -- | BC18: -- | BD18: 0.211 | BE18: 0.305 | BF18: 0.032 | BG18: 0.043 | BH18: 0.227 | BI18: 0.329 | BJ18: 0.031 | BK18: 0.036 | BL18: 0.144 | BM18: 0.372 | BN18: 0.004 | BO18: 0.016 | BP18: 206.721 | BQ18: 155.92 | BR18: 118.758 | BS18: 121.95 | BT18: -- | BU18: -- | BV18: 0.501 | BW18: 0.378 | BX18: 0.266 | BY18: 930.972 | BZ18: 0.086 | CA18: 0.011 | CB18: 936.513 | CC18: -- | CD18: 1036895.611 | CE18: 1245692.21 | CF18: 51610789.6 | CG18: 31384751 | CH18: 7112471.69 | CI18: 8074844.781 | CJ18: 3552013.84 | CK18: 1200139.02 | CL18: 0 | CM18: 160478.91 | CN18: 103928 | CO18: 85542535.33 | CP18: 19939469.33 | CQ18: 12826997.64 | CR18: 62232629.11 | CS18: 43249375.55 | CT18: 0.009830071151 | CU18: 0.01180952347 | CV18: 0.4892852555 | CW18: 0.2975365429 | CX18: 0.06742829465 | CY18: 0.07655187069 | CZ18: 0.03367412149 | DA18: 0.01137766602 | DB18: 0 | DC18: 0.001521386615 | DD18: 0.0009852675851 | DE18: 0.8109680472 | DF18: 0.1890319528 | DG18: 0.1216036582 | DH18: 0.589983375 | DI18: 0.410016625 | DK18: =(F18/H18)*1000 -> 4924.573518 | DL18: =(BA18/BS18)*1000 -> 7421.303813 | DM18: =(BY18/BS18)*1000 -> 7634.04674 | DN18: =IFERROR((AX18/BP18)*1000,"-") -> 12245.30164 | DO18: 12457.98486 | DP18: 7272.764782 | DR18: 1052.329375
A19: 13 | B19: 86 | C19: NWPP - WECC Northwest | E19: 92607.4 | F19: 1097798064 | G19: 481382332.1 | H19: 294782038.6 | I19: 127196814.5 | J19: 85516.231 | K19: 36706.094 | L19: 55535.808 | M19: 94188334.17 | N19: 18781549.51 | O19: 2703890.228 | P19: 94825948.73 | Q19: -- | R19: 0.58 | S19: 0.577 | T19: 0.377 | U19: 639.037 | V19: 0.064 | W19: 0.009 | X19: 643.363 | Y19: -- | Z19: 0.156 | AA19: 0.153 | AB19: 0.101 | AC19: 171.595 | AD19: -- | AE19: 1.494 | AF19: 1.486 | AG19: 0.97 | AH19: 1645.046 | AI19: 0.164 | AJ19: 0.024 | AK19: -- | AL19: 2.13 | AM19: 0.836 | AN19: 0.503 | AO19: 1.462 | AP19: 2.182 | AQ19: 0.794 | AR19: 0.542 | AS19: 1.443 | AT19: 1.575 | AU19: 13.441 | AV19: 0.015 | AW19: 0.961 | AX19: 2285.364 | AY19: 1760.989 | AZ19: 916.572 | BA19: 1700.922 | BB19: -- | BC19: -- | BD19: 0.194 | BE19: 0.105 | BF19: 0.064 | BG19: 0.152 | BH19: 0.197 | BI19: 0.099 | BJ19: 0.067 | BK19: 0.149 | BL19: 0.144 | BM19: 1.696 | BN19: 0.002 | BO19: 0.1 | BP19: 208.46 | BQ19: 222.231 | BR19: 116.859 | BS19: 176.934 | BT19: -- | BU19: -- | BV19: 1.441 | BW19: 1.435 | BX19: 0.783 | BY19: 1575.09 | BZ19: 0.148 | CA19: 0.021 | CB19: 1585.176 | CC19: -- | CD19: 62858367.76 | CE19: 521322.665 | CF19: 46303050.38 | CG19: 9708441 | CH19: 140486961.3 | CI19: 3628596.478 | CJ19: 24403614 | CK19: 3900194 | CL19: 1771344 | CM19: 827454.757 | CN19: 372692.439 | CO19: 120591329 | CP19: 174190709.8 | CQ19: 33703748.48 | CR19: 114511484.5 | CS19: 180270554.3 | CT19: 0.213236763 | CU19: 0.001768502135 | CV19: 0.1570755483 | CW19: 0.03293430305 | CX19: 0.4765791088 | CY19: 0.01230942188 | CZ19: 0.08278528128 | DA19: 0.01323077219 | DB19: 0.006008995687 | DC19: 0.00280700534 | DD19: 0.001264298329 | DE19: 0.4090864202 | DF19: 0.5909135798 | DG19: 0.114334471 | DH19: 0.388461539 | DI19: 0.611538461 | DK19: =(F19/H19)*1000 -> 3724.10093 | DL19: =(BA19/BS19)*1000 -> 9613.313439 | DM19: =(BY19/BS19)*1000 -> 8902.132999 | DN19: 10963.08165 | DO19: 7924.137497 | DP19: 7843.401022 | DR19: 1410.673683
A20: 14 | B20: 73 | C20: NYCW - NPCC NYC/Westchester | E20: 17330.7 | F20: 217440402.2 | G20: 111205156.2 | H20: 43455636.9 | I20: 20558668.47 | J20: 5455.72 | K20: 2562.186 | L20: 565.046 | M20: 12958779.13 | N20: 961210.418 | O20: 115904.017 | P20: 12988062.96 | Q20: -- | R20: 0.251 | S20: 0.249 | T20: 0.026 | U20: 596.414 | V20: 0.022 | W20: 0.003 | X20: 597.762 | Y20: -- | Z20: 0.05 | AA20: 0.046 | AB20: 0.005 | AC20: 119.194 | AD20: -- | AE20: 0.402 | AF20: 0.399 | AG20: 0.042 | AH20: 955.307 | AI20: 0.035 | AJ20: 0.004 | AK20: -- | AL20: 0 | AM20: 41.387 | AN20: 0.297 | AO20: 0.329 | AP20: 0 | AQ20: 12.713 | AR20: 0.311 | AS20: 0.319 | AT20: 0 | AU20: 1.958 | AV20: 0.031 | AW20: 0.032 | AX20: 0 | AY20: 3673.333 | AZ20: 940.601 | BA20: 942.722 | BB20: -- | BC20: -- | BD20: 0 | BE20: 1.841 | BF20: 0.038 | BG20: 0.042 | BH20: 0 | BI20: 0.401 | BJ20: 0.038 | BK20: 0.039 | BL20: 0 | BM20: 0.087 | BN20: 0.004 | BO20: 0.004 | BP20: 0 | BQ20: 163.425 | BR20: 119.832 | BS20: 119.929 | BT20: -- | BU20: -- | BV20: 0.488 | BW20: 0.453 | BX20: 0.055 | BY20: 1067.585 | BZ20: 0.022 | CA20: 0.002 | CB20: 1068.876 | CC20: -- | CD20: 0 | CE20: 615291.956 | CF20: 26119820.4 | CG20: 16318960 | CH20: 0 | CI20: 394972 | CJ20: 0 | CK20: 6592 | CL20: 0 | CM20: 0 | CN20: 0 | CO20: 43054072.36 | CP20: 401564 | CQ20: 401564 | CR20: 27130084.36 | CS20: 16325552 | CT20: 0 | CU20: 0.01415908286 | CV20: 0.6010686436 | CW20: 0.375531493 | CX20: 0 | CY20: 0.009089085631 | CZ20: 0 | DA20: 0.0001516949365 | DB20: 0 | DC20: 0 | DD20: 0 | DE20: 0.9907592194 | DF20: 0.009240780567 | DG20: 0.009240780567 | DH20: 0.6243168121 | DI20: 0.3756831879 | DK20: =(F20/H20)*1000 -> 5003.732949 | DL20: =(BA20/BS20)*1000 -> 7860.667562 | DM20: =(BY20/BS20)*1000 -> 8901.80857 | DN20: - | DO20: 22477.17913 | DP20: 7849.33073 | DR20: 2070.933586
A21: 15 | B21: 71 | C21: NYLI - NPCC Long Island | E21: 6322.3 | F21: 106245574.1 | G21: 54915311.85 | H21: 10573426.17 | I21: 5253727.701 | J21: 4545.323 | K21: 2175.184 | L21: 1235.422 | M21: 6260744.669 | N21: 1473213.793 | O21: 190397.165 | P21: 6307529.019 | Q21: -- | R21: 0.86 | S21: 0.828 | T21: 0.234 | U21: 1184.241 | V21: 0.139 | W21: 0.018 | X21: 1193.091 | Y21: -- | Z21: 0.086 | AA21: 0.079 | AB21: 0.023 | AC21: 117.854 | AD21: -- | AE21: 0.871 | AF21: 0.839 | AG21: 0.237 | AH21: 1199.694 | AI21: 0.141 | AJ21: 0.018 | AK21: -- | AL21: 0 | AM21: 1.009 | AN21: 0.528 | AO21: 0.671 | AP21: 0 | AQ21: 0.832 | AR21: 0.568 | AS21: 0.657 | AT21: 0 | AU21: 0.578 | AV21: 0.099 | AW21: 0.241 | AX21: 0 | AY21: 1368.555 | AZ21: 1038.751 | BA21: 1136.368 | BB21: -- | BC21: -- | BD21: 0 | BE21: 0.092 | BF21: 0.061 | BG21: 0.072 | BH21: 0 | BI21: 0.073 | BJ21: 0.062 | BK21: 0.066 | BL21: 0 | BM21: 0.053 | BN21: 0.011 | BO21: 0.026 | BP21: 0 | BQ21: 124.944 | BR21: 120.153 | BS21: 121.818 | BT21: -- | BU21: -- | BV21: 0.972 | BW21: 0.889 | BX21: 0.371 | BY21: 1320.28 | BZ21: 0.04 | CA21: 0.005 | CB21: 1322.796 | CC21: -- | CD21: 0 | CE21: 580552.94 | CF21: 8908363.96 | CG21: 0 | CH21: 0 | CI21: 948320.282 | CJ21: 0 | CK21: 136189 | CL21: 0 | CM21: 0 | CN21: 0 | CO21: 9488916.9 | CP21: 1084509.282 | CQ21: 1084509.282 | CR21: 10437237.18 | CS21: 136189 | CT21: 0 | CU21: 0.05490679464 | CV21: 0.8425238713 | CW21: 0 | CX21: 0 | CY21: 0.0896890247 | CZ21: 0 | DA21: 0.01288030934 | DB21: 0 | DC21: 0 | DD21: 0 | DE21: 0.897430666 | DF21: 0.102569334 | DG21: 0.102569334 | DH21: 0.9871196907 | DI21: 0.01288030934 | DK21: 10048.35826 | DL21: 9328.407953 | DM21: 10838.13558 | DN21: - | DO21: 10953.3471 | DP21: 8645.235658 | DR21: 1905.240692
A22: 16 | B22: 74 | C22: NYUP - NPCC Upstate NY | E22: 30838.4 | F22: 190939251.5 | G22: 91854950.19 | H22: 84997203.74 | I22: 36250641.85 | J22: 5773.208 | K22: 2468.416 | L22: 3916.441 | M22: 10756913.35 | N22: 1498747.956 | O22: 192395.121 | P22: 10789935.38 | Q22: -- | R22: 0.136 | S22: 0.136 | T22: 0.092 | U22: 253.112 | V22: 0.018 | W22: 0.002 | X22: 253.889 | Y22: -- | Z22: 0.06 | AA22: 0.054 | AB22: 0.041 | AC22: 112.674 | AD22: -- | AE22: 0.464 | AF22: 0.466 | AG22: 0.315 | AH22: 865.469 | AI22: 0.06 | AJ22: 0.008 | AK22: -- | AL22: 1.691 | AM22: 2.17 | AN22: 0.256 | AO22: 0.363 | AP22: 1.608 | AQ22: 1.72 | AR22: 0.248 | AS22: 0.318 | AT22: 6.669 | AU22: 2.436 | AV22: 0.043 | AW22: 0.319 | AX22: 2043.674 | AY22: 1183.795 | AZ22: 847.601 | BA22: 894.104 | BB22: -- | BC22: -- | BD22: 0.17 | BE22: 0.236 | BF22: 0.036 | BG22: 0.05 | BH22: 0.157 | BI22: 0.175 | BJ22: 0.034 | BK22: 0.043 | BL22: 0.67 | BM22: 0.265 | BN22: 0.006 | BO22: 0.044 | BP22: 205.204 | BQ22: 128.931 | BR22: 119.031 | BS22: 122.924 | BT22: -- | BU22: -- | BV22: 0.5 | BW22: 0.456 | BX22: 0.46 | BY22: 931.489 | BZ22: 0.043 | CA22: 0.005 | CB22: 933.969 | CC22: -- | CD22: 690385.625 | CE22: 480651.438 | CF22: 22015366.73 | CG22: 26600051 | CH22: 29413127 | CI22: 1684140.146 | CJ22: 3980870 | CK22: 145164 | CL22: 0 | CM22: 275.93 | CN22: -12828 | CO22: 49773902.72 | CP22: 35223301.15 | CQ22: 5810174.146 | CR22: 24857991.86 | CS22: 60139212 | CT22: 0.008122451017 | CU22: 0.005654908822 | CV22: 0.2590128348 | CW22: 0.3129520713 | CX22: 0.3460481717 | CY22: 0.01981406528 | CZ22: 0.04683530539 | DA22: 0.001707867946 | DB22: 0 | DC22: 3.246342085e-06 | DD22: 0 | DE22: 0.5855945896 | DF22: 0.4144054104 | DG22: 0.06835723861 | DH22: 0.2924565837 | DI22: 0.7075434163 | DK22: 2246.418036 | DL22: 7273.632488 | DM22: 7577.763496 | DN22: 9959.230814 | DO22: 9181.616524 | DP22: 7120.84247 | DR22: 1695.075336
A23: 17 | B23: 75 | C23: RFCE - RFC East | E23: 98983.5 | F23: 1446275545 | G23: 661110549 | H23: 297325701 | I23: 133177734 | J23: 49542.793 | K23: 19145.827 | L23: 71358.326 | M23: 106437584.6 | N23: 18066011.57 | O23: 2489194.043 | P23: 107034190.6 | Q23: -- | R23: 0.333 | S23: 0.288 | T23: 0.48 | U23: 715.966 | V23: 0.061 | W23: 0.008 | X23: 719.979 | Y23: -- | Z23: 0.069 | AA23: 0.058 | AB23: 0.099 | AC23: 147.189 | AD23: -- | AE23: 0.579 | AF23: 0.499 | AG23: 0.834 | AH23: 1243.413 | AI23: 0.106 | AJ23: 0.015 | AK23: -- | AL23: 1.165 | AM23: 1.599 | AN23: 0.187 | AO23: 0.509 | AP23: 0.969 | AQ23: 1.268 | AR23: 0.173 | AS23: 0.415 | AT23: 2.8 | AU23: 0.345 | AV23: 0.006 | AW23: 0.832 | AX23: 2189.848 | AY23: 1227.215 | AZ23: 849.551 | BA23: 1248.735 | BB23: -- | BC23: -- | BD23: 0.109 | BE23: 0.164 | BF23: 0.026 | BG23: 0.062 | BH23: 0.09 | BI23: 0.131 | BJ23: 0.025 | BK23: 0.051 | BL23: 0.261 | BM23: 0.035 | BN23: 0.001 | BO23: 0.101 | BP23: 204.288 | BQ23: 125.946 | BR23: 118.801 | BS23: 151.112 | BT23: -- | BU23: -- | BV23: 0.681 | BW23: 0.55 | BX23: 0.803 | BY23: 1242.601 | BZ23: 0.091 | CA23: 0.013 | CB23: 1248.615 | CC23: -- | CD23: 46225708.6 | CE23: 1388192.73 | CF23: 117883989.2 | CG23: 115793325 | CH23: 5841885 | CI23: 5137562.726 | CJ23: 2953137 | CK23: 1530212.28 | CL23: 0 | CM23: 565125.197 | CN23: 1729 | CO23: 281858069.7 | CP23: 15462797.01 | CQ23: 9620912.006 | CR23: 171202307.5 | CS23: 126118559.3 | CT23: 0.1554741486 | CU23: 0.004669005392 | CV23: 0.3964874396 | CW23: 0.389455763 | CX23: 0.01964841911 | CY23: 0.0172795229 | CZ23: 0.009932491562 | DA23: 0.005146669646 | DB23: 0 | DC23: 0.001900724975 | DD23: 5.815266244e-06 | DE23: 0.9479928968 | DF23: 0.05200710322 | DG23: 0.03235868411 | DH23: 0.5758166567 | DI23: 0.4241833433 | DK23: 4864.280284 | DL23: 8263.63889 | DM23: 8223.046482 | DN23: 10719.41573 | DO23: 9743.977578 | DP23: 7151.0425 | DR23: 969.4014016
A24: 18 | B24: 76 | C24: RFCM - RFC Michigan | E24: 34643.2 | F24: 718909153.4 | G24: 333058825.3 | H24: 94438352.95 | I24: 42659020.37 | J24: 37679.469 | K24: 16891.524 | L24: 61217.261 | M24: 61978018.63 | N24: 12146091.94 | O24: 1733184.122 | P24: 62385251.53 | Q24: -- | R24: 0.798 | S24: 0.792 | T24: 1.296 | U24: 1312.56 | V24: 0.129 | W24: 0.018 | X24: 1321.185 | Y24: -- | Z24: 0.105 | AA24: 0.101 | AB24: 0.17 | AC24: 172.422 | AD24: -- | AE24: 0.989 | AF24: 0.981 | AG24: 1.606 | AH24: 1626.089 | AI24: 0.159 | AJ24: 0.023 | AK24: -- | AL24: 1.351 | AM24: 7.16 | AN24: 0.424 | AO24: 0.97 | AP24: 1.292 | AQ24: 6.769 | AR24: 0.436 | AS24: 0.956 | AT24: 2.811 | AU24: 4.626 | AV24: 0.038 | AW24: 1.636 | AX24: 2237.08 | AY24: 1458.616 | AZ24: 883.388 | BA24: 1660.266 | BB24: -- | BC24: -- | BD24: 0.126 | BE24: 1.052 | BF24: 0.057 | BG24: 0.104 | BH24: 0.121 | BI24: 1.097 | BJ24: 0.056 | BK24: 0.101 | BL24: 0.262 | BM24: 0.68 | BN24: 0.005 | BO24: 0.175 | BP24: 208.372 | BQ24: 214.319 | BR24: 118.02 | BS24: 177.636 | BT24: -- | BU24: -- | BV24: 1.223 | BW24: 1.199 | BX24: 2.05 | BY24: 1748.862 | BZ24: 0.171 | CA24: 0.024 | CB24: 1760.256 | CC24: -- | CD24: 40764992.55 | CE24: 1204424.85 | CF24: 30702018.54 | CG24: 12867882 | CH24: -149501 | CI24: 1854854.298 | CJ24: 5381820 | CK24: 108613 | CL24: 0 | CM24: 1701769.516 | CN24: 1478.021 | CO24: 87242565.47 | CP24: 7195786.298 | CQ24: 7345287.298 | CR24: 76229537.77 | CS24: 18208814 | CT24: 0.4309749228 | CU24: 0.01273339879 | CV24: 0.3245873295 | CW24: 0.1360415912 | CX24: 0 | CY24: 0.01960985733 | CZ24: 0.05689758085 | DA24: 0.00114827641 | DB24: 0 | DC24: 0.01799141714 | DD24: 1.56259071e-05 | DE24: 0.9223442854 | DF24: 0.0760751628 | DG24: 0.07765571459 | DH24: 0.8059125515 | DI24: 0.1925068967 | DK24: 7612.470261 | DL24: 9346.450044 | DM24: 9845.200297 | DN24: 10735.9914 | DO24: 6805.817496 | DP24: 7485.070327 | DR24: 1222.012706
A25: 19 | B25: 77 | C25: RFCW - RFC West | E25: 192652.6 | F25: 3408013502 | G25: 1516182385 | H25: 532056236 | I25: 227773872.8 | J25: 219439.476 | K25: 74203.693 | L25: 246166.416 | M25: 310214413.1 | N25: 62040155.48 | O25: 8958547.553 | P25: 312324738.7 | Q25: -- | R25: 0.825 | S25: 0.652 | T25: 0.925 | U25: 1166.096 | V25: 0.117 | W25: 0.017 | X25: 1174.029 | Y25: -- | Z25: 0.129 | AA25: 0.098 | AB25: 0.144 | AC25: 182.05 | AD25: -- | AE25: 1.229 | AF25: 0.971 | AG25: 1.379 | AH25: 1737.584 | AI25: 0.174 | AJ25: 0.025 | AK25: -- | AL25: 1.51 | AM25: 1.719 | AN25: 0.239 | AO25: 1.116 | AP25: 1.271 | AQ25: 1.677 | AR25: 0.27 | AS25: 0.948 | AT25: 1.99 | AU25: 5.003 | AV25: 0.033 | AW25: 1.392 | AX25: 2133.76 | AY25: 3028.016 | AZ25: 926.486 | BA25: 1761.24 | BB25: -- | BC25: -- | BD25: 0.146 | BE25: 0.118 | BF25: 0.031 | BG25: 0.117 | BH25: 0.121 | BI25: 0.115 | BJ25: 0.033 | BK25: 0.097 | BL25: 0.192 | BM25: 0.344 | BN25: 0.004 | BO25: 0.145 | BP25: 205.905 | BQ25: 208.263 | BR25: 119.042 | BS25: 183.988 | BT25: -- | BU25: -- | BV25: 1.365 | BW25: 1.08 | BX25: 1.437 | BY25: 1828.301 | BZ25: 0.179 | CA25: 0.026 | CB25: 1840.479 | CC25: -- | CD25: 236267530.7 | CE25: 1730122.285 | CF25: 111615146 | CG25: 150463238 | CH25: 4744499 | CI25: 3394433.154 | CJ25: 19197342.76 | CK25: 587043.54 | CL25: 0 | CM25: 3793855.28 | CN25: 263026.546 | CO25: 504132918.8 | CP25: 27923318.45 | CQ25: 23178819.45 | CR25: 357064114 | CS25: 174992123.3 | CT25: 0.4440649581 | CU25: 0.003251765817 | CV25: 0.2097807303 | CW25: 0.2827957412 | CX25: 0.008917288564 | CY25: 0.00637983904 | CZ25: 0.03608141661 | DA25: 0.001103348667 | DB25: 0 | DC25: 0.007130553152 | DD25: 0.0004943585425 | DE25: 0.9475181071 | DF25: 0.05248189288 | DG25: 0.04356460432 | DH25: 0.6711022049 | DI25: 0.3288977951 | DK25: 6405.363328 | DL25: 9572.58082 | DM25: 9937.066548 | DN25: 10362.83723 | DO25: 14539.3853 | DP25: 7782.849751 | DR25: 989.5555599
A26: 20 | B26: 87 | C26: RMPA - WECC Rockies | E26: 23700 | F26: 461008225.1 | G26: 206810117.5 | H26: 65413619.7 | I26: 28638396.08 | J26: 22026.455 | K26: 9872.643 | L26: 13670.233 | M26: 41655881.48 | N26: 8037533.336 | O26: 1154103.72 | P26: 41928312.1 | Q26: -- | R26: 0.673 | S26: 0.689 | T26: 0.418 | U26: 1273.615 | V26: 0.123 | W26: 0.018 | X26: 1281.944 | Y26: -- | Z26: 0.096 | AA26: 0.095 | AB26: 0.059 | AC26: 180.716 | AD26: -- | AE26: 0.954 | AF26: 0.977 | AG26: 0.592 | AH26: 1804.184 | AI26: 0.174 | AJ26: 0.025 | AK26: -- | AL26: 1.276 | AM26: 26.652 | AN26: 0.361 | AO26: 0.952 | AP26: 1.313 | AQ26: 18.203 | AR26: 0.354 | AS26: 0.953 | AT26: 0.917 | AU26: 11.622 | AV26: 0.006 | AW26: 0.594 | AX26: 2257.805 | AY26: 3891.886 | AZ26: 1004.855 | BA26: 1812.973 | BB26: -- | BC26: -- | BD26: 0.118 | BE26: 1.118 | BF26: 0.043 | BG26: 0.095 | BH26: 0.121 | BI26: 1.11 | BJ26: 0.041 | BK26: 0.095 | BL26: 0.085 | BM26: 0.488 | BN26: 0.001 | BO26: 0.059 | BP26: 208.458 | BQ26: 163.326 | BR26: 118.808 | BS26: 181.498 | BT26: -- | BU26: -- | BV26: 0.834 | BW26: 0.821 | BX26: 0.365 | BY26: 1542.592 | BZ26: 0.12 | CA26: 0.017 | CB26: 1550.683 | CC26: -- | CD26: 29281319.81 | CE26: 11951.885 | CF26: 16659982.62 | CG26: 0 | CH26: 8148570 | CI26: 164427.339 | CJ26: 10025696 | CK26: 1062380.23 | CL26: 0 | CM26: 0 | CN26: 59292 | CO26: 46012546.31 | CP26: 19401073.57 | CQ26: 11252503.57 | CR26: 46176973.65 | CS26: 19236646.23 | CT26: 0.4476333807 | CU26: 0.0001827124844 | CV26: 0.2546867556 | CW26: 0 | CX26: 0.1245699292 | CY26: 0.002513656014 | CZ26: 0.1532661855 | DA26: 0.01624096376 | DB26: 0 | DC26: 0 | DD26: 0.0009064167387 | DE26: 0.7034092655 | DF26: 0.2965907345 | DG26: 0.1720208053 | DH26: 0.7059229215 | DI26: 0.2940770785 | DK26: =(F26/H26)*1000 -> 7047.587754 | DL26: =(BA26/BS26)*1000 -> 9988.942027 | DM26: =(BY26/BS26)*1000 -> 8499.223132 | DN26: =IFERROR((AX26/BP26)*1000,"-") -> 10830.98274 | DO26: 23828.94334 | DP26: 8457.805872 | DR26: 1742.747768
A27: 21 | B27: 83 | C27: SPNO - SPP North | E27: 30309 | F27: 424719247.9 | G27: 203327611.5 | H27: 70807115.14 | I27: 31371782.04 | J27: 22726.88 | K27: 11296.003 | L27: 11784.421 | M27: 41180960.25 | N27: 8752500.431 | O27: 1266243.983 | P27: 41479036.86 | Q27: -- | R27: 0.642 | S27: 0.72 | T27: 0.333 | U27: 1163.187 | V27: 0.124 | W27: 0.018 | X27: 1171.606 | Y27: -- | Z27: 0.107 | AA27: 0.111 | AB27: 0.055 | AC27: 193.921 | AD27: -- | AE27: 1.09 | AF27: 1.223 | AG27: 0.565 | AH27: 1974.898 | AI27: 0.21 | AJ27: 0.03 | AK27: -- | AL27: 1.059 | AM27: 63.346 | AN27: 1.188 | AO27: 1.092 | AP27: 1.082 | AQ27: 70.907 | AR27: 1.277 | AS27: 1.131 | AT27: 0.698 | AU27: 4.125 | AV27: 0.011 | AW27: 0.565 | AX27: 2206.536 | AY27: 6203.206 | AZ27: 1024.804 | BA27: 1978.513 | BB27: -- | BC27: -- | BD27: 0.1 | BE27: 1.641 | BF27: 0.138 | BG27: 0.107 | BH27: 0.103 | BI27: 1.582 | BJ27: 0.147 | BK27: 0.111 | BL27: 0.066 | BM27: 0.107 | BN27: 0.001 | BO27: 0.056 | BP27: 209.135 | BQ27: 160.662 | BR27: 118.925 | BS27: 194.346 | BT27: -- | BU27: -- | BV27: 1.225 | BW27: 1.27 | BX27: 0.738 | BY27: 1945.506 | BZ27: 0.201 | CA27: 0.029 | CB27: 1959.167 | CC27: -- | CD27: 33240732.54 | CE27: 106427.065 | CF27: 8274832.3 | CG27: 9168289 | CH27: 108849 | CI27: 76633.2 | CJ27: 19787361 | CK27: 38217 | CL27: 0 | CM27: 764.085 | CN27: 5010 | CO27: 50796054.99 | CP27: 20011060.2 | CQ27: 19902211.2 | CR27: 41704399.19 | CS27: 29102716 | CT27: 0.4694546932 | CU27: 0.00150305608 | CV27: 0.1168644179 | CW27: 0.1294825947 | CX27: 0.001537260764 | CY27: 0.001082281064 | CZ27: 0.2794544157 | DA27: 0.0005397338939 | DB27: 0 | DC27: 1.079107655e-05 | DD27: 7.075560114e-05 | DE27: 0.7173863086 | DF27: 0.2826136914 | DG27: 0.2810764306 | DH27: 0.588985995 | DI27: 0.411014005 | DK27: =(F27/H27)*1000 -> 5998.25663 | DL27: =(BA27/BS27)*1000 -> 10180.36389 | DM27: =(BY27/BS27)*1000 -> 10010.52762 | DN27: 10550.77342 | DO27: 38610.28744 | DP27: 8617.229346 | DR27: 1592.915294
A28: 22 | B28: 84 | C28: SPSO - SPP South | E28: 62595.8 | F28: 1143060537 | G28: 576005988.5 | H28: 160677686.1 | I28: 75155469.83 | J28: 66869.941 | K28: 33155.601 | L28: 99741.372 | M28: 93721842.78 | N28: 14571652.9 | O28: 2105943.998 | P28: 94217774.09 | Q28: -- | R28: 0.832 | S28: 0.882 | T28: 1.242 | U28: 1166.582 | V28: 0.091 | W28: 0.013 | X28: 1172.755 | Y28: -- | Z28: 0.117 | AA28: 0.115 | AB28: 0.175 | AC28: 163.984 | AD28: -- | AE28: 1.119 | AF28: 1.186 | AG28: 1.669 | AH28: 1568.254 | AI28: 0.122 | AJ28: 0.018 | AK28: -- | AL28: 1.545 | AM28: 31.173 | AN28: 0.742 | AO28: 1.122 | AP28: 1.552 | AQ28: 31.207 | AR28: 0.771 | AS28: 1.12 | AT28: 3.445 | AU28: 3.161 | AV28: 0.042 | AW28: 1.648 | AX28: 2235.38 | AY28: 1608.589 | AZ28: 1025.627 | BA28: 1597.855 | BB28: -- | BC28: -- | BD28: 0.143 | BE28: 2.851 | BF28: 0.086 | BG28: 0.116 | BH28: 0.143 | BI28: 2.904 | BJ28: 0.086 | BK28: 0.115 | BL28: 0.318 | BM28: 0.289 | BN28: 0.005 | BO28: 0.171 | BP28: 206.651 | BQ28: 147.121 | BR28: 119.332 | BS28: 165.726 | BT28: -- | BU28: -- | BV28: 1.297 | BW28: 1.293 | BX28: 1.875 | BY28: 1603.489 | BZ28: 0.118 | CA28: 0.017 | CB28: 1611.485 | CC28: -- | CD28: 49714376.45 | CE28: 2736012.613 | CF28: 64250330.1 | CG28: 0 | CH28: 4509999 | CI28: 2314425.841 | CJ28: 35999514 | CK28: 644342.55 | CL28: 0 | CM28: 414802.938 | CN28: 93882 | CO28: 117209404.1 | CP28: 43468281.39 | CQ28: 38958282.39 | CR28: 119523829.9 | CS28: 41153855.55 | CT28: 0.30940436 | CU28: 0.01702795634 | CV28: 0.3998708962 | CW28: 0 | CX28: 0.0280686082 | CY28: 0.01440415223 | CZ28: 0.2240479995 | DA28: 0.004010155785 | DB28: 0 | DC28: 0.002581583975 | DD28: 0.0005842877293 | DE28: 0.7294690843 | DF28: 0.2705309157 | DG28: 0.2424623075 | DH28: 0.7438732365 | DI28: 0.2561267635 | DK28: =(F28/H28)*1000 -> 7113.99675 | DL28: =(BA28/BS28)*1000 -> 9641.546891 | DM28: =(BY28/BS28)*1000 -> 9675.542763 | DN28: 10817.17485 | DO28: 10933.7824 | DP28: 8594.735695 | DR28: 1109.447881
A29: 23 | B29: 79 | C29: SRMV - SERC Mississippi Valley | E29: 58995.6 | F29: 1068665075 | G29: 518428723.1 | H29: 177877882.9 | I29: 81576543.57 | J29: 54606.844 | K29: 27387.071 | L29: 85416.148 | M29: 76011193.77 | N29: 9797909.222 | O29: 1401016.159 | P29: 76342419.04 | Q29: -- | R29: 0.614 | S29: 0.671 | T29: 0.96 | U29: 854.645 | V29: 0.055 | W29: 0.008 | X29: 858.369 | Y29: -- | Z29: 0.102 | AA29: 0.106 | AB29: 0.16 | AC29: 142.254 | AD29: -- | AE29: 0.788 | AF29: 0.862 | AG29: 1.233 | AH29: 1097.288 | AI29: 0.071 | AJ29: 0.01 | AK29: -- | AL29: 1.439 | AM29: 0.506 | AN29: 0.622 | AO29: 0.798 | AP29: 1.464 | AQ29: 0.301 | AR29: 0.684 | AS29: 0.843 | AT29: 4.548 | AU29: 6.958 | AV29: 0.006 | AW29: 1.222 | AX29: 2216.699 | AY29: 927.399 | AZ29: 848.479 | BA29: 1137.502 | BB29: -- | BC29: -- | BD29: 0.134 | BE29: 0.11 | BF29: 0.087 | BG29: 0.102 | BH29: 0.136 | BI29: 0.076 | BJ29: 0.093 | BK29: 0.106 | BL29: 0.425 | BM29: 1.512 | BN29: 0.001 | BO29: 0.157 | BP29: 207.104 | BQ29: 201.49 | BR29: 118.674 | BS29: 146.052 | BT29: -- | BU29: -- | BV29: 0.891 | BW29: 0.942 | BX29: 1.39 | BY29: 1137.619 | BZ29: 0.069 | CA29: 0.01 | CB29: 1142.241 | CC29: -- | CD29: 29847037.5 | CE29: 1724346.945 | CF29: 100575440.7 | CG29: 36792870 | CH29: 2348342 | CI29: 2874380.706 | CJ29: 0 | CK29: 192915 | CL29: 0 | CM29: 2990052.27 | CN29: 532498.01 | CO29: 172462245.4 | CP29: 5415637.706 | CQ29: 3067295.706 | CR29: 138543756.1 | CS29: 39334127 | CT29: 0.1677951018 | CU29: 0.009693992951 | CV29: 0.5654184709 | CW29: 0.2068434218 | CX29: 0.01320198981 | CY29: 0.0161592923 | CZ29: 0 | DA29: 0.001084536181 | DB29: 0 | DC29: 0.01680957867 | DD29: 0.002993615624 | DE29: 0.9695541817 | DF29: 0.03044581829 | DG29: 0.01724382848 | DH29: 0.7788700522 | DI29: 0.2211299478 | DK29: =(F29/H29)*1000 -> 6007.858075 | DL29: =(BA29/BS29)*1000 -> 7788.335661 | DM29: =(BY29/BS29)*1000 -> 7789.136746 | DN29: 10703.31331 | DO29: 4602.704849 | DP29: 7149.6621 | DR29: 1686.327464
A30: 24 | B30: 78 | C30: SRMW - SERC Midwest | E30: 40774.4 | F30: 1064250172 | G30: 481925848.9 | H30: 128388555.5 | I30: 57042903.67 | J30: 68065.135 | K30: 22554.435 | L30: 159742.541 | M30: 106828904.1 | N30: 23771483.64 | O30: 3447887.286 | P30: 107639782.8 | Q30: -- | R30: 1.06 | S30: 0.791 | T30: 2.488 | U30: 1664.15 | V30: 0.185 | W30: 0.027 | X30: 1676.782 | Y30: -- | Z30: 0.128 | AA30: 0.094 | AB30: 0.3 | AC30: 200.759 | AD30: -- | AE30: 1.325 | AF30: 0.988 | AG30: 3.11 | AH30: 2079.533 | AI30: 0.231 | AJ30: 0.034 | AK30: -- | AL30: 1.462 | AM30: 37.855 | AN30: 0.317 | AO30: 1.326 | AP30: 1.054 | AQ30: 46.491 | AR30: 0.332 | AS30: 0.955 | AT30: 3.526 | AU30: 8.681 | AV30: 0.078 | AW30: 3.114 | AX30: 2244.964 | AY30: 3348.632 | AZ30: 904.462 | BA30: 2084.305 | BB30: -- | BC30: -- | BD30: 0.136 | BE30: 1.846 | BF30: 0.042 | BG30: 0.128 | BH30: 0.1 | BI30: 1.648 | BJ30: 0.041 | BK30: 0.094 | BL30: 0.328 | BM30: 0.423 | BN30: 0.01 | BO30: 0.3 | BP30: 208.906 | BQ30: 163.326 | BR30: 119.356 | BS30: 201.091 | BT30: -- | BU30: -- | BV30: 1.079 | BW30: 0.891 | BX30: 2.654 | BY30: 1907.003 | BZ30: 0.204 | CA30: 0.03 | CB30: 1920.912 | CC30: -- | CD30: 90145682.45 | CE30: 69073.722 | CF30: 12083951.04 | CG30: 19001965 | CH30: 1246760 | CI30: 169907.8 | CJ30: 5344108 | CK30: 52536 | CL30: 0 | CM30: 32991.43 | CN30: 241579.76 | CO30: 121575243.4 | CP30: 6813311.8 | CQ30: 5566551.8 | CR30: 102743186.2 | CS30: 25645369 | CT30: 0.7021317617 | CU30: 0.000538005291 | CV30: 0.09412015753 | CW30: 0.1480035738 | CX30: 0.009710834412 | CY30: 0.001323387429 | CZ30: 0.04162448897 | DA30: 0.0004091953517 | DB30: 0 | DC30: 0.0002569655056 | DD30: 0.001881630022 | DE30: 0.9469320938 | DF30: 0.05306790616 | DG30: 0.04335707175 | DH30: 0.8002519075 | DI30: 0.1997480925 | DK30: 8289.291576 | DL30: 10364.98401 | DM30: 9483.283687 | DN30: 10746.2878 | DO30: 20502.7491 | DP30: 7577.851134 | DR30: 1350.501192
A31: 25 | B31: 80 | C31: SRSO - SERC South | E31: 88734.3 | F31: 1759212651 | G31: 854154494 | H31: 262135270.8 | I31: 120673788.5 | J31: 64974.809 | K31: 26120.898 | L31: 38958.17 | M31: 134728132.7 | N31: 21168500.89 | O31: 3100002.954 | P31: 135454639.4 | Q31: -- | R31: 0.496 | S31: 0.433 | T31: 0.297 | U31: 1027.928 | V31: 0.081 | W31: 0.012 | X31: 1033.471 | Y31: -- | Z31: 0.074 | AA31: 0.061 | AB31: 0.044 | AC31: 153.169 | AD31: -- | AE31: 0.64 | AF31: 0.559 | AG31: 0.384 | AH31: 1326.895 | AI31: 0.104 | AJ31: 0.015 | AK31: -- | AL31: 1.117 | AM31: 2.814 | AN31: 0.2 | AO31: 0.621 | AP31: 0.893 | AQ31: 1.929 | AR31: 0.215 | AS31: 0.523 | AT31: 0.605 | AU31: 1.714 | AV31: 0.029 | AW31: 0.294 | AX31: 2007.605 | AY31: 1336.972 | AZ31: 873.364 | BA31: 1390.93 | BB31: -- | BC31: -- | BD31: 0.107 | BE31: 0.417 | BF31: 0.027 | BG31: 0.071 | BH31: 0.084 | BI31: 0.324 | BJ31: 0.028 | BK31: 0.058 | BL31: 0.058 | BM31: 0.254 | BN31: 0.004 | BO31: 0.033 | BP31: 192.758 | BQ31: 198.022 | BR31: 117.919 | BS31: 158.474 | BT31: -- | BU31: -- | BV31: 0.773 | BW31: 0.653 | BX31: 0.453 | BY31: 1413.653 | BZ31: 0.107 | CA31: 0.015 | CB31: 1420.928 | CC31: -- | CD31: 69021595.58 | CE31: 527746.619 | CF31: 123866298.6 | CG31: 48427722 | CH31: 7943747 | CI31: 9561028.126 | CJ31: 0 | CK31: 2691052 | CL31: 0 | CM31: 89915.573 | CN31: 6164.592 | CO31: 241939443 | CP31: 20195827.13 | CQ31: 12252080.13 | CR31: 203072749.1 | CS31: 59062521 | CT31: 0.2633052605 | CU31: 0.00201326063 | CV31: 0.4725281667 | CW31: 0.184743251 | CX31: 0.03030399914 | CY31: 0.03647364249 | CZ31: 0 | DA31: 0.01026589058 | DB31: 0 | DC31: 0.0003430121134 | DD31: 2.35168354e-05 | DE31: 0.9229564678 | DF31: 0.07704353221 | DG31: 0.04673953307 | DH31: 0.7746868593 | DI31: 0.2253131407 | DK31: 6711.087163 | DL31: 8777.02336 | DM31: 8920.409657 | DN31: 10415.15787 | DO31: 6751.633657 | DP31: 7406.473935 | DR31: 1838.282957
A32: 26 | B32: 81 | C32: SRTV - SERC Tennessee Valley | E32: 72620.2 | F32: 1325749460 | G32: 625190733.8 | H32: 224259818.7 | I32: 102120297.3 | J32: 61779.067 | K32: 25719.691 | L32: 69366.35 | M32: 115666169.3 | N32: 21735723.4 | O32: 3135646.662 | P32: 116405077.2 | Q32: -- | R32: 0.551 | S32: 0.504 | T32: 0.619 | U32: 1031.537 | V32: 0.097 | W32: 0.014 | X32: 1038.127 | Y32: -- | Z32: 0.093 | AA32: 0.082 | AB32: 0.105 | AC32: 174.492 | AD32: -- | AE32: 0.877 | AF32: 0.802 | AG32: 0.985 | AH32: 1641.779 | AI32: 0.154 | AJ32: 0.022 | AK32: -- | AL32: 1.292 | AM32: 0.516 | AN32: 0.178 | AO32: 0.877 | AP32: 1.152 | AQ32: 0.421 | AR32: 0.148 | AS32: 0.784 | AT32: 1.532 | AU32: 0.02 | AV32: 0.041 | AW32: 0.974 | AX32: 2101.565 | AY32: 1399.278 | AZ32: 909.823 | BA32: 1657.109 | BB32: -- | BC32: -- | BD32: 0.123 | BE32: 0.044 | BF32: 0.024 | BG32: 0.093 | BH32: 0.108 | BI32: 0.04 | BJ32: 0.019 | BK32: 0.082 | BL32: 0.146 | BM32: 0.002 | BN32: 0.005 | BO32: 0.103 | BP32: 199.974 | BQ32: 119.098 | BR32: 119.881 | BS32: 175.723 | BT32: -- | BU32: -- | BV32: 0.837 | BW32: 0.76 | BX32: 0.913 | BY32: 1644.343 | BZ32: 0.149 | CA32: 0.021 | CB32: 1654.439 | CC32: -- | CD32: 79538305.16 | CE32: 182582.898 | CF32: 59426555.12 | CG32: 61574163 | CH32: 21365448 | CI32: 1684298.418 | CJ32: 41009 | CK32: 375761 | CL32: 0 | CM32: 71744.341 | CN32: -49 | CO32: 200793301.5 | CP32: 23466516.42 | CQ32: 2101068.418 | CR32: 140903436.9 | CS32: 83356381 | CT32: 0.3546703368 | CU32: 0.0008141578803 | CV32: 0.264989759 | CW32: 0.2745661865 | CX32: 0.09527095936 | CY32: 0.007510477951 | CZ32: 0.0001828637889 | DA32: 0.001675560979 | DB32: 0 | DC32: 0.0003199161654 | DD32: 0 | DE32: 0.8953601379 | DF32: 0.1046398621 | DG32: 0.009368902719 | DH32: 0.6283044294 | DI32: 0.3716955706 | DK32: 5911.667406 | DL32: 9430.233948 | DM32: 9357.585518 | DN32: 10509.19119 | DO32: 11748.96304 | DP32: 7589.384473 | DR32: 1909.762644
A33: 27 | B33: 82 | C33: SRVC - SERC Virginia/Carolina | E33: 117247.5 | F33: 1650555486 | G33: 785725528.3 | H33: 328151742.1 | I33: 148647046 | J33: 71721.924 | K33: 31653.665 | L33: 43206.616 | M33: 121962213.3 | N33: 21824638.75 | O33: 3100904.756 | P33: 122648900.7 | Q33: -- | R33: 0.437 | S33: 0.426 | T33: 0.263 | U33: 743.328 | V33: 0.067 | W33: 0.009 | X33: 747.513 | Y33: -- | Z33: 0.087 | AA33: 0.081 | AB33: 0.052 | AC33: 147.783 | AD33: -- | AE33: 0.763 | AF33: 0.744 | AG33: 0.46 | AH33: 1297.767 | AI33: 0.116 | AJ33: 0.016 | AK33: -- | AL33: 1.547 | AM33: 4.12 | AN33: 0.202 | AO33: 0.719 | AP33: 1.412 | AQ33: 3.713 | AR33: 0.192 | AS33: 0.678 | AT33: 0.829 | AU33: 11.142 | AV33: 0.02 | AW33: 0.368 | AX33: 2030.311 | AY33: 1937.097 | AZ33: 920.524 | BA33: 1337.233 | BB33: -- | BC33: -- | BD33: 0.152 | BE33: 0.38 | BF33: 0.026 | BG33: 0.083 | BH33: 0.139 | BI33: 0.357 | BJ33: 0.024 | BK33: 0.077 | BL33: 0.081 | BM33: 1.027 | BN33: 0.003 | BO33: 0.042 | BP33: 199.516 | BQ33: 178.499 | BR33: 118.93 | BS33: 154.442 | BT33: -- | BU33: -- | BV33: 0.877 | BW33: 0.849 | BX33: 0.535 | BY33: 1422.644 | BZ33: 0.128 | CA33: 0.018 | CB33: 1430.869 | CC33: -- | CD33: 62674829.87 | CE33: 1816720.635 | CF33: 113644834.7 | CG33: 124045086 | CH33: 7520186 | CI33: 9243990.381 | CJ33: 1470637 | CK33: 7158751.03 | CL33: 0 | CM33: 343301.93 | CN33: 233405 | CO33: 302758178.1 | CP33: 25393564.41 | CQ33: 17873378.41 | CR33: 187957082.5 | CS33: 140194660 | CT33: 0.1909934391 | CU33: 0.005536221203 | CV33: 0.3463179376 | CW33: 0.3780113585 | CX33: 0.02291679435 | CY33: 0.02816986529 | CZ33: 0.00448157608 | DA33: 0.02181536802 | DB33: 0 | DC33: 0.001046168237 | DD33: 0.0007112715544 | DE33: 0.9226163963 | DF33: 0.07738360374 | DG33: 0.05446680938 | DH33: 0.572774903 | DI33: 0.427225097 | DK33: 5029.854406 | DL33: 8658.480206 | DM33: 9211.509822 | DN33: 10176.18136 | DO33: 10852.14483 | DP33: 7740.048768 | DR33: 2094.886076
A34: 28 | B34: 53 | C34: ASCC | D34: Alaska Systems Coordinating Council | E34: 3165 | F34: 34539246.45 | G34: 13898132.74 | H34: 5319362.15 | I34: 2182790.148 | J34: 11339.937 | K34: 4675.621 | L34: 3066.536 | M34: 2514657.468 | N34: 407158.717 | O34: 57020.858 | P34: 2528243.062 | Q34: -- | R34: 4.264 | S34: 4.284 | T34: 1.153 | U34: 945.473 | V34: 0.077 | W34: 0.011 | X34: 950.581 | Y34: -- | Z34: 0.657 | AA34: 0.673 | AB34: 0.178 | AC34: 145.612 | AD34: -- | AE34: 6.032 | AF34: 6.061 | AG34: 1.631 | AH34: 1337.713 | AI34: 0.108 | AJ34: 0.015 | AK34: -- | AL34: 2.484 | AM34: 18.201 | AN34: 2.78 | AO34: 6.007 | AP34: 2.538 | AQ34: 19.556 | AR34: 2.725 | AS34: 6.106 | AT34: 5.954 | AU34: 2.816 | AV34: 0.028 | AW34: 1.627 | AX34: 2179.98 | AY34: 1576.445 | AZ34: 1018.366 | BA34: 1334.238 | BB34: -- | BC34: -- | BD34: 0.241 | BE34: 1.901 | BF34: 0.319 | BG34: 0.656 | BH34: 0.247 | BI34: 1.99 | BJ34: 0.319 | BK34: 0.672 | BL34: 0.579 | BM34: 0.294 | BN34: 0.003 | BO34: 0.178 | BP34: 211.84 | BQ34: 164.653 | BR34: 116.89 | BS34: 145.604 | BT34: -- | BU34: -- | BV34: 6.917 | BW34: 7.038 | BX34: 1.443 | BY34: 1356.83 | BZ34: 0.116 | CA34: 0.016 | CB34: 1364.597 | CC34: -- | CD34: 628564.073 | CE34: 797953.119 | CF34: 2332847.189 | CG34: 0 | CH34: 1456540 | CI34: 2789.771 | CJ34: 103186 | CK34: 0 | CL34: 0 | CM34: 0 | CN34: -2518 | CO34: 3756846.381 | CP34: 1562515.771 | CQ34: 105975.771 | CR34: 3759636.152 | CS34: 1559726 | CT34: 0.1181094003 | CU34: 0.1499381978 | CV34: 0.4383501925 | CW34: 0 | CX34: 0.2736889893 | CY34: 0.0005242077838 | CZ34: 0.01938901235 | DA34: 0 | DB34: 0 | DC34: 0 | DD34: 0 | DE34: 0.7059246495 | DF34: 0.2936022094 | DG34: 0.01991322014 | DH34: 0.7064488573 | DI34: 0.2930780017 | DK34: 6493.118062 | DL34: 9163.470784 | DM34: 9318.631356 | DN34: 10290.69109 | DO34: 9574.347264 | DP34: 8712.173839 | DR34: 1313.559288
A35: 29 | B35: 54 | C35: FRCC | D35: Florida Reliability Coordinating Council | E35: 102368.5 | F35: 1633195751 | G35: 782317094.4 | H35: 233461835.3 | I35: 108755763.5 | J35: 41583.876 | K35: 19845.812 | L35: 32447.658 | M35: 108778338.5 | N35: 15492099.59 | O35: 2071562.457 | P35: 109280652.5 | Q35: -- | R35: 0.356 | S35: 0.365 | T35: 0.278 | U35: 931.873 | V35: 0.066 | W35: 0.009 | X35: 936.176 | Y35: -- | Z35: 0.051 | AA35: 0.051 | AB35: 0.04 | AC35: 133.209 | AD35: -- | AE35: 0.412 | AF35: 0.422 | AG35: 0.322 | AH35: 1078.311 | AI35: 0.077 | AJ35: 0.01 | AK35: -- | AL35: 0.807 | AM35: 2.337 | AN35: 0.207 | AO35: 0.327 | AP35: 0.852 | AQ35: 2.835 | AR35: 0.218 | AS35: 0.337 | AT35: 1.425 | AU35: 0.996 | AV35: 0.032 | AW35: 0.309 | AX35: 1993.017 | AY35: 1154.467 | AZ35: 870.979 | BA35: 1093.476 | BB35: -- | BC35: -- | BD35: 0.076 | BE35: 0.269 | BF35: 0.028 | BG35: 0.041 | BH35: 0.077 | BI35: 0.194 | BJ35: 0.029 | BK35: 0.042 | BL35: 0.135 | BM35: 0.115 | BN35: 0.004 | BO35: 0.039 | BP35: 188.688 | BQ35: 132.758 | BR35: 119.396 | BS35: 137.666 | BT35: -- | BU35: -- | BV35: 0.415 | BW35: 0.425 | BX35: 0.37 | BY35: 1123.915 | BZ35: 0.068 | CA35: 0.009 | CB35: 1128.326 | CC35: -- | CD35: 27123675.8 | CE35: 2067367.701 | CF35: 164932332.3 | CG35: 29312349 | CH35: 232574 | CI35: 6147734.047 | CJ35: 0 | CK35: 2160007.98 | CL35: 0 | CM35: 28548.926 | CN35: 1457245.097 | CO35: 224921518.8 | CP35: 8540316.027 | CQ35: 8307742.027 | CR35: 201756903.9 | CS35: 31704930.98 | CT35: 0.1161803419 | CU35: 0.008855270508 | CV35: 0.7064637884 | CW35: 0.125555207 | CX35: 0.0009961970878 | CY35: 0.02633292954 | CZ35: 0 | DA35: 0.009252081743 | DB35: 0 | DC35: 0.000122285195 | DD35: 0.006241898586 | DE35: 0.9634187916 | DF35: 0.03658120837 | DG35: 0.03558501128 | DH35: 0.8641965142 | DI35: 0.1358034858 | DK35: 6995.557749 | DL35: 7942.963404 | DM35: 8164.071012 | DN35: 10562.5 | DO35: 8696.025852 | DP35: 7294.875875 | DR35: 1198.785084
A36: 30 | B36: 55 | C36: HICC | D36: Hawaiian Islands Coordinating Council | E36: 3134.9 | F36: 91347062.28 | G36: 39239207.61 | H36: 9553748.995 | I36: 4111571.006 | J36: 22382.528 | K36: 9951.47 | L36: 33635.009 | M36: 7412844.573 | N36: 1530839.967 | O36: 235534.316 | P36: 7467070.058 | Q36: -- | R36: 4.686 | S36: 4.841 | T36: 7.041 | U36: 1551.819 | V36: 0.16 | W36: 0.025 | X36: 1563.171 | Y36: -- | Z36: 0.49 | AA36: 0.507 | AB36: 0.736 | AC36: 162.301 | AD36: -- | AE36: 5.132 | AF36: 5.302 | AG36: 7.713 | AH36: 1699.806 | AI36: 0.176 | AJ36: 0.027 | AK36: -- | AL36: 0.986 | AM36: 6.064 | AN36: 0 | AO36: 5.232 | AP36: 2.361 | AQ36: 5.983 | AR36: 0 | AS36: 5.414 | AT36: 10.58 | AU36: 7.594 | AV36: 0 | AW36: 8.083 | AX36: 2338.064 | AY36: 1616.234 | AZ36: 0 | BA36: 1734.483 | BB36: -- | BC36: -- | BD36: 0.09 | BE36: 0.613 | BF36: 0 | BG36: 0.52 | BH36: 0.217 | BI36: 0.609 | BJ36: 0 | BK36: 0.541 | BL36: 0.966 | BM36: 0.768 | BN36: 0 | BO36: 0.803 | BP36: 213.378 | BQ36: 163.395 | BR36: 0 | BS36: 172.308 | BT36: -- | BU36: -- | BV36: 6.242 | BW36: 6.164 | BX36: 7.5 | BY36: 1658.178 | BZ36: 0.15 | CA36: 0.024 | CB36: 1669.059 | CC36: -- | CD36: 1311203 | CE36: 6748947.181 | CF36: 0 | CG36: 0 | CH36: 96520 | CI36: 416660.981 | CJ36: 601934 | CK36: 23215 | CL36: 110089 | CM36: 55721.626 | CN36: 189458.03 | CO36: 8305329.837 | CP36: 1248418.981 | CQ36: 1151898.981 | CR36: 8721990.818 | CS36: 831758 | CT36: 0.1372448685 | CU36: 0.7064187378 | CV36: 0 | CW36: 0 | CX36: 0.01010284045 | CY36: 0.04361230224 | CZ36: 0.06300500583 | DA36: 0.00242993619 | DB36: 0.01152312062 | DC36: 0.005832435734 | DD36: 0.01983075268 | DE36: 0.8693267947 | DF36: 0.1306732053 | DG36: 0.1205703649 | DH36: 0.9129390969 | DI36: 0.08706090309 | DK36: 9561.383948 | DL36: 10066.17801 | DM36: 9623.33728 | DN36: 10957.3808 | DO36: 9891.57563 | DP36: - | DR36: 1798.274428
A37: 31 | B37: 56 | C37: MRO | D37: Midwest Reliability Organization | E37: 176446.7 | F37: 2915057646 | G37: 1379873654 | H37: 455122653.8 | I37: 199533339.3 | J37: 192204.233 | K37: 88460.558 | L37: 254855.285 | M37: 269299999.5 | N37: 54264284.29 | O37: 7835333.903 | P37: 271139570 | Q37: -- | R37: 0.845 | S37: 0.887 | T37: 1.12 | U37: 1183.417 | V37: 0.119 | W37: 0.017 | X37: 1191.501 | Y37: -- | Z37: 0.132 | AA37: 0.128 | AB37: 0.175 | AC37: 184.765 | AD37: -- | AE37: 1.312 | AF37: 1.377 | AG37: 1.74 | AH37: 1838.229 | AI37: 0.185 | AJ37: 0.027 | AK37: -- | AL37: 1.529 | AM37: 3.577 | AN37: 0.693 | AO37: 1.292 | AP37: 1.51 | AQ37: 3.248 | AR37: 0.734 | AS37: 1.261 | AT37: 2.431 | AU37: 1.55 | AV37: 0.043 | AW37: 1.744 | AX37: 2204.954 | AY37: 1424.81 | AZ37: 1030.703 | BA37: 1867.216 | BB37: -- | BC37: -- | BD37: 0.145 | BE37: 0.406 | BF37: 0.08 | BG37: 0.129 | BH37: 0.143 | BI37: 0.427 | BJ37: 0.082 | BK37: 0.126 | BL37: 0.231 | BM37: 0.176 | BN37: 0.005 | BO37: 0.175 | BP37: 209.503 | BQ37: 161.526 | BR37: 119.397 | BS37: 187.13 | BT37: -- | BU37: -- | BV37: 1.301 | BW37: 1.278 | BX37: 1.575 | BY37: 1721.45 | BZ37: 0.16 | CA37: 0.023 | CB37: 1732.223 | CC37: -- | CD37: 200465652.4 | CE37: 485648.386 | CF37: 86505622.9 | CG37: 34297157 | CH37: 18982178.92 | CI37: 4582209.548 | CJ37: 107169538 | CK37: 1674344.75 | CL37: 0 | CM37: 476648.398 | CN37: 483613.667 | CO37: 322714342.7 | CP37: 132408271.2 | CQ37: 113426092.3 | CR37: 292999395.3 | CS37: 162123218.7 | CT37: 0.4404651543 | CU37: 0.001067071534 | CV37: 0.1900710276 | CW37: 0.07535805945 | CX37: 0.04170783507 | CY37: 0.01006807706 | CZ37: 0.2354739903 | DA37: 0.003678887181 | DB37: 0 | DC37: 0.00104729667 | DD37: 0.001062600829 | DE37: 0.7090712103 | DF37: 0.2909287897 | DG37: 0.2492209546 | DH37: 0.6437812279 | DI37: 0.3562187721 | DK37: 6404.993516 | DL37: 9978.1756 | DM37: 9199.219794 | DN37: 10524.68938 | DO37: 8820.932853 | DP37: 8632.570333 | DR37: 2016.126075
A38: 32 | B38: 57 | C38: NPCC | D38: Northeast Power Coordinating Council | E38: 99590 | F38: 994688125.9 | G38: 479338826.5 | H38: 237953648.4 | I38: 106237012.5 | J38: 36038.893 | K38: 15408.852 | L38: 12884.725 | M38: 55178258.58 | N38: 12436014.22 | O38: 1623025.759 | P38: 55561029.23 | Q38: -- | R38: 0.303 | S38: 0.29 | T38: 0.108 | U38: 463.773 | V38: 0.052 | W38: 0.007 | X38: 466.99 | Y38: -- | Z38: 0.072 | AA38: 0.064 | AB38: 0.026 | AC38: 110.946 | AD38: -- | AE38: 0.609 | AF38: 0.583 | AG38: 0.218 | AH38: 932.753 | AI38: 0.105 | AJ38: 0.014 | AK38: -- | AL38: 2.195 | AM38: 1.861 | AN38: 0.287 | AO38: 0.379 | AP38: 2.045 | AQ38: 1.311 | AR38: 0.285 | AS38: 0.338 | AT38: 3.916 | AU38: 1.572 | AV38: 0.038 | AW38: 0.157 | AX38: 2317.672 | AY38: 1437.673 | AZ38: 899.952 | BA38: 942.455 | BB38: -- | BC38: -- | BD38: 0.195 | BE38: 0.17 | BF38: 0.038 | BG38: 0.049 | BH38: 0.183 | BI38: 0.115 | BJ38: 0.037 | BK38: 0.043 | BL38: 0.348 | BM38: 0.144 | BN38: 0.005 | BO38: 0.02 | BP38: 206.132 | BQ38: 131.585 | BR38: 119.198 | BS38: 121.759 | BT38: -- | BU38: -- | BV38: 0.556 | BW38: 0.473 | BX38: 0.285 | BY38: 997.033 | BZ38: 0.061 | CA38: 0.008 | CB38: 1000.843 | CC38: -- | CD38: 1727281.236 | CE38: 2835716.83 | CF38: 102395610.4 | CG38: 74303762 | CH38: 36305496.69 | CI38: 11102277.21 | CJ38: 7532883.84 | CK38: 1498764.02 | CL38: 0 | CM38: 160754.84 | CN38: 91100 | CO38: 181514225.3 | CP38: 56439421.76 | CQ38: 20133925.07 | CR38: 118312740.5 | CS38: 119640906.5 | CT38: 0.00725889793 | CU38: 0.01191709757 | CV38: 0.4303174658 | CW38: 0.3122614968 | CX38: 0.1525738191 | CY38: 0.04665731056 | CZ38: 0.03165693795 | DA38: 0.006298554523 | DB38: 0 | DC38: 0.0006755720788 | DD38: 0.0003828476728 | DE38: 0.7628133779 | DF38: 0.2371866221 | DG38: 0.08461280303 | DH38: 0.4972091917 | DI38: 0.5027908083 | DK38: 4180.175982 | DL38: 7740.33131 | DM38: 8188.577436 | DN38: 11243.6303 | DO38: 10925.81221 | DP38: 7550.059565 | DR38: 1047.506168
A39: 33 | B39: 58 | C39: RFC | D39: Reliability First Corporation | E39: 329762.7 | F39: 5676865746 | G39: 2560362189 | H39: 936090039.9 | I39: 409440877.8 | J39: 310559.433 | K39: 112101.369 | L39: 380327.467 | M39: 487060233.2 | N39: 94173597.11 | O39: 13448960.61 | P39: 490238347.2 | Q39: -- | R39: 0.664 | S39: 0.548 | T39: 0.813 | U39: 1040.627 | V39: 0.101 | W39: 0.014 | X39: 1047.417 | Y39: -- | Z39: 0.109 | AA39: 0.088 | AB39: 0.134 | AC39: 171.595 | AD39: -- | AE39: 1.007 | AF39: 0.831 | AG39: 1.233 | AH39: 1579.255 | AI39: 0.153 | AJ39: 0.022 | AK39: -- | AL39: 1.43 | AM39: 1.792 | AN39: 0.241 | AO39: 0.92 | AP39: 1.224 | AQ39: 1.495 | AR39: 0.246 | AS39: 0.789 | AT39: 2.186 | AU39: 1.464 | AV39: 0.021 | AW39: 1.246 | AX39: 2155.918 | AY39: 1618.417 | AZ39: 883.323 | BA39: 1601.252 | BB39: -- | BC39: -- | BD39: 0.137 | BE39: 0.168 | BF39: 0.032 | BG39: 0.1 | BH39: 0.116 | BI39: 0.143 | BJ39: 0.032 | BK39: 0.085 | BL39: 0.209 | BM39: 0.137 | BN39: 0.003 | BO39: 0.136 | BP39: 206.014 | BQ39: 151.491 | BR39: 118.817 | BS39: 174.826 | BT39: -- | BU39: -- | BV39: 1.15 | BW39: 0.938 | BX39: 1.322 | BY39: 1655.954 | BZ39: 0.154 | CA39: 0.022 | CB39: 1666.356 | CC39: -- | CD39: 328815996.7 | CE39: 4428101.832 | CF39: 266602393.2 | CG39: 279124445 | CH39: 10133444 | CI39: 10649637.62 | CJ39: 27791991.76 | CK39: 2212555.82 | CL39: 0 | CM39: 6058404.35 | CN39: 268235.567 | CO39: 885297576.6 | CP39: 50787629.2 | CQ39: 40654185.2 | CR39: 616822769.2 | CS39: 319262436.6 | CT39: 0.3512671653 | CU39: 0.004730447404 | CV39: 0.2848056902 | CW39: 0.298182733 | CX39: 0.01082534361 | CY39: 0.01137678232 | CZ39: 0.02968959619 | DA39: 0.002363626523 | DB39: 0 | DC39: 0.006472065056 | DD39: 0.0002865503753 | DE39: 0.9457446514 | DF39: 0.05425534864 | DG39: 0.04343000503 | DH39: 0.6589387007 | DI39: 0.3410612993 | DK39: 6064.444129 | DL39: 9159.118209 | DM39: 9472.012172 | DN39: 10464.91015 | DO39: 10683.25511 | DP39: 7434.314955 | DR39: 1689.251744
A40: 34 | B40: 59 | C40: SERC | D40: SERC Reliability Corporation | E40: 384427.9 | F40: 7028261855 | G40: 3344569100 | H40: 1138226928 | I40: 518644499.2 | J40: 331502.718 | K40: 138446.679 | L40: 415126.536 | M40: 566925945.8 | N40: 98976009.77 | O40: 14304833.29 | P40: 570246411 | Q40: -- | R40: 0.582 | S40: 0.534 | T40: 0.729 | U40: 996.156 | V40: 0.087 | W40: 0.013 | X40: 1001.991 | Y40: -- | Z40: 0.094 | AA40: 0.083 | AB40: 0.118 | AC40: 161.327 | AD40: -- | AE40: 0.837 | AF40: 0.767 | AG40: 1.048 | AH40: 1430.946 | AI40: 0.125 | AJ40: 0.018 | AK40: -- | AL40: 1.36 | AM40: 1.057 | AN40: 0.326 | AO40: 0.827 | AP40: 1.154 | AQ40: 0.833 | AR40: 0.342 | AS40: 0.734 | AT40: 1.973 | AU40: 6.79 | AV40: 0.025 | AW40: 1.01 | AX40: 2114.556 | AY40: 1096.039 | AZ40: 887.562 | BA40: 1473.596 | BB40: -- | BC40: -- | BD40: 0.129 | BE40: 0.179 | BF40: 0.044 | BG40: 0.093 | BH40: 0.11 | BI40: 0.158 | BJ40: 0.044 | BK40: 0.081 | BL40: 0.188 | BM40: 1.147 | BN40: 0.003 | BO40: 0.113 | BP40: 201.16 | BQ40: 185.211 | BR40: 118.658 | BS40: 165.416 | BT40: -- | BU40: -- | BV40: 0.877 | BW40: 0.817 | BX40: 0.957 | BY40: 1452.816 | BZ40: 0.121 | CA40: 0.017 | CB40: 1460.91 | CC40: -- | CD40: 332607481.4 | CE40: 6993196.818 | CF40: 423502352.3 | CG40: 289841806 | CH40: 40832458 | CI40: 24620814.22 | CJ40: 4674578 | CK40: 10498922.58 | CL40: 0 | CM40: 3550083.001 | CN40: 1105234.362 | CO40: 1057600154 | CP40: 80626772.8 | CQ40: 39794314.8 | CR40: 792379162.2 | CS40: 345847764.6 | CT40: 0.2922154393 | CU40: 0.00614393901 | CV40: 0.3720719853 | CW40: 0.2546432519 | CX40: 0.03587374103 | CY40: 0.02163084851 | CZ40: 0.004106894583 | DA40: 0.009223927438 | DB40: 0 | DC40: 0.003118958898 | DD40: 0.0009710140711 | DE40: 0.9291645884 | DF40: 0.07083541156 | DG40: 0.03496167053 | DH40: 0.6961521851 | DI40: 0.3038478149 | DK40: 6174.745721 | DL40: 8908.42482 | DM40: 8782.802147 | DN40: 10511.81149 | DO40: 5917.785661 | DP40: 7480.001348 | DR40: 1503.885197
A41: 35 | B41: 61 | C41: TRE | D41: Texas Regional Entity | E41: 167361 | F41: 2450136817 | G41: 1243891313 | H41: 408182664.4 | I41: 195334311 | J41: 111668.502 | K41: 54320.61 | L41: 170744.455 | M41: 190262412.3 | N41: 27130568.31 | O41: 3807300.336 | P41: 191168832.1 | Q41: -- | R41: 0.547 | S41: 0.556 | T41: 0.837 | U41: 932.242 | V41: 0.066 | W41: 0.009 | X41: 936.683 | Y41: -- | Z41: 0.091 | AA41: 0.087 | AB41: 0.139 | AC41: 155.308 | AD41: -- | AE41: 0.763 | AF41: 0.775 | AG41: 1.166 | AH41: 1299.382 | AI41: 0.093 | AJ41: 0.013 | AK41: -- | AL41: 1.254 | AM41: 3.648 | AN41: 0.531 | AO41: 0.761 | AP41: 1.222 | AQ41: 3.906 | AR41: 0.53 | AS41: 0.737 | AT41: 3.576 | AU41: 10.213 | AV41: 0.007 | AW41: 1.173 | AX41: 2242.21 | AY41: 2274.302 | AZ41: 860.699 | BA41: 1306.428 | BB41: -- | BC41: -- | BD41: 0.117 | BE41: 0.261 | BF41: 0.073 | BG41: 0.091 | BH41: 0.113 | BI41: 0.269 | BJ41: 0.071 | BK41: 0.087 | BL41: 0.333 | BM41: 0.73 | BN41: 0.001 | BO41: 0.14 | BP41: 208.65 | BQ41: 162.483 | BR41: 118.588 | BS41: 156.251 | BT41: -- | BU41: -- | BV41: 0.805 | BW41: 0.768 | BX41: 1.108 | BY41: 1266.737 | BZ41: 0.084 | CA41: 0.012 | CB41: 1272.31 | CC41: -- | CD41: 93161470.51 | CE41: 114455.008 | CF41: 196343287.2 | CG41: 41185739 | CH41: 922405 | CI41: 984441.299 | CJ41: 70053101.19 | CK41: 3170904 | CL41: 0 | CM41: 1796091.837 | CN41: 450770.5 | CO41: 333051814.1 | CP41: 75130851.49 | CQ41: 74208446.49 | CR41: 292850516.4 | CS41: 115332149.2 | CT41: 0.2282347546 | CU41: 0.0002804014419 | CV41: 0.4810181906 | CW41: 0.1009002647 | CX41: 0.002259784841 | CY41: 0.00241176655 | CZ41: 0.1716219406 | DA41: 0.007768345565 | DB41: 0 | DC41: 0.004400215856 | DD41: 0.001104335235 | DE41: 0.8159381624 | DF41: 0.1840618376 | DG41: 0.1818020527 | DH41: 0.7174496643 | DI41: 0.2825503357 | DK41: 6002.549915 | DL41: 8361.085689 | DM41: 8107.064915 | DN41: 10746.27366 | DO41: 13997.16893 | DP41: 7257.892873 | DR41: 1360.556289
A42: 36 | B42: 62 | C42: WECC | D42: Western Electricity Coordinating Council | E42: 294588.5 | F42: 3604135200 | G42: 1654951738 | H42: 743291274.5 | I42: 339419069.3 | J42: 224209.965 | K42: 99554.684 | L42: 103047.139 | M42: 286350439.9 | N42: 49829144.43 | O42: 7034109.083 | P42: 288021204.4 | Q42: -- | R42: 0.603 | S42: 0.587 | T42: 0.277 | U42: 770.493 | V42: 0.067 | W42: 0.009 | X42: 774.989 | Y42: -- | Z42: 0.124 | AA42: 0.12 | AB42: 0.057 | AC42: 158.901 | AD42: -- | AE42: 1.138 | AF42: 1.106 | AG42: 0.523 | AH42: 1452.817 | AI42: 0.126 | AJ42: 0.018 | AK42: -- | AL42: 1.859 | AM42: 3.026 | AN42: 0.548 | AO42: 1.099 | AP42: 1.884 | AQ42: 3.485 | AR42: 0.548 | AS42: 1.069 | AT42: 1.17 | AU42: 9.881 | AV42: 0.01 | AW42: 0.507 | AX42: 2284.77 | AY42: 1817.718 | AZ42: 916.617 | BA42: 1483.689 | BB42: -- | BC42: -- | BD42: 0.169 | BE42: 0.355 | BF42: 0.071 | BG42: 0.121 | BH42: 0.17 | BI42: 0.398 | BJ42: 0.069 | BK42: 0.117 | BL42: 0.107 | BM42: 1.16 | BN42: 0.001 | BO42: 0.056 | BP42: 208.064 | BQ42: 213.406 | BR42: 118.3 | BS42: 163.468 | BT42: -- | BU42: -- | BV42: 1.03 | BW42: 0.993 | BX42: 0.362 | BY42: 1346.459 | BZ42: 0.1 | CA42: 0.014 | CB42: 1353.119 | CC42: -- | CD42: 158691564 | CE42: 710764.613 | CF42: 221323704.8 | CG42: 59019219 | CH42: 177439403.9 | CI42: 10071864.23 | CJ42: 54603985.8 | CK42: 42171293.92 | CL42: 15857045 | CM42: 2281415.143 | CN42: 1121015.549 | CO42: 443147683.1 | CP42: 300143592.9 | CQ42: 122704188.9 | CR42: 394200328.4 | CS42: 349090947.6 | CT42: 0.2134984886 | CU42: 0.0009562396815 | CV42: 0.2977617415 | CW42: 0.07940254501 | CX42: 0.238721225 | CY42: 0.0135503598 | CZ42: 0.07346243332 | DA42: 0.05673589249 | DB42: 0.02133355457 | DC42: 0.003069342015 | DD42: 0.001508177999 | DE42: 0.5961965348 | DF42: 0.4038034652 | DG42: 0.1650822402 | DH42: 0.5303443496 | DI42: 0.4696556504 | DK42: 4848.886734 | DL42: 9076.326865 | DM42: 8236.835344 | DN42: 10981.09236 | DO42: 8517.6518 | DP42: 7748.241758 | DR42: 1493.140091

Sheet Profiles (hidden)
A1: Displaced Electricity | B1: =deinput -> 2 | C1: =LOOKUP(deinput,Lists!A25:A40,Lists!B25:B40) -> eGRID Fossil Fuel (2018 Data)
B2: =IF(deinput<6,LOOKUP(deinput2,listb6a,listb6),"N/A") -> US Average | C2: State/NERC Region
B4: NOx | C4: =LOOKUP(B1,B11:B26,H11:H26) -> 0.904 | D4: lb/MWh Average | F4: CH4 | G4: =LOOKUP(B1,B11:B26,K11:K26) -> 0.00013 | H4: lb/MWh Average
B5: SO2 | C5: =LOOKUP(B1,B11:B26,I11:I26) -> 1.026 | D5: lb/MWh Average | F5: N2O | G5: =LOOKUP(B1,B11:B26,L11:L26) -> 1.9e-05 | H5: lb/MWh Average
B6: CO2 | C6: =LOOKUP(B1,B11:B26,J11:J26) -> 1480.518 | D6: lb/MWh Average
B7: Heat Rate | C7: =LOOKUP(B1,B11:B26,C11:C26) -> 8933.960101 | D7: Btu/kWh Average
A9: Generation Sources
A10: Name | B10: Code | C10: Btu/kWh | D10: NOx lb/MMBtu | E10: SO2 lb/MMBtu | F10: CO2 lb/MMBtu | H10: NOx lb/MWh | I10: SO2 lb/MWh | J10: CO2 lb/MWh | K10: CH4 lb/MWh | L10: N2O lb/MWh
A11: EGrid Annual Average | B11: 1 | C11: =LOOKUP(deinput2,EGRID!$A$7:$A$42,EGRID!$DK$7:$DK$42) -> 5862.040216 | D11: =LOOKUP(deinput2,EGRID!$A$7:$A$42,EGRID!$Z$7:$Z$42) -> 0.106 | E11: =LOOKUP(deinput2,EGRID!$A$7:$A$42,EGRID!$AB$7:$AB$42) -> 0.115 | F11: =LOOKUP(deinput2,EGRID!$A$7:$A$42,EGRID!$AC$7:$AC$42) -> 161.579 | H11: =LOOKUP(deinput2,EGRID!$A$7:$A$42,EGRID!$R$7:$R$42) -> 0.619 | I11: =LOOKUP(deinput2,EGRID!$A$7:$A$42,EGRID!$T$7:$T$42) -> 0.675 | J11: =LOOKUP(deinput2,EGRID!$A$7:$A$42,EGRID!$U$7:$U$42) -> 947.182 | K11: =LOOKUP(deinput2,EGRID!$A$7:$A$42,EGRID!$V$7:$V$42)/1000 -> 8.5e-05 | L11: =LOOKUP(deinput2,EGRID!$A$7:$A$42,EGRID!$W$7:$W$42)/1000 -> 1.2e-05
A12: EGrid Annual Fossil | B12: 2 | C12: =LOOKUP(deinput2,EGRID!$A$7:$A$42,EGRID!$DL$7:$DL$42) -> 8933.960101 | D12: =LOOKUP(deinput2,EGRID!$A$7:$A$42,EGRID!$BG$7:$BG$42) -> 0.101 | E12: =LOOKUP(deinput2,EGRID!$A$7:$A$42,EGRID!$BO$7:$BO$42) -> 0.115 | F12: =LOOKUP(deinput2,EGRID!$A$7:$A$42,EGRID!$BS$7:$BS$42) -> 165.718 | H12: =LOOKUP(deinput2,EGRID!$A$7:$A$42,EGRID!$AO$7:$AO$42) -> 0.904 | I12: =LOOKUP(deinput2,EGRID!$A$7:$A$42,EGRID!$AW$7:$AW$42) -> 1.026 | J12: =LOOKUP(deinput2,EGRID!$A$7:$A$42,EGRID!$BA$7:$BA$42) -> 1480.518 | K12: =LOOKUP(deinput2,EGRID!$A$7:$A$42,EGRID!$AI$7:$AI$42)/1000 -> 0.00013 | L12: =LOOKUP(deinput2,EGRID!$A$7:$A$42,EGRID!$AJ$7:$AJ$42)/1000 -> 1.9e-05
A13: EGrid Annual Non-Baseload | B13: 3 | C13: =LOOKUP(deinput2,EGRID!$A$7:$A$42,EGRID!$DM$7:$DM$42) -> 8642.718353 | H13: =LOOKUP(deinput2,EGRID!$A$7:$A$42,EGRID!$BV$7:$BV$42) -> 0.968 | I13: =LOOKUP(deinput2,EGRID!$A$7:$A$42,EGRID!$BX$7:$BX$42) -> 0.955 | J13: =LOOKUP(deinput2,EGRID!$A$7:$A$42,EGRID!$BY$7:$BY$42) -> 1432.254 | K13: =LOOKUP(deinput2,EGRID!$A$7:$A$42,EGRID!$BZ$7:$BZ$42)/1000 -> 0.000117 | L13: =LOOKUP(deinput2,EGRID!$A$7:$A$42,EGRID!$CA$7:$CA$42)/1000 -> 1.7e-05
A14: EGrid Annual Coal | B14: 4 | C14: =LOOKUP(deinput2,EGRID!$A$7:$A$42,EGRID!$DN$7:$DN$42) -> 10584.32143 | D14: =LOOKUP(deinput2,EGRID!$A$7:$A$42,EGRID!$BD$7:$BD$42) -> 0.137 | E14: =LOOKUP(deinput2,EGRID!$A$7:$A$42,EGRID!$BL$7:$BL$42) -> 0.201 | F14: =LOOKUP(deinput2,EGRID!$A$7:$A$42,EGRID!$BP$7:$BP$42) -> 205.108 | H14: =LOOKUP(deinput2,EGRID!$A$7:$A$42,EGRID!$AL$7:$AL$42) -> 1.45 | I14: =LOOKUP(deinput2,EGRID!$A$7:$A$42,EGRID!$AT$7:$AT$42) -> 2.128 | J14: =LOOKUP(deinput2,EGRID!$A$7:$A$42,EGRID!$AX$7:$AX$42) -> 2170.929 | K14: =ch4coal*C14/1000 -> 0.2566062888 | L14: =n2ocoal*C14/1000 -> 0.03732455109
A15: EGrid Annual Oil | B15: 5 | C15: =LOOKUP(deinput2,EGRID!$A$7:$A$42,EGRID!$DO$7:$DO$42) -> 9188.073597 | D15: =LOOKUP(deinput2,EGRID!$A$7:$A$42,EGRID!$BE$7:$BE$42) -> 0.369 | E15: =LOOKUP(deinput2,EGRID!$A$7:$A$42,EGRID!$BM$7:$BM$42) -> 0.525 | F15: =LOOKUP(deinput2,EGRID!$A$7:$A$42,EGRID!$BQ$7:$BQ$42) -> 158.539 | H15: =LOOKUP(deinput2,EGRID!$A$7:$A$42,EGRID!$AM$7:$AM$42) -> 3.388 | I15: =LOOKUP(deinput2,EGRID!$A$7:$A$42,EGRID!$AU$7:$AU$42) -> 4.826 | J15: =LOOKUP(deinput2,EGRID!$A$7:$A$42,EGRID!$AY$7:$AY$42) -> 1456.668 | K15: =ch4oil*C15/1000 -> 0.06075154262 | L15: =n2ooil*C15/1000 -> 0.01215030852
A16: EGrid Annual Natural Gas | B16: 6 | C16: =LOOKUP(deinput2,EGRID!$A$7:$A$42,EGRID!$DP$7:$DP$42) -> 7538.616962 | D16: =LOOKUP(deinput2,EGRID!$A$7:$A$42,EGRID!$BF$7:$BF$42) -> 0.052 | E16: =LOOKUP(deinput2,EGRID!$A$7:$A$42,EGRID!$BN$7:$BN$42) -> 0.003 | F16: =LOOKUP(deinput2,EGRID!$A$7:$A$42,EGRID!$BR$7:$BR$42) -> 118.782 | H16: =LOOKUP(deinput2,EGRID!$A$7:$A$42,EGRID!$AN$7:$AN$42) -> 0.394 | I16: =LOOKUP(deinput2,EGRID!$A$7:$A$42,EGRID!$AV$7:$AV$42) -> 0.022 | J16: =LOOKUP(deinput2,EGRID!$A$7:$A$42,EGRID!$AZ$7:$AZ$42) -> 895.452 | K16: =ch4gas*C16/1000 -> 0.01661511178 | L16: =n2ogas*C16/1000 -> 0.001661511178
A17: Coal Boiler 3.8 lb/MWh NOx | B17: 7 | C17: 9500 | D17: =H17*1000/C17 -> 0.4 | E17: =I17*1000/C17 -> 0.5263157895 | F17: =J17*1000/C17 -> 207.1 | H17: 3.8 | I17: 5 | J17: =co2coal*C17/1000 -> 1967.45 | K17: =ch4coal*C17/1000 -> 0.230318 | L17: =n2ocoal*C17/1000 -> 0.0335008
A18: Coal Boiler 1.5 lb/MWh NOx | B18: 8 | C18: 9500 | D18: 0.1578947368 | E18: 0.2631578947 | F18: 207.1 | H18: 1.5 | I18: 2.5 | J18: =co2coal*C18/1000 -> 1967.45 | K18: =ch4coal*C18/1000 -> 0.230318 | L18: =n2ocoal*C18/1000 -> 0.0335008
A19: Coal Boiler with SCR 0.8 lb/MWh NOx | B19: 9 | C19: 9500 | D19: 0.08421052632 | E19: 0.1052631579 | F19: 207.1 | H19: 0.8 | I19: 1 | J19: =co2coal*C19/1000 -> 1967.45 | K19: =ch4coal*C19/1000 -> 0.230318 | L19: =n2ocoal*C19/1000 -> 0.0335008
A20: Gas Boiler 0.77 lb/MWh NOx | B20: 10 | C20: 11000 | D20: 0.07 | E20: 0.0005669902913 | F20: 116.9 | H20: 0.77 | I20: =0.000584*C20/1030 -> 0.006236893204 | J20: =co2gas*C20/1000 -> 1285.9 | K20: =ch4gas*C20/1000 -> 0.024244 | L20: =n2ogas*C20/1000 -> 0.0024244
A21: Gas Turbine Peaker 25 ppm | B21: 11 | C21: 12000 | D21: 0.09191176471 | E21: 0.0005669902913 | F21: 116.9 | H21: =25*C21/(ppmbtu*1000) -> 1.102941176 | I21: =0.000584*C21/1030 -> 0.006803883495 | J21: =co2gas*C21/1000 -> 1402.8 | K21: =ch4gas*C21/1000 -> 0.026448 | L21: =n2ogas*C21/1000 -> 0.0026448
A22: Gas combined-cycle 9 ppm | B22: 12 | C22: 8000 | D22: 0.03308823529 | E22: 0.0005669902913 | F22: 116.9 | H22: =9*C22/(ppmbtu*1000) -> 0.2647058824 | I22: =0.000584*C22/1030 -> 0.00453592233 | J22: =co2gas*C22/1000 -> 935.2 | K22: =ch4gas*C22/1000 -> 0.017632 | L22: =n2ogas*C22/1000 -> 0.0017632
A23: Gas combined-cycle 3 ppm | B23: 13 | C23: 7000 | D23: 0.01102941176 | E23: 0.0005669902913 | F23: 116.9 | H23: =3*C23/(ppmbtu*1000) -> 0.07720588235 | I23: =0.000584*C23/1030 -> 0.003968932039 | J23: =co2gas*C23/1000 -> 818.3 | K23: =ch4gas*C23/1000 -> 0.015428 | L23: =n2ogas*C23/1000 -> 0.0015428
A24: User Source 1 | B24: 14 | C24: 0 | H24: 0 | I24: 0 | J24: 0
A25: User Source 2 | B25: 15 | C25: 0 | H25: 0 | I25: 0 | J25: 0
A26: User Source 3 | B26: 16 | C26: 0 | H26: 0 | I26: 0 | J26: 0

Sheet Factors (hidden)
A1: Factors
A3: General Emission Factors
A4: 3.11 | C4: gm/hp-hr to lb/MWh for recip engines
A5: =12/44 -> 0.2727272727 | C5: ratio of carbon to CO2
A6: =2000/2206 -> 0.9066183137 | C6: ratio of tonnes to tons | H6: 7.27
A7: 8.67 | C7: metric tons of Carbon per home | H7: =H6*CO2tocarbon -> 1.982727273
A8: 4.63 | C8: metric tons of Carbon per car
A9: 12000 | C9: Btu per ton of cooling capacity
A10: 12183 | C10: kWh per average U.S. home per year
A11: 0.00341214 | C11: MMBtu/kWh
A12: 525.2777778 | C12: gal/vehicle
A13: 0.120405 | C13: MMBtu/gal (gasoline)
A15: Oil
A16: 138000 | C16: Btu/gallon distillate oil
A17: 304 | C17: lb/bbl distillate oil
A18: =A17/42 -> 7.238095238 | B18: lb/gal | C18: distillate oil
A19: 150000 | C19: Btu/gallon residual oil
A20: 331 | C20: lb/bbl residual oil
A21: 163.1 | C21: lb/MMBtu CO2 emission factor
A22: 235 | C22: ppm per lb/MMBtu LHV for diesel @15%O2
A23: 258 | C23: ppm per lb/MMBtu HHV for diesel @15%O2
A24: 780 | C24: ppm per lb/MMBtu HHV for diesel @3%O2
A25: =sulfurppmlow/10000 -> 0.0005 | B25: % | C25: Lower limit of sulfur content
A26: 0.05 | B26: % | C26: Upper limit of sulfur content
A27: 5 | B27: ppm | C27: Lower limit of sulfur content
A28: 5000 | B28: ppm | C28: Upper limit of sulfur content
A29: 20000 | B29: Btu/lb | C29: Heat content of oil (distillate
A30: 0.006612 | C30: lb/MMBtu CH4 emission factor
A31: 0.0013224 | C31: lb/MMBtu N20 emission factor
A33: Natural Gas
A34: 0.4238 | C34: lb/cf heat content of natural gas
A35: 1028 | C35: Btu/cf of natural gas
A36: 7.096743747e-07 | C36: sulfur content of natural gas
A37: 116.9 | C37: lb/MMBtu CO2 emission factor
A38: =ppmbtu*0.91 -> 247.52 | C38: ppm per lb/MMBtu LHV for natural gas @15%O2
A39: 272 | C39: ppm per lb/MMBtu HHV for natural gas @15%O2
A40: 823 | C40: ppm per lb/MMBtu HHV for natural gas @3%O2
A41: 0.002204 | C41: lb/MMBtu CH4 emission factor
A42: 0.0002204 | C42: lb/MMBtu N20 emission factor
A44: Propane
A45: 91600 | C45: Btu/gallon
A46: 139 | C46: lb/MMBtu CO2 emission factor
A47: 7.096743747e-07 | C47: sulfur content of natural gas
A48: 582 | C48: kg/m3
A49: 4.2 | C49: lb/gal
A50: 0.002204 | C50: lb/MMBtu CH4 emission factor
A51: 0.0002204 | C51: lb/MMBtu N20 emission factor
A54: Coal
A55: 21.015 | C55: MMBtu/ton
A56: 207.1 | C56: lb/MMBtu CO2 emission factor
A57: 11175 | B57: Btu/lb
A58: 0.024244 | C58: lb/MMBtu CH4 emission factor
A59: 0.0035264 | C59: lb/MMBtu N20 emission factor
A61: Woody Biomass
A62: 206.7 | C62: lb/MMBtu CO2 emission factor
A63: 7500 | C63: Btu/lb
A64: 0.07 | C64: lb/MMBtu CH4 emission factor
A65: 0.009 | C65: lb/MMBtu N20 emission factor
A68: CHP Technologies
A69: 1 | C69: Accept kW capacity values that are THIS percent of the lowest sample
A70: 1 | C70: Accept kW capacity values that are THIS percent of the highest sample
A71: 0.07 | B71: % | C71: Minimum efficiency of CHP
A72: 0.66 | B72: % | C72: Maximum efficiency of CHP
A73: =3412/effpercenthigh -> 5169.69697 | B73: Btu/kWh HHV | C73: Minimum HHV of CHP
A74: =3412/effpercentlow -> 48742.85714 | B74: Btu/kWh HHV | C74: Maximum HHV of CHP
A75: =A73*0.91 -> 4704.424242 | B75: Btu/kWh LHV | C75: Minimum LHV of CHP
A76: =A74*0.91 -> 44356 | B76: Btu/kWh LHV | C76: Maximum LHV of CHP
A77: 0.05 | C77: Minimum Power to Heat ratio for CHP
A78: 10 | C78: Maximum Power to Heat ratio for CHP
A79: 1 | B79: ppm | C79: Minimum NOx rate for CHP
A80: 200 | B80: ppm | C80: Maximum NOx rate for CHP
A81: 0.05 | B81: gm/hphr | C81: Minimum NOx rate for CHP
A82: 20 | B82: gm/hphr | C82: Maximum NOx rate for CHP
A83: 0.005 | B83: lb/MMBtu | C83: Minimum NOx rate for CHP
A84: 0.8 | B84: lb/MMBtu | C84: Maximum NOx rate for CHP
A85: 0.05 | B85: lb/MMBtu | C85: Minimum NOx rate for CHP
A86: 8 | B86: lb/MMBtu | C86: Maximum NOx rate for CHP
A88: Thermal Production
A89: 0.66 | C89: Minimum efficiecy of thermal production technology
A90: 0.99 | C90: Maximum efficiecy of thermal production technology
A91: 3.5 | C91: Maximum efficiecy of electric technology
A94: 1100 | C94: btu/lb steam
A98: Active Cell Highlighting
B99: Cell to Highlight
A101: Global Warming Potential
A102: CO2 | B102: 1
A103: CH4 | B103: 21
A104: N2O | B104: 310
A107: Fuel and Technology Match
A108: 1
A110: tech
A111: =chptechinput -> 0 | B111: =VLOOKUP(A111,A112:B121,2) ->  | C111: =VLOOKUP(A111,A112:C121,3) -> 
A112: 1 | B112: 1 | C112: 7
A113: 2 | B113: 1 | C113: 7
A114: 3 | B114: 1 | C114: 7
A115: 4 | B115: 1 | C115: 7
A116: 5 | B116: 1 | C116: 7
A117: 6 | B117: 1 | C117: 7
A118: 7 | B118: 1 | C118: 7
A119: 8 | B119: 1 | C119: 7
A120: 9 | B120: 8 | C120: 8
A121: 10 | B121: 8 | C121: 8

Sheet Calc1 (hidden)
A1: Calculations
A3: Total Emissions | B3: CHP | C3: Displaced Generation - Total | D3: Displaced Thermal Supply - Total
A4: Number of CHP Units: | B4: =chpnumunits -> 1
A5: Generating Capacity (kW) | B5: =B28*chpnumunits -> 0
A6: CHP Generation (MWh/year) | B6: =IF(B155>0,dispgridelec,B29*chpnumunits) -> 0
A7: CHP fuel consumption (MMBtu/year) | B7: =B30*chpnumunits -> 0 | C7: =C30*chpnumunits -> 0 | D7: =D30*chpnumunits -> 0
A8: Duct Burner fuel (MMBtu/year) | B8: =B31*chpnumunits -> 0
A11: CHP with Duct Burners
A12: NOx (tons/year) | B12: =B17+B22 -> 0 | C12: =C17 -> 0 | D12: 0
A13: SO2 (tons/year) | B13: =B18+B23 ->  | C13: 0 | D13: 0
A14: CO2 (tons/year) | B14: =B19+B24 ->  | C14: 0 | D14: 0
A16: CHP Unit
A17: NOx (tons/year) | B17: =B40*chpnumunits -> 0 | C17: 0 | D17: =D40 -> 0 | E17: CH4 (tons/year) | F17: =F40*chpnumunits -> 
A18: SO2 (tons/year) | B18: 0 | C18: 0 | D18: =D41 -> 0 | E18: N2O (tons/year) | F18: =F41*chpnumunits -> 
A19: CO2 (tons/year) | B19: 0 | C19: 0 | D19: =D42 -> 0
A21: Duct Burners
A22: NOx (tons/year) | B22: =B45*chpnumunits -> 0 | E22: CH4 (tons/year) | F22: =E112*chpnumunits -> 0
A23: SO2 (tons/year) | B23: =B46*chpnumunits ->  | E23: N2O (tons/year) | F23: =E113*chpnumunits -> 0
A24: CO2 (tons/year) | B24: =B47*chpnumunits -> 
B26: CHP | C26: Displaced Generation per CHP unit | D26: Displaced Thermal Supply per CHP unit
A27: Unit Emissions for CHP System
A28: Generating Capacity (kW) | B28: =ccap -> 0
A29: CHP Generation (MWh/year) | B29: =cMWh -> 0
A30: CHP fuel consumption (MMBtu/year) | B30: =cbtu -> 0 | C30: =B159 -> 0 | D30: =dsbtu -> 0
A31: Duct Burner fuel (MMBtu/year) | B31: =B107 -> 0
A34: CHP with Duct Burners
A35: NOx (tons/year) | B35: =B40+B45 -> 0 | C35: =denoxtons -> 0 | D35: =dsnoxtons -> 0 | E35: CH4 (tons/year) | F35: =F40+F45 -> 
A36: SO2 (tons/year) | B36: =B41+B46 ->  | C36: =deso2tons -> 0 | D36: =dsso2tons -> 0 | E36: N2O (tons/year) | F36: =F41+F46 -> 
A37: CO2 (tons/year) | B37: =B42+B47 ->  | C37: =deco2tons -> 0 | D37: =dsco2tons -> 0
A39: CHP Unit
A40: NOx (tons/year) | B40: =cnoxtons -> 0 | C40: =denoxtons -> 0 | D40: =dsnoxtons -> 0 | E40: CH4 (tons/year) | F40: =E87 -> 
A41: SO2 (tons/year) | B41: =cso2tons -> 0 | C41: =deso2tons -> 0 | D41: =dsso2tons -> 0 | E41: N2O (tons/year) | F41: =E88 -> 
A42: CO2 (tons/year) | B42: =cco2tons -> 0 | C42: =deco2tons -> 0 | D42: =dsco2tons -> 0
A44: Duct Burners
A45: NOx (tons/year) | B45: =B112 -> 0 | E45: CH4 (tons/year) | F45: =E112 -> 0
A46: SO2 (tons/year) | B46: =B113 ->  | E46: N2O (tons/year) | F46: =E113 -> 0
A47: CO2 (tons/year) | B47: =B114 -> 
A49: CHP Technology | B49: =chptechinput -> 0 | C49: =LOOKUP(chptechinput,lista1a,ListA1) -> 
A50: Capacity | B50: =chpcapinput -> 0 | C50: kW
A51: Hours | B51: =IFERROR(IF(inputophours>0,inputophours,IF(dispgridelec>0,dispgridelec/(ccap/1000),8760*inputoppercent)),"-") -> 0 | C51: hours
A52: Percent of hours | B52: =IFERROR(IF(chours>0,chours/8760,inputoppercent),"-") -> 0
A53: Calc Hours
A54: CHP Fuel Input (rounded) | B54: =ROUND(ccap*chr/1000000,1) -> 0 | C54: MMBtu/hr
A56: CHP Fuel | B56: =chpfuelinput -> 0 | C56: =LOOKUP(chpfuelinput,lista6a,lista6) -> 
A57: CHP operating profile | B57: =LOOKUP(chphoursinput,listb3a,listb3) -> 
A58: Max CHP Gen | B58: =ccap*8760/1000 -> 0 | C58: MWh/yr
A59: CHP Gen | B59: =IF(B155>0,B155,ccap*chours/1000) -> 0 | C59: MWh/yr
B60: =cMWh*1000*3412/1000000 -> 0 | C60: MMBtu/yr elec gen equiv
A61: CHP eff input % | B61: =chpeffinput1 -> 0
A62: CHP eff input Btu/kWh HHV | B62: =chpeffinput2 -> 0
A63: CHP eff input Btu/kWh LHV | B63: =chpeffinput3 -> 0
A64: CHP Fuel HHV-LHV | B64: =IF(chpfuelinput=1,ppmbtulhv/ppmbtu,ppmbtudlhv/ppmbtud) -> 0.9108527132
A65: CHP HHV | B65: =IF(chptechinput=6,cbtu/cMWh*1000,IF(B61>0,3413/B61,IF(B62>0,B62,IF(B63>0,B63/B64)))) -> FALSE | C65: Btu/kWh
A66: CHP percent | B66: =IF(chptechinput=6,0,3412/B65) -> 
A68: CHP Fuel input Btu | B68: =IF(chptechinput=6,B100,(cMWh*B65/1000)) -> 0 | C68: MMBtu/year
A70: CHP NOx input ppm | B70: =chpnoxinput1 -> 0 | C70: ppm
A71: CHP NOx input gm/hp-hr | B71: =chpnoxinput2 -> 0 | C71: gm/hp-hr
A72: CHP NOx input lb/MMBtu | B72: =chpnoxinput3 -> 0 | C72: lb/MMBtu
A73: CHP NOx input lb/MWh | B73: =chpnoxinput4 -> 0 | C73: lb/MWh
A74: CHP NOxconv | B74: =IF(chpfuelinput=1,ppmbtu,ppmbtud) -> 258
A75: CHP NOxrate Btu | B75: =IF(B70>0,B70/B74,IF(B71>0,B71*B66*0.866,IF(B72>0,B72,B73*1000/B65))) ->  | C75: lb/MMBtu
A76: CHP NOxrate | B76: =B75*B65/1000 ->  | C76: lb/MWh
A78: CHP NOx | B78: =IF(chr=FALSE,0,cMWh*cnoxrate/2000) -> 0 | C78: tons/year
A80: CHP sulfur % | B80: =chpsulfurinput1 -> 0
A81: CHP sulfur input ppm | B81: =chpsulfurinput2 -> 0 | C81: ppm
A82: Calculated sulfur % | B82: =IF(B80>0,B80,B81/1000000) -> 0
A83: CHP Fuel heat content | B83: =IF(heatinput1>0,heatinput1,IF(heatinput2>0,heatinput2,IF(heatinput3>0,heatinput3,0))) -> 0 | C83: =IF(heatinput1>0,"Btu/cf",IF(heatinput2>0,"Btu/gallon",IF(heatinput3>0,"Btu/lb",0))) -> 0
A84: Adj CHP Fuel Heat content | B84: =IF(heatinput1>0,heatinput1/ngdensity,IF(heatinput2>0,IF(chpfuelinput =5,heatinput2/propDensity,heatinput2/distdensity),IF(heatinput3>0,heatinput3,0))) -> 0 | C84: Btu/lb
A85: CHP massfuel | B85: =IF(B84>0,B68*1000000/(B84*2000),0) -> 0 | C85: tons/year
A86: CHP SO2 | B86: =IF(B81>0,cMWh*cso2rate/2000,B82*B85*2) -> 0 | C86: tons/year
A87: CHP SO2 rate | B87: =IF(B81>0,B81/B74*B65/1000,cso2tons*2000/cMWh) ->  | C87: lb/MWh | D87: CHP CH4 | E87: =cbtu*STMTech!H23/2000 ->  | F87: tons/year
D88: CHP N2O | E88: =cbtu*STMTech!I23/2000 ->  | F88: tons/year
A89: CHP CO2 | B89: =cbtu*co2input/2000 -> 0 | C89: tons/year
A90: CHP CO2 Rate | B90: =cco2tons*2000/cMWh ->  | C90: lb/MWh
A93: Steam Turbine
A94: Steam Consumption lb Steam/hr | B94: =lbsteamperhr -> 0
A95: Steam Consumption MMBtu Steam/hr | B95: =mmbtusteamperhr -> 0
A96: Calc Steam Cons MMBtu/hr | B96: =IF(B95>0,B95,IF(B94>0,B94*lbtobtusteam/1000000,)) -> 0
A98: Boiler Efficiency | B98: =boilereff -> 0
A100: B/ST Fuel Consumption MMBtu/yr | B100: =IFERROR(IF(chptechinput=6,((B96*chours)+(B60/0.95))/B98,0),"-") -> 0
A101: B/ST Steam Displaced MMBtu/yr | B101: =B96*chours -> 0
A104: Duct Burners
A105: Capacity of Duct Burners | B105: =chpduct2 -> 0 | C105: MMBtu/hr
A106: Duct Burner Hours | B106: =IF(chpduct1=1,IF(ducthours1>0,ducthours1,ductpercent*chours),0) -> 0 | C106: hours/year
A107: Duct Burner Btu | B107: =B105*0.88*ducthours -> 0 | C107: MMBtu/year
A109: Duct Burner NOx rate | B109: =IF(chpduct3>0,chpduct3,IF(chpfuelinput=1,chpduct4/ppmbtu,chpduct4/ppmbtud)) -> 0 | C109: lb/MMBtu
A110: Duct Burner SO2 rate | B110: =IF(chpduct1=2,0,cso2rate*1000/chr) ->  | C110: lb/MMBtu | D110: Duct Burner CH4 rate | E110: =IF(chpduct1=2,0,ch4gas) -> 0.002204 | F110: lb/MMBtu
A111: Duct Burner CO2 rate | B111: =IF(chpduct1=2,0,cco2rate*1000/chr) ->  | C111: lb/MMBtu | D111: Duct Burner N2O rate | E111: =IF(chpduct1=2,0,n2ogas) -> 0.0002204 | F111: lb/MMBtu
A112: Duct Burner NOx | B112: =B109*B107/2000 -> 0 | C112: tons/year | D112: Duct Burner CH4 | E112: =E110*B107/2000 -> 0 | F112: tons/year
A113: Duct Burner SO2 | B113: =B110*B107/2000 ->  | C113: tons/year | D113: Duct Burner N2O | E113: =E111*B107/2000 -> 0 | F113: tons/year
A114: Duct Burner CO2 | B114: =B111*B107/2000 ->  | C114: tons/year
A117: Cooling
A118: Chiller | B118: =coolinput3 -> 0 | C118: =LOOKUP(B118,lista9a,lista9e) -> 
A119: Cooling Hours | B119: =IF(chpheatcoolboth=3,IF(coolhours>0,coolhours,coolpercent*chours),IF(chpheatcoolboth=2,IF(coolhours>0,coolhours,coolpercent*chours),0)) -> 0 | C119: Hours/year
A120: Available Thermal | B120: =IF(chpphinput>0,chpnumunits*(ccap*3.412/(chpphinput*1000)+B105),0) -> 0 | C120: MMBtu/hr
A121: Available based on user data (not rounded) | B121: =(coolavailablemmbturaw*1000000/coolbtuton) -> 0 | C121: tons of cooling
A122: Available based on user data | B122: =ROUNDDOWN(coolavailablemmbturaw*1000000/coolbtuton,1) -> 0 | C122: tons of cooling
A123: Available based on user data (not rounded) | B123: =(B120*coolinput3a) -> 0 | C123: MMBtu/hr of cooling
A124: Available based on user data | B124: =ROUNDDOWN(B120*coolinput3a,1) -> 0 | C124: MMBtu/hr of cooling
A126: CHP Cooling COP | B126: =coolinput3a -> 0 | C126: COP
A127: Cooling | B127: =IF(coolinput2a>0,coolinput2a*12000/1000000,coolinput2b) -> 0 | C127: MMBtu/hr
A128: Thermal Demand for cooling | B128: =IF(B126>0,B127/B126,0) -> 0 | C128: MMBtu/hr
A129: Thermal Demand for cooling | B129: =B128*B119 -> 0 | C129: MMBtu/year
A130: Excess Thermal | B130: =B119*(B120-B128) -> 0 | C130: MMBtu/year
A131: Lost Simultaneous Heating | B131: =IF(chpheatcoolsimultaneous=2,B130,0) -> 0 | C131: MMBtu/year
A132: Off season heating | B132: =B120*(chours-B119) -> 0 | C132: MMBtu/year
A134: Displaced Cooling Technology | B134: =cooldisp1 -> 0 | C134: =LOOKUP(B134,listh3a,listh3) -> 
A135: Displaced Cooling COP | B135: =IF(cooldisp2>0,3.517/cooldisp2,cooldisp3) -> 0 | C135: COP
A136: Displaced Cooling Elec Demand | B136: =IF(B135>0,B127/B135,0) -> 0 | C136: MMBtu/hr
A137: Displaced Cooling Elec Demand | B137: =B136/3.412 -> 0 | C137: MWh/hr
A138: Displaced Cooling Elec Demand | B138: =B137*B119*thermutil -> 0 | C138: MWh/year
A142: Displaced Generation
A143: DE method input | B143: =deinput1 -> 2 | C143: =LOOKUP(B143,listb5a,listb5) -> eGRID Fossil Fuel (2018 Data)
A144: EGrid State | B144: =deinput2 -> 1 | C144: =LOOKUP(deinput2,listb6a,listb6) -> US Average
A145: DE NOx rate | B145: =Profiles!C4 -> 0.904 | C145: lb/MWh | D145: DE CH4 rate | E145: =Profiles!G4 -> 0.00013 | F145: lb/MWh
A146: DE SO2 rate | B146: =Profiles!C5 -> 1.026 | C146: lb/MWh | D146: DE N2O rate | E146: =Profiles!G5 -> 1.9e-05 | F146: lb/MWh
A147: DE CO2 rate | B147: =Profiles!C6 -> 1480.518 | C147: lb/MWh
A148: DE Heat Rate | B148: =Profiles!C7 -> 8933.960101 | C148: Btu/kWh
A149: Displaced Generation (CHP) | B149: =cMWh -> 0 | C149: MWh/year per CHP unit
A150: Displaced Generation (Cooling) | B150: =B138/chpnumunits -> 0 | C150: MWh/year per CHP unit
A151: Displaced Generation (heating) | B151: =B192 -> 0 | C151: MWh/year per CHP unit
A152: Transmission Losses | B152: =lossinput -> 0.0487
A153: Transmission Losses | B153: =(B149+B150+B151)*B152 -> 0 | C153: MWh/year per CHP unit
A154: Total Displaced Generating - Calc | B154: =B149+B150+B151+B153 -> 0 | C154: MWh/year per CHP unit
A155: Total Displaced Generating - Manual | B155: =dispgridelec -> 0 | C155: MWh/year (estimated by user)
A156: DE NOx | B156: =denoxrate*B154/2000 -> 0 | C156: tons/year per CHP unit | D156: DE CH4 | E156: =dech4rate*B154/2000 -> 0 | F156: tons/year per CHP unit
A157: DE SO2 | B157: =deso2rate*B154/2000 -> 0 | C157: tons/year per CHP unit | D157: DE N2O | E157: =den2orate*B154/2000 -> 0 | F157: tons/year per CHP unit
A158: DE CO2 | B158: =deco2rate*B154/2000 -> 0 | C158: tons/year per CHP unit
A159: DE MMBtu | B159: =deheatrate*B154/1000 -> 0 | C159: MMBtu/year per CHP unit
A162: Displaced Thermal Supply
A163: Thermal Utilization % | B163: =thermutil -> 0
A164: Power to Heat ratio | B164: =IF(chpphinput=0,0,IF(chptechinput=9,0,IF(chpphinput>0,chpphinput,B60/B100))) -> 0
A165: Heat from CHP units | B165: =IF(chptechinput=6,B101/boilereff,IF(chpphinput=0,0,IF(chptechinput=9,0,chpnumunits*(cMWh*3.412/(B164))))) -> 0 | C165: MMBtu/yr
A166: Heat from Duct Burners | B166: =chpnumunits*B107 -> 0 | C166: MMBtu/yr
A167: Heat from CHP units to cooling | B167: =B129 -> 0 | C167: MMBtu/yr
A168: Heat from CHP units "lost" | B168: =B131 -> 0 | C168: MMBtu/yr
A169: Heat from CHP units to thermal use | B169: =IF(chpheatcoolboth<>2,B165+B166-B167-B168,0) -> 0 | C169: MMBtu/yr
A170: Heat from WHP to thermal use | B170: =IF(whptherminput>0,whptherminput*chours) -> FALSE | C170: MMBtu/yr | D170: =MAX(B169:B170)*B163 -> 0
A171: Stm source input | B171: =stminput1 -> 0 | C171: =IF(stminput1>0,LOOKUP(stminput1,listd2a,listd2)," ") -> 
A172: Stm sulfur input % | B172: =stmsulfurinput1 -> 0
A173: Stm sulfur input ppm | B173: =stmsulfurinput2 -> 0
A174: Calculated Stm sulfur % | B174: =IF(B172>0,B172,IF(B173>0,B173/1000000,IF(stminput1>0,STMTech!E4,0))) -> 0
A175: Stm Efficiency | B175: =stmeff -> 0
A176: Stm BoilFuel | B176: =IF(dispboilerfuel>0,dispboilerfuel,IF(D170>0,IF(B175>0,D170/B175,0),0)) -> 0 | C176: MMBtu/year
A177: Max Stm BoilFuel | B177: =(chpnumunits*(IF(B119>0,((chours-IF(chpheatcoolsimultaneous=1,MAX(coolinput2a/coolavailabletons,coolinput2b/coolavailableMMBtu),1)*B119)/chours),1)*cMWh*3.412/(B164)/B175)) ->  | C177: MMBtu/year
A178: STM Fuel heat content | B178: =IF(stmheatinput1>0,stmheatinput1,IF(stmheatinput2>0,stmheatinput2,IF(stmheatinput3>0,stmheatinput3,0))) -> 0 | C178: =IF(stmheatinput1>0,"Btu/cf",IF(stmheatinput2>0,"Btu/gallon",IF(stmheatinput3>0,"Btu/lb"," "))) -> 
A179: Adj STM Fuel Heat content | B179: =IF(stmheatinput1>0,stmheatinput1/ngdensity,IF(stmheatinput2>0,stmheatinput2/distdensity,IF(stmheatinput3>0,stmheatinput3,0))) -> 0 | C179: Btu/lb
A180: Stm boil fuel mass | B180: =IF(B179>0,dsbtu*1000000/(B179*2000),0) -> 0 | C180: tons/year
A181: Stm SO2 | B181: =B174*B180*2 -> 0 | C181: tons/year
A182: Stm NOx rate | B182: =IF(stmnoxinput>0,stmnoxinput,IF(stminput1<>0,STMTech!D4,0)) -> 0 | C182: lb/MMBtu | D182: Stm CH4 rate | E182: =IF(stminput1<>0,STMTech!J4,0) -> 0 | F182: lb/MMBtu
A183: Stm NOx | B183: =B182*dsbtu/2000 -> 0 | C183: tons/year | D183: Stm CH4 | E183: =E182*dsbtu/2000 -> 0 | F183: tons/year
A184: Stm CO2 rate | B184: =IF(stmco2input>0,stmco2input,IF(stminput1<>0,STMTech!G4,0)) -> 0 | C184: lb/MMBtu | D184: Stm N2O rate | E184: =IF(stminput1<>0,STMTech!K4,0) -> 0 | F184: lb/MMBtu
A185: Stm Co2 | B185: =B184*dsbtu/2000 -> 0 | C185: tons/year | D185: Stm N2O | E185: =E184*dsbtu/2000 -> 0 | F185: tons/year
A187: Displaced Heating Electricity
A188: Heat from CHP units to thermal use | B188: =IF(stminput1=9,D170,0) -> 0 | C188: MMBtu/year
A189: Electric Efficiency of Heating Unit | B189: =stmeff -> 0
B190: =IF(B188>0,B188/B189/chours,0) -> 0 | C190: MMBtu/hr
A191: Displaced Heating Elec Demand | B191: =B190/3.412 -> 0 | C191: MWh/hr
A192: Displaced Heating Elec Demand | B192: =B191*chours -> 0 | C192: MWh/year
